{"text_format":"1","workbook":"xlsx","n_sheets":3,"sheets":["PivotTable","Inventory Test","Reference Tables"],"not_rendered":{"charts":0,"images":0,"macros":1,"external_links":0,"defined_names":4,"comments":0,"pivot_tables":1},"unopened":[],"bounds":{"document_bytes":16777216,"sheet_cells":100000,"rows_first":2000,"rows_last":500,"rows_between":2000,"halvings":0,"cell_chars":16384,"cell_head_chars":4096},"cells_cut":0,"cells_raw":0,"read":"whole","date_system":"1900"}

{"sheet":"PivotTable","index":0,"n_rows":11,"n_cols":3,"rows_kept":11,"cut":false,"hidden":false,"merged":[]}
["Current Location","(All)"]
["Previous Location","(All)"]
[]
["Row Labels","Sum of Quantity Out","Sum of Quantity In"]
["Die",-2846,2846]
["Mask",-2137,2137]
["Module",-24369,24369]
["Wafer - 200mm",-815,815]
["Wafer - 300mm",-583,583]
["Wafer - Carcass",-243,243]
["Grand Total",-30993,30993]

{"sheet":"Inventory Test","index":1,"n_rows":946,"n_cols":16,"rows_kept":946,"cut":false,"hidden":false,"merged":[]}
["Form Factor","Previous Location","Quantity Out","Current Location","Quantity In","Unique ID","Transfer Date","Program Name ","Part Number","Lot Number","Wafer ID Number","Barcode","EC Number","Misc ID Number","Comments","Associated HATS Report"]
["Mask","SSU 01",{"$f":"-Inventory_Table[[#This Row],[Quantity In]]","v":-49},"Williston 861",49,{"$f":"_xlfn.CONCAT(Inventory_Table[[#This Row],[Form Factor]],Inventory_Table[[#This Row],[Current Location]])","v":"MaskWilliston 861"},"2010-05-26","Test Program 1","Test Part Number","Test Lot # 1"]
["Mask","SSU 02",{"$f":"-Inventory_Table[[#This Row],[Quantity In]]","v":-44},"Williston 861",44,{"$f":"_xlfn.CONCAT(Inventory_Table[[#This Row],[Form Factor]],Inventory_Table[[#This Row],[Current Location]])","v":"MaskWilliston 861"},"2011-03-01","Test Program 2","Test Part Number","Test Lot # 2"]
["Mask","SSU 03",{"$f":"-Inventory_Table[[#This Row],[Quantity In]]","v":-42},"Williston 861",42,{"$f":"_xlfn.CONCAT(Inventory_Table[[#This Row],[Form Factor]],Inventory_Table[[#This Row],[Current Location]])","v":"MaskWilliston 861"},"2011-03-10","Test Program 3","Test Part Number","Test Lot # 3"]
["Mask","SSU 04",{"$f":"-Inventory_Table[[#This Row],[Quantity In]]","v":-51},"Williston 861",51,{"$f":"_xlfn.CONCAT(Inventory_Table[[#This Row],[Form Factor]],Inventory_Table[[#This Row],[Current Location]])","v":"MaskWilliston 861"},"2011-04-12","Test Program 4","Test Part Number","Test Lot # 4"]
["Mask","SSU 05",{"$f":"-Inventory_Table[[#This Row],[Quantity In]]","v":-44},"Williston 861",44,{"$f":"_xlfn.CONCAT(Inventory_Table[[#This Row],[Form Factor]],Inventory_Table[[#This Row],[Current Location]])","v":"MaskWilliston 861"},"2011-04-21","Test Program 5","Test Part Number","Test Lot # 5"]
["Mask","SSU 06",{"$f":"-Inventory_Table[[#This Row],[Quantity In]]","v":-43},"Williston 861",43,{"$f":"_xlfn.CONCAT(Inventory_Table[[#This Row],[Form Factor]],Inventory_Table[[#This Row],[Current Location]])","v":"MaskWilliston 861"},"2011-04-26","Test Program 6","Test Part Number","Test Lot # 6"]
["Mask","SSU 07",{"$f":"-Inventory_Table[[#This Row],[Quantity In]]","v":-39},"Williston 861",39,{"$f":"_xlfn.CONCAT(Inventory_Table[[#This Row],[Form Factor]],Inventory_Table[[#This Row],[Current Location]])","v":"MaskWilliston 861"},"2011-05-05","Test Program 7","Test Part Number","Test Lot # 7"]
["Mask","SSU 08",{"$f":"-Inventory_Table[[#This Row],[Quantity In]]","v":-48},"Williston 861",48,{"$f":"_xlfn.CONCAT(Inventory_Table[[#This Row],[Form Factor]],Inventory_Table[[#This Row],[Current Location]])","v":"MaskWilliston 861"},"2011-05-10","Test Program 8","Test Part Number","Test Lot # 8"]
["Mask","SSU 09",{"$f":"-Inventory_Table[[#This Row],[Quantity In]]","v":-42},"Williston 861",42,{"$f":"_xlfn.CONCAT(Inventory_Table[[#This Row],[Form Factor]],Inventory_Table[[#This Row],[Current Location]])","v":"MaskWilliston 861"},"2011-06-02","Test Program 9","Test Part Number","Test Lot # 9"]
["Mask","SSU 10",{"$f":"-Inventory_Table[[#This Row],[Quantity In]]","v":-42},"Williston 861",42,{"$f":"_xlfn.CONCAT(Inventory_Table[[#This Row],[Form Factor]],Inventory_Table[[#This Row],[Current Location]])","v":"MaskWilliston 861"},"2011-06-07","Test Program 10","Test Part Number","Test Lot # 10"]
["Mask","SSU 11",{"$f":"-Inventory_Table[[#This Row],[Quantity In]]","v":-29},"Williston 861",29,{"$f":"_xlfn.CONCAT(Inventory_Table[[#This Row],[Form Factor]],Inventory_Table[[#This Row],[Current Location]])","v":"MaskWilliston 861"},"2011-06-16","Test Program 11","Test Part Number","Test Lot # 11"]
["Mask","SSU 12",{"$f":"-Inventory_Table[[#This Row],[Quantity In]]","v":-54},"Williston 861",54,{"$f":"_xlfn.CONCAT(Inventory_Table[[#This Row],[Form Factor]],Inventory_Table[[#This Row],[Current Location]])","v":"MaskWilliston 861"},"2011-06-30","Test Program 12","Test Part Number","Test Lot # 12"]
["Mask","SSU 13",{"$f":"-Inventory_Table[[#This Row],[Quantity In]]","v":-45},"Williston 861",45,{"$f":"_xlfn.CONCAT(Inventory_Table[[#This Row],[Form Factor]],Inventory_Table[[#This Row],[Current Location]])","v":"MaskWilliston 861"},"2011-07-19","Test Program 13","Test Part Number","Test Lot # 13"]
["Mask","SSU 14",{"$f":"-Inventory_Table[[#This Row],[Quantity In]]","v":-1},"Williston 861",1,{"$f":"_xlfn.CONCAT(Inventory_Table[[#This Row],[Form Factor]],Inventory_Table[[#This Row],[Current Location]])","v":"MaskWilliston 861"},"2011-09-08","Test Program 14","Test Part Number","Test Lot # 14"]
["Mask","SSU 15",{"$f":"-Inventory_Table[[#This Row],[Quantity In]]","v":-29},"Williston 861",29,{"$f":"_xlfn.CONCAT(Inventory_Table[[#This Row],[Form Factor]],Inventory_Table[[#This Row],[Current Location]])","v":"MaskWilliston 861"},"2011-09-08","Test Program 15","Test Part Number","Test Lot # 15"]
["Mask","SSU 16",{"$f":"-Inventory_Table[[#This Row],[Quantity In]]","v":-45},"Williston 861",45,{"$f":"_xlfn.CONCAT(Inventory_Table[[#This Row],[Form Factor]],Inventory_Table[[#This Row],[Current Location]])","v":"MaskWilliston 861"},"2012-03-27","Test Program 16","Test Part Number","Test Lot # 16"]
["Mask","SSU 17",{"$f":"-Inventory_Table[[#This Row],[Quantity In]]","v":-45},"Williston 861",45,{"$f":"_xlfn.CONCAT(Inventory_Table[[#This Row],[Form Factor]],Inventory_Table[[#This Row],[Current Location]])","v":"MaskWilliston 861"},"2012-04-24","Test Program 17","Test Part Number","Test Lot # 17"]
["Wafer - 200mm","SSU 18",{"$f":"-Inventory_Table[[#This Row],[Quantity In]]","v":-1},"SSU 06",1,{"$f":"_xlfn.CONCAT(Inventory_Table[[#This Row],[Form Factor]],Inventory_Table[[#This Row],[Current Location]])","v":"Wafer - 200mmSSU 06"},"2012-05-25","Test Program 18","Test Part Number","Test Lot # 18"]
["Mask","SSU 01",{"$f":"-Inventory_Table[[#This Row],[Quantity In]]","v":-41},"Williston 861",41,{"$f":"_xlfn.CONCAT(Inventory_Table[[#This Row],[Form Factor]],Inventory_Table[[#This Row],[Current Location]])","v":"MaskWilliston 861"},"2012-06-20","Test Program 19","Test Part Number","Test Lot # 19"]
["Wafer - 300mm","SSU 02",{"$f":"-Inventory_Table[[#This Row],[Quantity In]]","v":-5},"Williston 861",5,{"$f":"_xlfn.CONCAT(Inventory_Table[[#This Row],[Form Factor]],Inventory_Table[[#This Row],[Current Location]])","v":"Wafer - 300mmWilliston 861"},"2012-10-09","Test Program 20","Test Part Number","Test Lot # 20"]
["Wafer - 200mm","SSU 03",{"$f":"-Inventory_Table[[#This Row],[Quantity In]]","v":-1},"SSU 06",1,{"$f":"_xlfn.CONCAT(Inventory_Table[[#This Row],[Form Factor]],Inventory_Table[[#This Row],[Current Location]])","v":"Wafer - 200mmSSU 06"},"2012-11-21","Test Program 21","Test Part Number","Test Lot # 21"]
["Mask","SSU 04",{"$f":"-Inventory_Table[[#This Row],[Quantity In]]","v":-1},"Williston 861",1,{"$f":"_xlfn.CONCAT(Inventory_Table[[#This Row],[Form Factor]],Inventory_Table[[#This Row],[Current Location]])","v":"MaskWilliston 861"},"2012-12-14","Test Program 22","Test Part Number","Test Lot # 22"]
["Wafer - 200mm","SSU 05",{"$f":"-Inventory_Table[[#This Row],[Quantity In]]","v":-1},"SSU 06",1,{"$f":"_xlfn.CONCAT(Inventory_Table[[#This Row],[Form Factor]],Inventory_Table[[#This Row],[Current Location]])","v":"Wafer - 200mmSSU 06"},"2013-02-23","Test Program 23","Test Part Number","Test Lot # 23"]
["Mask","SSU 06",{"$f":"-Inventory_Table[[#This Row],[Quantity In]]","v":-50},"Williston 861",50,{"$f":"_xlfn.CONCAT(Inventory_Table[[#This Row],[Form Factor]],Inventory_Table[[#This Row],[Current Location]])","v":"MaskWilliston 861"},"2013-05-02","Test Program 24","Test Part Number","Test Lot # 24"]
["Mask","SSU 07",{"$f":"-Inventory_Table[[#This Row],[Quantity In]]","v":-38},"Williston 861",38,{"$f":"_xlfn.CONCAT(Inventory_Table[[#This Row],[Form Factor]],Inventory_Table[[#This Row],[Current Location]])","v":"MaskWilliston 861"},"2013-05-07","Test Program 25","Test Part Number","Test Lot # 25"]
["Mask","SSU 08",{"$f":"-Inventory_Table[[#This Row],[Quantity In]]","v":-42},"Williston 861",42,{"$f":"_xlfn.CONCAT(Inventory_Table[[#This Row],[Form Factor]],Inventory_Table[[#This Row],[Current Location]])","v":"MaskWilliston 861"},"2013-05-14","Test Program 26","Test Part Number","Test Lot # 26"]
["Mask","SSU 09",{"$f":"-Inventory_Table[[#This Row],[Quantity In]]","v":-46},"Williston 861",46,{"$f":"_xlfn.CONCAT(Inventory_Table[[#This Row],[Form Factor]],Inventory_Table[[#This Row],[Current Location]])","v":"MaskWilliston 861"},"2013-05-21","Test Program 27","Test Part Number","Test Lot # 27"]
["Wafer - 200mm","SSU 10",{"$f":"-Inventory_Table[[#This Row],[Quantity In]]","v":-12},"Williston 861",12,{"$f":"_xlfn.CONCAT(Inventory_Table[[#This Row],[Form Factor]],Inventory_Table[[#This Row],[Current Location]])","v":"Wafer - 200mmWilliston 861"},"2013-07-16","Test Program 28","Test Part Number","Test Lot # 28"]
["Mask","SSU 11",{"$f":"-Inventory_Table[[#This Row],[Quantity In]]","v":-52},"Williston 861",52,{"$f":"_xlfn.CONCAT(Inventory_Table[[#This Row],[Form Factor]],Inventory_Table[[#This Row],[Current Location]])","v":"MaskWilliston 861"},"2013-10-23","Test Program 29","Test Part Number","Test Lot # 29"]
["Mask","SSU 12",{"$f":"-Inventory_Table[[#This Row],[Quantity In]]","v":-47},"Williston 861",47,{"$f":"_xlfn.CONCAT(Inventory_Table[[#This Row],[Form Factor]],Inventory_Table[[#This Row],[Current Location]])","v":"MaskWilliston 861"},"2013-10-23","Test Program 30","Test Part Number","Test Lot # 30"]
["Mask","SSU 13",{"$f":"-Inventory_Table[[#This Row],[Quantity In]]","v":-53},"Williston 861",53,{"$f":"_xlfn.CONCAT(Inventory_Table[[#This Row],[Form Factor]],Inventory_Table[[#This Row],[Current Location]])","v":"MaskWilliston 861"},"2014-02-04","Test Program 31","Test Part Number","Test Lot # 31"]
["Wafer - 200mm","SSU 14",{"$f":"-Inventory_Table[[#This Row],[Quantity In]]","v":-1},"SSU 06",1,{"$f":"_xlfn.CONCAT(Inventory_Table[[#This Row],[Form Factor]],Inventory_Table[[#This Row],[Current Location]])","v":"Wafer - 200mmSSU 06"},"2014-11-23","Test Program 32","Test Part Number","Test Lot # 32"]
["Wafer - 200mm","SSU 15",{"$f":"-Inventory_Table[[#This Row],[Quantity In]]","v":-1},"SSU 06",1,{"$f":"_xlfn.CONCAT(Inventory_Table[[#This Row],[Form Factor]],Inventory_Table[[#This Row],[Current Location]])","v":"Wafer - 200mmSSU 06"},"2014-12-06","Test Program 33","Test Part Number","Test Lot # 33"]
["Wafer - 200mm","SSU 16",{"$f":"-Inventory_Table[[#This Row],[Quantity In]]","v":-1},"SSU 06",1,{"$f":"_xlfn.CONCAT(Inventory_Table[[#This Row],[Form Factor]],Inventory_Table[[#This Row],[Current Location]])","v":"Wafer - 200mmSSU 06"},"2015-01-08","Test Program 34","Test Part Number","Test Lot # 34"]
["Mask","SSU 17",{"$f":"-Inventory_Table[[#This Row],[Quantity In]]","v":-38},"Williston 861",38,{"$f":"_xlfn.CONCAT(Inventory_Table[[#This Row],[Form Factor]],Inventory_Table[[#This Row],[Current Location]])","v":"MaskWilliston 861"},"2015-04-02","Test Program 35","Test Part Number","Test Lot # 35"]
["Mask","SSU 18",{"$f":"-Inventory_Table[[#This Row],[Quantity In]]","v":-52},"Williston 861",52,{"$f":"_xlfn.CONCAT(Inventory_Table[[#This Row],[Form Factor]],Inventory_Table[[#This Row],[Current Location]])","v":"MaskWilliston 861"},"2015-04-30","Test Program 36","Test Part Number","Test Lot # 36"]
["Mask","SSU 01",{"$f":"-Inventory_Table[[#This Row],[Quantity In]]","v":-34},"Williston 861",34,{"$f":"_xlfn.CONCAT(Inventory_Table[[#This Row],[Form Factor]],Inventory_Table[[#This Row],[Current Location]])","v":"MaskWilliston 861"},"2015-05-02","Test Program 37","Test Part Number","Test Lot # 37"]
["Mask","SSU 02",{"$f":"-Inventory_Table[[#This Row],[Quantity In]]","v":-42},"Williston 861",42,{"$f":"_xlfn.CONCAT(Inventory_Table[[#This Row],[Form Factor]],Inventory_Table[[#This Row],[Current Location]])","v":"MaskWilliston 861"},"2015-05-02","Test Program 38","Test Part Number","Test Lot # 38"]
["Mask","SSU 03",{"$f":"-Inventory_Table[[#This Row],[Quantity In]]","v":-48},"Williston 861",48,{"$f":"_xlfn.CONCAT(Inventory_Table[[#This Row],[Form Factor]],Inventory_Table[[#This Row],[Current Location]])","v":"MaskWilliston 861"},"2015-05-04","Test Program 39","Test Part Number","Test Lot # 39"]
["Mask","SSU 04",{"$f":"-Inventory_Table[[#This Row],[Quantity In]]","v":-44},"Williston 861",44,{"$f":"_xlfn.CONCAT(Inventory_Table[[#This Row],[Form Factor]],Inventory_Table[[#This Row],[Current Location]])","v":"MaskWilliston 861"},"2015-05-04","Test Program 40","Test Part Number","Test Lot # 40"]
["Mask","SSU 05",{"$f":"-Inventory_Table[[#This Row],[Quantity In]]","v":-47},"Williston 861",47,{"$f":"_xlfn.CONCAT(Inventory_Table[[#This Row],[Form Factor]],Inventory_Table[[#This Row],[Current Location]])","v":"MaskWilliston 861"},"2015-05-05","Test Program 41","Test Part Number","Test Lot # 41"]
["Mask","SSU 06",{"$f":"-Inventory_Table[[#This Row],[Quantity In]]","v":-39},"Williston 861",39,{"$f":"_xlfn.CONCAT(Inventory_Table[[#This Row],[Form Factor]],Inventory_Table[[#This Row],[Current Location]])","v":"MaskWilliston 861"},"2015-05-05","Test Program 42","Test Part Number","Test Lot # 42"]
["Mask","SSU 07",{"$f":"-Inventory_Table[[#This Row],[Quantity In]]","v":-38},"Williston 861",38,{"$f":"_xlfn.CONCAT(Inventory_Table[[#This Row],[Form Factor]],Inventory_Table[[#This Row],[Current Location]])","v":"MaskWilliston 861"},"2015-06-01","Test Program 43","Test Part Number","Test Lot # 43"]
["Mask","SSU 08",{"$f":"-Inventory_Table[[#This Row],[Quantity In]]","v":-44},"Williston 861",44,{"$f":"_xlfn.CONCAT(Inventory_Table[[#This Row],[Form Factor]],Inventory_Table[[#This Row],[Current Location]])","v":"MaskWilliston 861"},"2015-06-22","Test Program 44","Test Part Number","Test Lot # 44"]
["Wafer - 300mm","SSU 09",{"$f":"-Inventory_Table[[#This Row],[Quantity In]]","v":-1},"SSU 06",1,{"$f":"_xlfn.CONCAT(Inventory_Table[[#This Row],[Form Factor]],Inventory_Table[[#This Row],[Current Location]])","v":"Wafer - 300mmSSU 06"},"2015-12-07","Test Program 45","Test Part Number","Test Lot # 45"]
["Mask","SSU 10",{"$f":"-Inventory_Table[[#This Row],[Quantity In]]","v":-44},"Williston 861",44,{"$f":"_xlfn.CONCAT(Inventory_Table[[#This Row],[Form Factor]],Inventory_Table[[#This Row],[Current Location]])","v":"MaskWilliston 861"},"2016-01-28","Test Program 46","Test Part Number","Test Lot # 46"]
["Mask","SSU 11",{"$f":"-Inventory_Table[[#This Row],[Quantity In]]","v":-54},"Williston 861",54,{"$f":"_xlfn.CONCAT(Inventory_Table[[#This Row],[Form Factor]],Inventory_Table[[#This Row],[Current Location]])","v":"MaskWilliston 861"},"2016-03-23","Test Program 47","Test Part Number","Test Lot # 47"]
["Mask","SSU 12",{"$f":"-Inventory_Table[[#This Row],[Quantity In]]","v":-3},"Williston 861",3,{"$f":"_xlfn.CONCAT(Inventory_Table[[#This Row],[Form Factor]],Inventory_Table[[#This Row],[Current Location]])","v":"MaskWilliston 861"},"2016-07-20","Test Program 48","Test Part Number","Test Lot # 48"]
["Mask","SSU 13",{"$f":"-Inventory_Table[[#This Row],[Quantity In]]","v":-55},"Williston 861",55,{"$f":"_xlfn.CONCAT(Inventory_Table[[#This Row],[Form Factor]],Inventory_Table[[#This Row],[Current Location]])","v":"MaskWilliston 861"},"2016-07-22","Test Program 49","Test Part Number","Test Lot # 49"]
["Wafer - 300mm","SSU 14",{"$f":"-Inventory_Table[[#This Row],[Quantity In]]","v":-1},"Williston 861",1,{"$f":"_xlfn.CONCAT(Inventory_Table[[#This Row],[Form Factor]],Inventory_Table[[#This Row],[Current Location]])","v":"Wafer - 300mmWilliston 861"},"2017-09-13","Test Program 50","Test Part Number","Test Lot # 50"]
["Wafer - 300mm","SSU 15",{"$f":"-Inventory_Table[[#This Row],[Quantity In]]","v":-1},"Williston 861",1,{"$f":"_xlfn.CONCAT(Inventory_Table[[#This Row],[Form Factor]],Inventory_Table[[#This Row],[Current Location]])","v":"Wafer - 300mmWilliston 861"},"2017-09-13","Test Program 51","Test Part Number","Test Lot # 51"]
["Wafer - 200mm","SSU 16",{"$f":"-Inventory_Table[[#This Row],[Quantity In]]","v":-1},"SSU 06",1,{"$f":"_xlfn.CONCAT(Inventory_Table[[#This Row],[Form Factor]],Inventory_Table[[#This Row],[Current Location]])","v":"Wafer - 200mmSSU 06"},"2017-09-19","Test Program 52","Test Part Number","Test Lot # 52"]
["Module","SSU 17",{"$f":"-Inventory_Table[[#This Row],[Quantity In]]","v":-10},"Williston 861",10,{"$f":"_xlfn.CONCAT(Inventory_Table[[#This Row],[Form Factor]],Inventory_Table[[#This Row],[Current Location]])","v":"ModuleWilliston 861"},"2017-11-01","Test Program 53","Test Part Number","Test Lot # 53"]
["Mask","SSU 18",{"$f":"-Inventory_Table[[#This Row],[Quantity In]]","v":-30},"Williston 861",30,{"$f":"_xlfn.CONCAT(Inventory_Table[[#This Row],[Form Factor]],Inventory_Table[[#This Row],[Current Location]])","v":"MaskWilliston 861"},"2018-02-08","Test Program 54","Test Part Number","Test Lot # 54"]
["Mask","SSU 01",{"$f":"-Inventory_Table[[#This Row],[Quantity In]]","v":-38},"Williston 861",38,{"$f":"_xlfn.CONCAT(Inventory_Table[[#This Row],[Form Factor]],Inventory_Table[[#This Row],[Current Location]])","v":"MaskWilliston 861"},"2018-02-08","Test Program 55","Test Part Number","Test Lot # 55"]
["Mask","SSU 02",{"$f":"-Inventory_Table[[#This Row],[Quantity In]]","v":-36},"Williston 861",36,{"$f":"_xlfn.CONCAT(Inventory_Table[[#This Row],[Form Factor]],Inventory_Table[[#This Row],[Current Location]])","v":"MaskWilliston 861"},"2018-02-09","Test Program 56","Test Part Number","Test Lot # 56"]
["Mask","SSU 03",{"$f":"-Inventory_Table[[#This Row],[Quantity In]]","v":-36},"Williston 861",36,{"$f":"_xlfn.CONCAT(Inventory_Table[[#This Row],[Form Factor]],Inventory_Table[[#This Row],[Current Location]])","v":"MaskWilliston 861"},"2018-02-15","Test Program 57","Test Part Number","Test Lot # 57"]
["Mask","SSU 04",{"$f":"-Inventory_Table[[#This Row],[Quantity In]]","v":-38},"Williston 861",38,{"$f":"_xlfn.CONCAT(Inventory_Table[[#This Row],[Form Factor]],Inventory_Table[[#This Row],[Current Location]])","v":"MaskWilliston 861"},"2018-02-16","Test Program 58","Test Part Number","Test Lot # 58"]
["Mask","SSU 05",{"$f":"-Inventory_Table[[#This Row],[Quantity In]]","v":-21},"Williston 861",21,{"$f":"_xlfn.CONCAT(Inventory_Table[[#This Row],[Form Factor]],Inventory_Table[[#This Row],[Current Location]])","v":"MaskWilliston 861"},"2018-02-23","Test Program 59","Test Part Number","Test Lot # 59"]
["Mask","SSU 06",{"$f":"-Inventory_Table[[#This Row],[Quantity In]]","v":-24},"Williston 861",24,{"$f":"_xlfn.CONCAT(Inventory_Table[[#This Row],[Form Factor]],Inventory_Table[[#This Row],[Current Location]])","v":"MaskWilliston 861"},"2018-02-23","Test Program 60","Test Part Number","Test Lot # 60"]
["Mask","SSU 07",{"$f":"-Inventory_Table[[#This Row],[Quantity In]]","v":-43},"Williston 861",43,{"$f":"_xlfn.CONCAT(Inventory_Table[[#This Row],[Form Factor]],Inventory_Table[[#This Row],[Current Location]])","v":"MaskWilliston 861"},"2018-05-17","Test Program 61","Test Part Number","Test Lot # 61"]
["Mask","SSU 08",{"$f":"-Inventory_Table[[#This Row],[Quantity In]]","v":-62},"Williston 861",62,{"$f":"_xlfn.CONCAT(Inventory_Table[[#This Row],[Form Factor]],Inventory_Table[[#This Row],[Current Location]])","v":"MaskWilliston 861"},"2018-05-24","Test Program 62","Test Part Number","Test Lot # 62"]
["Wafer - 200mm","SSU 09",{"$f":"-Inventory_Table[[#This Row],[Quantity In]]","v":-1},"SSU 06",1,{"$f":"_xlfn.CONCAT(Inventory_Table[[#This Row],[Form Factor]],Inventory_Table[[#This Row],[Current Location]])","v":"Wafer - 200mmSSU 06"},"2018-07-26","Test Program 63","Test Part Number","Test Lot # 63"]
["Wafer - 200mm","SSU 10",{"$f":"-Inventory_Table[[#This Row],[Quantity In]]","v":-1},"SSU 06",1,{"$f":"_xlfn.CONCAT(Inventory_Table[[#This Row],[Form Factor]],Inventory_Table[[#This Row],[Current Location]])","v":"Wafer - 200mmSSU 06"},"2018-08-23","Test Program 64","Test Part Number","Test Lot # 64"]
["Wafer - 200mm","SSU 11",{"$f":"-Inventory_Table[[#This Row],[Quantity In]]","v":-1},"SSU 10",1,{"$f":"_xlfn.CONCAT(Inventory_Table[[#This Row],[Form Factor]],Inventory_Table[[#This Row],[Current Location]])","v":"Wafer - 200mmSSU 10"},"2018-10-25","Test Program 65","Test Part Number","Test Lot # 65"]
["Wafer - 200mm","SSU 12",{"$f":"-Inventory_Table[[#This Row],[Quantity In]]","v":-1},"SSU 10",1,{"$f":"_xlfn.CONCAT(Inventory_Table[[#This Row],[Form Factor]],Inventory_Table[[#This Row],[Current Location]])","v":"Wafer - 200mmSSU 10"},"2018-10-25","Test Program 66","Test Part Number","Test Lot # 66"]
["Wafer - 200mm","SSU 13",{"$f":"-Inventory_Table[[#This Row],[Quantity In]]","v":-1},"SSU 10",1,{"$f":"_xlfn.CONCAT(Inventory_Table[[#This Row],[Form Factor]],Inventory_Table[[#This Row],[Current Location]])","v":"Wafer - 200mmSSU 10"},"2018-10-25","Test Program 67","Test Part Number","Test Lot # 67"]
["Mask","SSU 14",{"$f":"-Inventory_Table[[#This Row],[Quantity In]]","v":-54},"Williston 861",54,{"$f":"_xlfn.CONCAT(Inventory_Table[[#This Row],[Form Factor]],Inventory_Table[[#This Row],[Current Location]])","v":"MaskWilliston 861"},"2018-12-07","Test Program 68","Test Part Number","Test Lot # 68"]
["Mask","SSU 15",{"$f":"-Inventory_Table[[#This Row],[Quantity In]]","v":-40},"Williston 861",40,{"$f":"_xlfn.CONCAT(Inventory_Table[[#This Row],[Form Factor]],Inventory_Table[[#This Row],[Current Location]])","v":"MaskWilliston 861"},"2018-12-07","Test Program 69","Test Part Number","Test Lot # 69"]
["Mask","SSU 16",{"$f":"-Inventory_Table[[#This Row],[Quantity In]]","v":-39},"Williston 861",39,{"$f":"_xlfn.CONCAT(Inventory_Table[[#This Row],[Form Factor]],Inventory_Table[[#This Row],[Current Location]])","v":"MaskWilliston 861"},"2018-12-07","Test Program 70","Test Part Number","Test Lot # 70"]
["Wafer - 200mm","SSU 17",{"$f":"-Inventory_Table[[#This Row],[Quantity In]]","v":-1},"SSU 01",1,{"$f":"_xlfn.CONCAT(Inventory_Table[[#This Row],[Form Factor]],Inventory_Table[[#This Row],[Current Location]])","v":"Wafer - 200mmSSU 01"},"2019-02-27","Test Program 71","Test Part Number","Test Lot # 71"]
["Die","SSU 18",{"$f":"-Inventory_Table[[#This Row],[Quantity In]]","v":-21},"SSU 08",21,{"$f":"_xlfn.CONCAT(Inventory_Table[[#This Row],[Form Factor]],Inventory_Table[[#This Row],[Current Location]])","v":"DieSSU 08"},"2019-03-20","Test Program 72","Test Part Number","Test Lot # 72"]
["Die","SSU 01",{"$f":"-Inventory_Table[[#This Row],[Quantity In]]","v":-31},"SSU 08",31,{"$f":"_xlfn.CONCAT(Inventory_Table[[#This Row],[Form Factor]],Inventory_Table[[#This Row],[Current Location]])","v":"DieSSU 08"},"2019-03-20","Test Program 73","Test Part Number","Test Lot # 73"]
["Module","SSU 02",{"$f":"-Inventory_Table[[#This Row],[Quantity In]]","v":-41},"SSU 08",41,{"$f":"_xlfn.CONCAT(Inventory_Table[[#This Row],[Form Factor]],Inventory_Table[[#This Row],[Current Location]])","v":"ModuleSSU 08"},"2019-03-27","Test Program 74","Test Part Number","Test Lot # 74"]
["Wafer - 200mm","SSU 03",{"$f":"-Inventory_Table[[#This Row],[Quantity In]]","v":-1},"SSU 10",1,{"$f":"_xlfn.CONCAT(Inventory_Table[[#This Row],[Form Factor]],Inventory_Table[[#This Row],[Current Location]])","v":"Wafer - 200mmSSU 10"},"2019-04-03","Test Program 75","Test Part Number","Test Lot # 75"]
["Wafer - 200mm","SSU 04",{"$f":"-Inventory_Table[[#This Row],[Quantity In]]","v":-1},"SSU 10",1,{"$f":"_xlfn.CONCAT(Inventory_Table[[#This Row],[Form Factor]],Inventory_Table[[#This Row],[Current Location]])","v":"Wafer - 200mmSSU 10"},"2019-04-03","Test Program 76","Test Part Number","Test Lot # 76"]
["Wafer - 200mm","SSU 05",{"$f":"-Inventory_Table[[#This Row],[Quantity In]]","v":-1},"SSU 10",1,{"$f":"_xlfn.CONCAT(Inventory_Table[[#This Row],[Form Factor]],Inventory_Table[[#This Row],[Current Location]])","v":"Wafer - 200mmSSU 10"},"2019-04-03","Test Program 77","Test Part Number","Test Lot # 77"]
["Wafer - 200mm","SSU 06",{"$f":"-Inventory_Table[[#This Row],[Quantity In]]","v":-1},"SSU 10",1,{"$f":"_xlfn.CONCAT(Inventory_Table[[#This Row],[Form Factor]],Inventory_Table[[#This Row],[Current Location]])","v":"Wafer - 200mmSSU 10"},"2019-04-03","Test Program 78","Test Part Number","Test Lot # 78"]
["Module","SSU 07",{"$f":"-Inventory_Table[[#This Row],[Quantity In]]","v":-20},"SSU 08",20,{"$f":"_xlfn.CONCAT(Inventory_Table[[#This Row],[Form Factor]],Inventory_Table[[#This Row],[Current Location]])","v":"ModuleSSU 08"},"2019-04-03","Test Program 79","Test Part Number","Test Lot # 79"]
["Wafer - 200mm","SSU 08",{"$f":"-Inventory_Table[[#This Row],[Quantity In]]","v":-1},"SSU 09",1,{"$f":"_xlfn.CONCAT(Inventory_Table[[#This Row],[Form Factor]],Inventory_Table[[#This Row],[Current Location]])","v":"Wafer - 200mmSSU 09"},"2019-04-18","Test Program 80","Test Part Number","Test Lot # 80"]
["Wafer - 200mm","SSU 09",{"$f":"-Inventory_Table[[#This Row],[Quantity In]]","v":-1},"SSU 09",1,{"$f":"_xlfn.CONCAT(Inventory_Table[[#This Row],[Form Factor]],Inventory_Table[[#This Row],[Current Location]])","v":"Wafer - 200mmSSU 09"},"2019-04-18","Test Program 81","Test Part Number","Test Lot # 81"]
["Die","SSU 10",{"$f":"-Inventory_Table[[#This Row],[Quantity In]]","v":-105},"SSU 16",105,{"$f":"_xlfn.CONCAT(Inventory_Table[[#This Row],[Form Factor]],Inventory_Table[[#This Row],[Current Location]])","v":"DieSSU 16"},"2019-06-04","Test Program 82","Test Part Number","Test Lot # 82"]
["Module","SSU 11",{"$f":"-Inventory_Table[[#This Row],[Quantity In]]","v":-1},"SSU 16",1,{"$f":"_xlfn.CONCAT(Inventory_Table[[#This Row],[Form Factor]],Inventory_Table[[#This Row],[Current Location]])","v":"ModuleSSU 16"},"2019-06-04","Test Program 83","Test Part Number","Test Lot # 83"]
["Module","SSU 12",{"$f":"-Inventory_Table[[#This Row],[Quantity In]]","v":-2},"SSU 16",2,{"$f":"_xlfn.CONCAT(Inventory_Table[[#This Row],[Form Factor]],Inventory_Table[[#This Row],[Current Location]])","v":"ModuleSSU 16"},"2019-06-04","Test Program 84","Test Part Number","Test Lot # 84"]
["Module","SSU 13",{"$f":"-Inventory_Table[[#This Row],[Quantity In]]","v":-2},"SSU 16",2,{"$f":"_xlfn.CONCAT(Inventory_Table[[#This Row],[Form Factor]],Inventory_Table[[#This Row],[Current Location]])","v":"ModuleSSU 16"},"2019-06-04","Test Program 85","Test Part Number","Test Lot # 85"]
["Wafer - 200mm","SSU 14",{"$f":"-Inventory_Table[[#This Row],[Quantity In]]","v":-1},"SSU 06",1,{"$f":"_xlfn.CONCAT(Inventory_Table[[#This Row],[Form Factor]],Inventory_Table[[#This Row],[Current Location]])","v":"Wafer - 200mmSSU 06"},"2019-06-26","Test Program 86","Test Part Number","Test Lot # 86"]
["Module","SSU 15",{"$f":"-Inventory_Table[[#This Row],[Quantity In]]","v":-15},"FGI/Shipped to Client",15,{"$f":"_xlfn.CONCAT(Inventory_Table[[#This Row],[Form Factor]],Inventory_Table[[#This Row],[Current Location]])","v":"ModuleFGI/Shipped to Client"},"2019-06-27","Test Program 87","Test Part Number","Test Lot # 87"]
["Wafer - 200mm","SSU 16",{"$f":"-Inventory_Table[[#This Row],[Quantity In]]","v":-1},"SSU 10",1,{"$f":"_xlfn.CONCAT(Inventory_Table[[#This Row],[Form Factor]],Inventory_Table[[#This Row],[Current Location]])","v":"Wafer - 200mmSSU 10"},"2019-07-19","Test Program 88","Test Part Number","Test Lot # 88"]
["Wafer - 200mm","SSU 17",{"$f":"-Inventory_Table[[#This Row],[Quantity In]]","v":-1},"SSU 10",1,{"$f":"_xlfn.CONCAT(Inventory_Table[[#This Row],[Form Factor]],Inventory_Table[[#This Row],[Current Location]])","v":"Wafer - 200mmSSU 10"},"2019-07-19","Test Program 89","Test Part Number","Test Lot # 89"]
["Wafer - 200mm","SSU 18",{"$f":"-Inventory_Table[[#This Row],[Quantity In]]","v":-1},"SSU 07",1,{"$f":"_xlfn.CONCAT(Inventory_Table[[#This Row],[Form Factor]],Inventory_Table[[#This Row],[Current Location]])","v":"Wafer - 200mmSSU 07"},"2019-08-14","Test Program 90","Test Part Number","Test Lot # 90"]
["Wafer - 200mm","SSU 01",{"$f":"-Inventory_Table[[#This Row],[Quantity In]]","v":-1},"SSU 07",1,{"$f":"_xlfn.CONCAT(Inventory_Table[[#This Row],[Form Factor]],Inventory_Table[[#This Row],[Current Location]])","v":"Wafer - 200mmSSU 07"},"2019-08-14","Test Program 91","Test Part Number","Test Lot # 91"]
["Wafer - 200mm","SSU 02",{"$f":"-Inventory_Table[[#This Row],[Quantity In]]","v":-1},"SSU 07",1,{"$f":"_xlfn.CONCAT(Inventory_Table[[#This Row],[Form Factor]],Inventory_Table[[#This Row],[Current Location]])","v":"Wafer - 200mmSSU 07"},"2019-08-14","Test Program 92","Test Part Number","Test Lot # 92"]
["Wafer - 200mm","SSU 03",{"$f":"-Inventory_Table[[#This Row],[Quantity In]]","v":-1},"SSU 07",1,{"$f":"_xlfn.CONCAT(Inventory_Table[[#This Row],[Form Factor]],Inventory_Table[[#This Row],[Current Location]])","v":"Wafer - 200mmSSU 07"},"2019-08-14","Test Program 93","Test Part Number","Test Lot # 93"]
["Wafer - 200mm","SSU 04",{"$f":"-Inventory_Table[[#This Row],[Quantity In]]","v":-1},"SSU 07",1,{"$f":"_xlfn.CONCAT(Inventory_Table[[#This Row],[Form Factor]],Inventory_Table[[#This Row],[Current Location]])","v":"Wafer - 200mmSSU 07"},"2019-08-14","Test Program 94","Test Part Number","Test Lot # 94"]
["Wafer - 200mm","SSU 05",{"$f":"-Inventory_Table[[#This Row],[Quantity In]]","v":-1},"SSU 07",1,{"$f":"_xlfn.CONCAT(Inventory_Table[[#This Row],[Form Factor]],Inventory_Table[[#This Row],[Current Location]])","v":"Wafer - 200mmSSU 07"},"2019-08-14","Test Program 95","Test Part Number","Test Lot # 95"]
["Wafer - 200mm","SSU 06",{"$f":"-Inventory_Table[[#This Row],[Quantity In]]","v":-1},"SSU 07",1,{"$f":"_xlfn.CONCAT(Inventory_Table[[#This Row],[Form Factor]],Inventory_Table[[#This Row],[Current Location]])","v":"Wafer - 200mmSSU 07"},"2019-08-14","Test Program 96","Test Part Number","Test Lot # 96"]
["Wafer - 200mm","SSU 07",{"$f":"-Inventory_Table[[#This Row],[Quantity In]]","v":-1},"SSU 10",1,{"$f":"_xlfn.CONCAT(Inventory_Table[[#This Row],[Form Factor]],Inventory_Table[[#This Row],[Current Location]])","v":"Wafer - 200mmSSU 10"},"2019-09-03","Test Program 97","Test Part Number","Test Lot # 97"]
["Wafer - 200mm","SSU 08",{"$f":"-Inventory_Table[[#This Row],[Quantity In]]","v":-1},"SSU 10",1,{"$f":"_xlfn.CONCAT(Inventory_Table[[#This Row],[Form Factor]],Inventory_Table[[#This Row],[Current Location]])","v":"Wafer - 200mmSSU 10"},"2019-09-03","Test Program 98","Test Part Number","Test Lot # 98"]
["Wafer - 300mm","SSU 09",{"$f":"-Inventory_Table[[#This Row],[Quantity In]]","v":-1},"SSU 07",1,{"$f":"_xlfn.CONCAT(Inventory_Table[[#This Row],[Form Factor]],Inventory_Table[[#This Row],[Current Location]])","v":"Wafer - 300mmSSU 07"},"2019-09-04","Test Program 99","Test Part Number","Test Lot # 99"]
["Wafer - 300mm","SSU 10",{"$f":"-Inventory_Table[[#This Row],[Quantity In]]","v":-1},"SSU 07",1,{"$f":"_xlfn.CONCAT(Inventory_Table[[#This Row],[Form Factor]],Inventory_Table[[#This Row],[Current Location]])","v":"Wafer - 300mmSSU 07"},"2019-09-04","Test Program 100","Test Part Number","Test Lot # 100"]
["Wafer - 300mm","SSU 11",{"$f":"-Inventory_Table[[#This Row],[Quantity In]]","v":-1},"SSU 07",1,{"$f":"_xlfn.CONCAT(Inventory_Table[[#This Row],[Form Factor]],Inventory_Table[[#This Row],[Current Location]])","v":"Wafer - 300mmSSU 07"},"2019-09-04","Test Program 101","Test Part Number","Test Lot # 101"]
["Wafer - 300mm","SSU 12",{"$f":"-Inventory_Table[[#This Row],[Quantity In]]","v":-1},"SSU 07",1,{"$f":"_xlfn.CONCAT(Inventory_Table[[#This Row],[Form Factor]],Inventory_Table[[#This Row],[Current Location]])","v":"Wafer - 300mmSSU 07"},"2019-09-04","Test Program 102","Test Part Number","Test Lot # 102"]
["Wafer - 300mm","SSU 13",{"$f":"-Inventory_Table[[#This Row],[Quantity In]]","v":-1},"SSU 07",1,{"$f":"_xlfn.CONCAT(Inventory_Table[[#This Row],[Form Factor]],Inventory_Table[[#This Row],[Current Location]])","v":"Wafer - 300mmSSU 07"},"2019-09-04","Test Program 103","Test Part Number","Test Lot # 103"]
["Wafer - 300mm","SSU 14",{"$f":"-Inventory_Table[[#This Row],[Quantity In]]","v":-1},"SSU 07",1,{"$f":"_xlfn.CONCAT(Inventory_Table[[#This Row],[Form Factor]],Inventory_Table[[#This Row],[Current Location]])","v":"Wafer - 300mmSSU 07"},"2019-09-04","Test Program 104","Test Part Number","Test Lot # 104"]
["Wafer - 300mm","SSU 15",{"$f":"-Inventory_Table[[#This Row],[Quantity In]]","v":-1},"SSU 07",1,{"$f":"_xlfn.CONCAT(Inventory_Table[[#This Row],[Form Factor]],Inventory_Table[[#This Row],[Current Location]])","v":"Wafer - 300mmSSU 07"},"2019-09-04","Test Program 105","Test Part Number","Test Lot # 105"]
["Wafer - 300mm","SSU 16",{"$f":"-Inventory_Table[[#This Row],[Quantity In]]","v":-1},"SSU 07",1,{"$f":"_xlfn.CONCAT(Inventory_Table[[#This Row],[Form Factor]],Inventory_Table[[#This Row],[Current Location]])","v":"Wafer - 300mmSSU 07"},"2019-09-04","Test Program 106","Test Part Number","Test Lot # 106"]
["Wafer - 300mm","SSU 17",{"$f":"-Inventory_Table[[#This Row],[Quantity In]]","v":-1},"SSU 07",1,{"$f":"_xlfn.CONCAT(Inventory_Table[[#This Row],[Form Factor]],Inventory_Table[[#This Row],[Current Location]])","v":"Wafer - 300mmSSU 07"},"2019-09-04","Test Program 107","Test Part Number","Test Lot # 107"]
["Wafer - 300mm","SSU 18",{"$f":"-Inventory_Table[[#This Row],[Quantity In]]","v":-1},"SSU 07",1,{"$f":"_xlfn.CONCAT(Inventory_Table[[#This Row],[Form Factor]],Inventory_Table[[#This Row],[Current Location]])","v":"Wafer - 300mmSSU 07"},"2019-09-04","Test Program 108","Test Part Number","Test Lot # 108"]
["Wafer - 300mm","SSU 01",{"$f":"-Inventory_Table[[#This Row],[Quantity In]]","v":-1},"SSU 07",1,{"$f":"_xlfn.CONCAT(Inventory_Table[[#This Row],[Form Factor]],Inventory_Table[[#This Row],[Current Location]])","v":"Wafer - 300mmSSU 07"},"2019-09-04","Test Program 109","Test Part Number","Test Lot # 109"]
["Wafer - 300mm","SSU 02",{"$f":"-Inventory_Table[[#This Row],[Quantity In]]","v":-1},"SSU 07",1,{"$f":"_xlfn.CONCAT(Inventory_Table[[#This Row],[Form Factor]],Inventory_Table[[#This Row],[Current Location]])","v":"Wafer - 300mmSSU 07"},"2019-09-04","Test Program 110","Test Part Number","Test Lot # 110"]
["Wafer - 300mm","SSU 03",{"$f":"-Inventory_Table[[#This Row],[Quantity In]]","v":-1},"SSU 07",1,{"$f":"_xlfn.CONCAT(Inventory_Table[[#This Row],[Form Factor]],Inventory_Table[[#This Row],[Current Location]])","v":"Wafer - 300mmSSU 07"},"2019-09-04","Test Program 111","Test Part Number","Test Lot # 111"]
["Wafer - 300mm","SSU 04",{"$f":"-Inventory_Table[[#This Row],[Quantity In]]","v":-1},"SSU 07",1,{"$f":"_xlfn.CONCAT(Inventory_Table[[#This Row],[Form Factor]],Inventory_Table[[#This Row],[Current Location]])","v":"Wafer - 300mmSSU 07"},"2019-09-04","Test Program 112","Test Part Number","Test Lot # 112"]
["Wafer - 300mm","SSU 05",{"$f":"-Inventory_Table[[#This Row],[Quantity In]]","v":-1},"SSU 07",1,{"$f":"_xlfn.CONCAT(Inventory_Table[[#This Row],[Form Factor]],Inventory_Table[[#This Row],[Current Location]])","v":"Wafer - 300mmSSU 07"},"2019-09-04","Test Program 113","Test Part Number","Test Lot # 113"]
["Wafer - 300mm","SSU 06",{"$f":"-Inventory_Table[[#This Row],[Quantity In]]","v":-1},"SSU 07",1,{"$f":"_xlfn.CONCAT(Inventory_Table[[#This Row],[Form Factor]],Inventory_Table[[#This Row],[Current Location]])","v":"Wafer - 300mmSSU 07"},"2019-09-04","Test Program 114","Test Part Number","Test Lot # 114"]
["Wafer - 300mm","SSU 07",{"$f":"-Inventory_Table[[#This Row],[Quantity In]]","v":-1},"SSU 07",1,{"$f":"_xlfn.CONCAT(Inventory_Table[[#This Row],[Form Factor]],Inventory_Table[[#This Row],[Current Location]])","v":"Wafer - 300mmSSU 07"},"2019-09-04","Test Program 115","Test Part Number","Test Lot # 115"]
["Wafer - 300mm","SSU 08",{"$f":"-Inventory_Table[[#This Row],[Quantity In]]","v":-1},"SSU 07",1,{"$f":"_xlfn.CONCAT(Inventory_Table[[#This Row],[Form Factor]],Inventory_Table[[#This Row],[Current Location]])","v":"Wafer - 300mmSSU 07"},"2019-09-04","Test Program 116","Test Part Number","Test Lot # 116"]
["Wafer - 300mm","SSU 09",{"$f":"-Inventory_Table[[#This Row],[Quantity In]]","v":-1},"SSU 07",1,{"$f":"_xlfn.CONCAT(Inventory_Table[[#This Row],[Form Factor]],Inventory_Table[[#This Row],[Current Location]])","v":"Wafer - 300mmSSU 07"},"2019-09-04","Test Program 117","Test Part Number","Test Lot # 117"]
["Wafer - 300mm","SSU 10",{"$f":"-Inventory_Table[[#This Row],[Quantity In]]","v":-1},"SSU 07",1,{"$f":"_xlfn.CONCAT(Inventory_Table[[#This Row],[Form Factor]],Inventory_Table[[#This Row],[Current Location]])","v":"Wafer - 300mmSSU 07"},"2019-09-04","Test Program 118","Test Part Number","Test Lot # 118"]
["Wafer - 300mm","SSU 11",{"$f":"-Inventory_Table[[#This Row],[Quantity In]]","v":-1},"SSU 07",1,{"$f":"_xlfn.CONCAT(Inventory_Table[[#This Row],[Form Factor]],Inventory_Table[[#This Row],[Current Location]])","v":"Wafer - 300mmSSU 07"},"2019-09-04","Test Program 119","Test Part Number","Test Lot # 119"]
["Wafer - 300mm","SSU 12",{"$f":"-Inventory_Table[[#This Row],[Quantity In]]","v":-1},"SSU 07",1,{"$f":"_xlfn.CONCAT(Inventory_Table[[#This Row],[Form Factor]],Inventory_Table[[#This Row],[Current Location]])","v":"Wafer - 300mmSSU 07"},"2019-09-04","Test Program 120","Test Part Number","Test Lot # 120"]
["Wafer - 300mm","SSU 13",{"$f":"-Inventory_Table[[#This Row],[Quantity In]]","v":-1},"SSU 07",1,{"$f":"_xlfn.CONCAT(Inventory_Table[[#This Row],[Form Factor]],Inventory_Table[[#This Row],[Current Location]])","v":"Wafer - 300mmSSU 07"},"2019-09-04","Test Program 121","Test Part Number","Test Lot # 121"]
["Wafer - 300mm","SSU 14",{"$f":"-Inventory_Table[[#This Row],[Quantity In]]","v":-1},"SSU 07",1,{"$f":"_xlfn.CONCAT(Inventory_Table[[#This Row],[Form Factor]],Inventory_Table[[#This Row],[Current Location]])","v":"Wafer - 300mmSSU 07"},"2019-09-04","Test Program 122","Test Part Number","Test Lot # 122"]
["Wafer - 300mm","SSU 15",{"$f":"-Inventory_Table[[#This Row],[Quantity In]]","v":-1},"SSU 07",1,{"$f":"_xlfn.CONCAT(Inventory_Table[[#This Row],[Form Factor]],Inventory_Table[[#This Row],[Current Location]])","v":"Wafer - 300mmSSU 07"},"2019-09-04","Test Program 123","Test Part Number","Test Lot # 123"]
["Wafer - 300mm","SSU 16",{"$f":"-Inventory_Table[[#This Row],[Quantity In]]","v":-1},"SSU 07",1,{"$f":"_xlfn.CONCAT(Inventory_Table[[#This Row],[Form Factor]],Inventory_Table[[#This Row],[Current Location]])","v":"Wafer - 300mmSSU 07"},"2019-09-04","Test Program 124","Test Part Number","Test Lot # 124"]
["Wafer - 300mm","SSU 17",{"$f":"-Inventory_Table[[#This Row],[Quantity In]]","v":-1},"SSU 07",1,{"$f":"_xlfn.CONCAT(Inventory_Table[[#This Row],[Form Factor]],Inventory_Table[[#This Row],[Current Location]])","v":"Wafer - 300mmSSU 07"},"2019-09-04","Test Program 125","Test Part Number","Test Lot # 125"]
["Wafer - 300mm","SSU 18",{"$f":"-Inventory_Table[[#This Row],[Quantity In]]","v":-1},"SSU 07",1,{"$f":"_xlfn.CONCAT(Inventory_Table[[#This Row],[Form Factor]],Inventory_Table[[#This Row],[Current Location]])","v":"Wafer - 300mmSSU 07"},"2019-09-04","Test Program 126","Test Part Number","Test Lot # 126"]
["Wafer - 300mm","SSU 01",{"$f":"-Inventory_Table[[#This Row],[Quantity In]]","v":-1},"SSU 07",1,{"$f":"_xlfn.CONCAT(Inventory_Table[[#This Row],[Form Factor]],Inventory_Table[[#This Row],[Current Location]])","v":"Wafer - 300mmSSU 07"},"2019-09-04","Test Program 127","Test Part Number","Test Lot # 127"]
["Wafer - 300mm","SSU 02",{"$f":"-Inventory_Table[[#This Row],[Quantity In]]","v":-1},"SSU 07",1,{"$f":"_xlfn.CONCAT(Inventory_Table[[#This Row],[Form Factor]],Inventory_Table[[#This Row],[Current Location]])","v":"Wafer - 300mmSSU 07"},"2019-09-04","Test Program 128","Test Part Number","Test Lot # 128"]
["Wafer - 300mm","SSU 03",{"$f":"-Inventory_Table[[#This Row],[Quantity In]]","v":-1},"SSU 07",1,{"$f":"_xlfn.CONCAT(Inventory_Table[[#This Row],[Form Factor]],Inventory_Table[[#This Row],[Current Location]])","v":"Wafer - 300mmSSU 07"},"2019-09-04","Test Program 129","Test Part Number","Test Lot # 129"]
["Wafer - 300mm","SSU 04",{"$f":"-Inventory_Table[[#This Row],[Quantity In]]","v":-1},"SSU 07",1,{"$f":"_xlfn.CONCAT(Inventory_Table[[#This Row],[Form Factor]],Inventory_Table[[#This Row],[Current Location]])","v":"Wafer - 300mmSSU 07"},"2019-09-04","Test Program 130","Test Part Number","Test Lot # 130"]
["Wafer - 300mm","SSU 05",{"$f":"-Inventory_Table[[#This Row],[Quantity In]]","v":-1},"SSU 07",1,{"$f":"_xlfn.CONCAT(Inventory_Table[[#This Row],[Form Factor]],Inventory_Table[[#This Row],[Current Location]])","v":"Wafer - 300mmSSU 07"},"2019-09-04","Test Program 131","Test Part Number","Test Lot # 131"]
["Wafer - 300mm","SSU 06",{"$f":"-Inventory_Table[[#This Row],[Quantity In]]","v":-1},"SSU 07",1,{"$f":"_xlfn.CONCAT(Inventory_Table[[#This Row],[Form Factor]],Inventory_Table[[#This Row],[Current Location]])","v":"Wafer - 300mmSSU 07"},"2019-09-04","Test Program 132","Test Part Number","Test Lot # 132"]
["Wafer - 300mm","SSU 07",{"$f":"-Inventory_Table[[#This Row],[Quantity In]]","v":-1},"SSU 07",1,{"$f":"_xlfn.CONCAT(Inventory_Table[[#This Row],[Form Factor]],Inventory_Table[[#This Row],[Current Location]])","v":"Wafer - 300mmSSU 07"},"2019-09-04","Test Program 133","Test Part Number","Test Lot # 133"]
["Wafer - 300mm","SSU 08",{"$f":"-Inventory_Table[[#This Row],[Quantity In]]","v":-1},"SSU 07",1,{"$f":"_xlfn.CONCAT(Inventory_Table[[#This Row],[Form Factor]],Inventory_Table[[#This Row],[Current Location]])","v":"Wafer - 300mmSSU 07"},"2019-09-04","Test Program 134","Test Part Number","Test Lot # 134"]
["Wafer - 300mm","SSU 09",{"$f":"-Inventory_Table[[#This Row],[Quantity In]]","v":-1},"SSU 07",1,{"$f":"_xlfn.CONCAT(Inventory_Table[[#This Row],[Form Factor]],Inventory_Table[[#This Row],[Current Location]])","v":"Wafer - 300mmSSU 07"},"2019-09-04","Test Program 135","Test Part Number","Test Lot # 135"]
["Wafer - 300mm","SSU 10",{"$f":"-Inventory_Table[[#This Row],[Quantity In]]","v":-1},"SSU 07",1,{"$f":"_xlfn.CONCAT(Inventory_Table[[#This Row],[Form Factor]],Inventory_Table[[#This Row],[Current Location]])","v":"Wafer - 300mmSSU 07"},"2019-09-04","Test Program 136","Test Part Number","Test Lot # 136"]
["Wafer - 300mm","SSU 11",{"$f":"-Inventory_Table[[#This Row],[Quantity In]]","v":-1},"SSU 07",1,{"$f":"_xlfn.CONCAT(Inventory_Table[[#This Row],[Form Factor]],Inventory_Table[[#This Row],[Current Location]])","v":"Wafer - 300mmSSU 07"},"2019-09-04","Test Program 137","Test Part Number","Test Lot # 137"]
["Wafer - 300mm","SSU 12",{"$f":"-Inventory_Table[[#This Row],[Quantity In]]","v":-1},"SSU 07",1,{"$f":"_xlfn.CONCAT(Inventory_Table[[#This Row],[Form Factor]],Inventory_Table[[#This Row],[Current Location]])","v":"Wafer - 300mmSSU 07"},"2019-09-04","Test Program 138","Test Part Number","Test Lot # 138"]
["Wafer - 300mm","SSU 13",{"$f":"-Inventory_Table[[#This Row],[Quantity In]]","v":-1},"SSU 07",1,{"$f":"_xlfn.CONCAT(Inventory_Table[[#This Row],[Form Factor]],Inventory_Table[[#This Row],[Current Location]])","v":"Wafer - 300mmSSU 07"},"2019-09-04","Test Program 139","Test Part Number","Test Lot # 139"]
["Wafer - 300mm","SSU 14",{"$f":"-Inventory_Table[[#This Row],[Quantity In]]","v":-1},"SSU 07",1,{"$f":"_xlfn.CONCAT(Inventory_Table[[#This Row],[Form Factor]],Inventory_Table[[#This Row],[Current Location]])","v":"Wafer - 300mmSSU 07"},"2019-09-04","Test Program 140","Test Part Number","Test Lot # 140"]
["Wafer - 300mm","SSU 15",{"$f":"-Inventory_Table[[#This Row],[Quantity In]]","v":-1},"SSU 07",1,{"$f":"_xlfn.CONCAT(Inventory_Table[[#This Row],[Form Factor]],Inventory_Table[[#This Row],[Current Location]])","v":"Wafer - 300mmSSU 07"},"2019-09-04","Test Program 141","Test Part Number","Test Lot # 141"]
["Wafer - 300mm","SSU 16",{"$f":"-Inventory_Table[[#This Row],[Quantity In]]","v":-1},"SSU 07",1,{"$f":"_xlfn.CONCAT(Inventory_Table[[#This Row],[Form Factor]],Inventory_Table[[#This Row],[Current Location]])","v":"Wafer - 300mmSSU 07"},"2019-09-04","Test Program 142","Test Part Number","Test Lot # 142"]
["Wafer - 300mm","SSU 17",{"$f":"-Inventory_Table[[#This Row],[Quantity In]]","v":-1},"SSU 07",1,{"$f":"_xlfn.CONCAT(Inventory_Table[[#This Row],[Form Factor]],Inventory_Table[[#This Row],[Current Location]])","v":"Wafer - 300mmSSU 07"},"2019-09-04","Test Program 143","Test Part Number","Test Lot # 143"]
["Wafer - 300mm","SSU 18",{"$f":"-Inventory_Table[[#This Row],[Quantity In]]","v":-1},"SSU 07",1,{"$f":"_xlfn.CONCAT(Inventory_Table[[#This Row],[Form Factor]],Inventory_Table[[#This Row],[Current Location]])","v":"Wafer - 300mmSSU 07"},"2019-09-04","Test Program 144","Test Part Number","Test Lot # 144"]
["Wafer - 300mm","SSU 01",{"$f":"-Inventory_Table[[#This Row],[Quantity In]]","v":-1},"SSU 07",1,{"$f":"_xlfn.CONCAT(Inventory_Table[[#This Row],[Form Factor]],Inventory_Table[[#This Row],[Current Location]])","v":"Wafer - 300mmSSU 07"},"2019-09-04","Test Program 145","Test Part Number","Test Lot # 145"]
["Wafer - 300mm","SSU 02",{"$f":"-Inventory_Table[[#This Row],[Quantity In]]","v":-1},"SSU 07",1,{"$f":"_xlfn.CONCAT(Inventory_Table[[#This Row],[Form Factor]],Inventory_Table[[#This Row],[Current Location]])","v":"Wafer - 300mmSSU 07"},"2019-09-04","Test Program 146","Test Part Number","Test Lot # 146"]
["Wafer - 300mm","SSU 03",{"$f":"-Inventory_Table[[#This Row],[Quantity In]]","v":-1},"SSU 07",1,{"$f":"_xlfn.CONCAT(Inventory_Table[[#This Row],[Form Factor]],Inventory_Table[[#This Row],[Current Location]])","v":"Wafer - 300mmSSU 07"},"2019-09-04","Test Program 147","Test Part Number","Test Lot # 147"]
["Wafer - 300mm","SSU 04",{"$f":"-Inventory_Table[[#This Row],[Quantity In]]","v":-1},"SSU 07",1,{"$f":"_xlfn.CONCAT(Inventory_Table[[#This Row],[Form Factor]],Inventory_Table[[#This Row],[Current Location]])","v":"Wafer - 300mmSSU 07"},"2019-09-04","Test Program 148","Test Part Number","Test Lot # 148"]
["Wafer - 300mm","SSU 05",{"$f":"-Inventory_Table[[#This Row],[Quantity In]]","v":-1},"SSU 07",1,{"$f":"_xlfn.CONCAT(Inventory_Table[[#This Row],[Form Factor]],Inventory_Table[[#This Row],[Current Location]])","v":"Wafer - 300mmSSU 07"},"2019-09-04","Test Program 149","Test Part Number","Test Lot # 149"]
["Wafer - 300mm","SSU 06",{"$f":"-Inventory_Table[[#This Row],[Quantity In]]","v":-1},"SSU 07",1,{"$f":"_xlfn.CONCAT(Inventory_Table[[#This Row],[Form Factor]],Inventory_Table[[#This Row],[Current Location]])","v":"Wafer - 300mmSSU 07"},"2019-09-04","Test Program 150","Test Part Number","Test Lot # 150"]
["Wafer - 200mm","SSU 07",{"$f":"-Inventory_Table[[#This Row],[Quantity In]]","v":-1},"SSU 07",1,{"$f":"_xlfn.CONCAT(Inventory_Table[[#This Row],[Form Factor]],Inventory_Table[[#This Row],[Current Location]])","v":"Wafer - 200mmSSU 07"},"2019-09-04","Test Program 151","Test Part Number","Test Lot # 151"]
["Wafer - 200mm","SSU 08",{"$f":"-Inventory_Table[[#This Row],[Quantity In]]","v":-1},"SSU 07",1,{"$f":"_xlfn.CONCAT(Inventory_Table[[#This Row],[Form Factor]],Inventory_Table[[#This Row],[Current Location]])","v":"Wafer - 200mmSSU 07"},"2019-09-04","Test Program 152","Test Part Number","Test Lot # 152"]
["Wafer - 200mm","SSU 09",{"$f":"-Inventory_Table[[#This Row],[Quantity In]]","v":-1},"SSU 07",1,{"$f":"_xlfn.CONCAT(Inventory_Table[[#This Row],[Form Factor]],Inventory_Table[[#This Row],[Current Location]])","v":"Wafer - 200mmSSU 07"},"2019-09-04","Test Program 153","Test Part Number","Test Lot # 153"]
["Wafer - 200mm","SSU 10",{"$f":"-Inventory_Table[[#This Row],[Quantity In]]","v":-1},"SSU 07",1,{"$f":"_xlfn.CONCAT(Inventory_Table[[#This Row],[Form Factor]],Inventory_Table[[#This Row],[Current Location]])","v":"Wafer - 200mmSSU 07"},"2019-09-04","Test Program 154","Test Part Number","Test Lot # 154"]
["Wafer - 200mm","SSU 11",{"$f":"-Inventory_Table[[#This Row],[Quantity In]]","v":-1},"SSU 07",1,{"$f":"_xlfn.CONCAT(Inventory_Table[[#This Row],[Form Factor]],Inventory_Table[[#This Row],[Current Location]])","v":"Wafer - 200mmSSU 07"},"2019-09-04","Test Program 155","Test Part Number","Test Lot # 155"]
["Wafer - 200mm","SSU 12",{"$f":"-Inventory_Table[[#This Row],[Quantity In]]","v":-1},"SSU 07",1,{"$f":"_xlfn.CONCAT(Inventory_Table[[#This Row],[Form Factor]],Inventory_Table[[#This Row],[Current Location]])","v":"Wafer - 200mmSSU 07"},"2019-09-04","Test Program 156","Test Part Number","Test Lot # 156"]
["Wafer - 200mm","SSU 13",{"$f":"-Inventory_Table[[#This Row],[Quantity In]]","v":-1},"SSU 07",1,{"$f":"_xlfn.CONCAT(Inventory_Table[[#This Row],[Form Factor]],Inventory_Table[[#This Row],[Current Location]])","v":"Wafer - 200mmSSU 07"},"2019-09-04","Test Program 157","Test Part Number","Test Lot # 157"]
["Wafer - 200mm","SSU 14",{"$f":"-Inventory_Table[[#This Row],[Quantity In]]","v":-1},"SSU 07",1,{"$f":"_xlfn.CONCAT(Inventory_Table[[#This Row],[Form Factor]],Inventory_Table[[#This Row],[Current Location]])","v":"Wafer - 200mmSSU 07"},"2019-09-04","Test Program 158","Test Part Number","Test Lot # 158"]
["Wafer - 200mm","SSU 15",{"$f":"-Inventory_Table[[#This Row],[Quantity In]]","v":-1},"SSU 07",1,{"$f":"_xlfn.CONCAT(Inventory_Table[[#This Row],[Form Factor]],Inventory_Table[[#This Row],[Current Location]])","v":"Wafer - 200mmSSU 07"},"2019-09-04","Test Program 159","Test Part Number","Test Lot # 159"]
["Wafer - 200mm","SSU 16",{"$f":"-Inventory_Table[[#This Row],[Quantity In]]","v":-1},"SSU 07",1,{"$f":"_xlfn.CONCAT(Inventory_Table[[#This Row],[Form Factor]],Inventory_Table[[#This Row],[Current Location]])","v":"Wafer - 200mmSSU 07"},"2019-09-04","Test Program 160","Test Part Number","Test Lot # 160"]
["Wafer - 200mm","SSU 17",{"$f":"-Inventory_Table[[#This Row],[Quantity In]]","v":-1},"SSU 07",1,{"$f":"_xlfn.CONCAT(Inventory_Table[[#This Row],[Form Factor]],Inventory_Table[[#This Row],[Current Location]])","v":"Wafer - 200mmSSU 07"},"2019-09-04","Test Program 161","Test Part Number","Test Lot # 161"]
["Wafer - 200mm","SSU 18",{"$f":"-Inventory_Table[[#This Row],[Quantity In]]","v":-1},"SSU 07",1,{"$f":"_xlfn.CONCAT(Inventory_Table[[#This Row],[Form Factor]],Inventory_Table[[#This Row],[Current Location]])","v":"Wafer - 200mmSSU 07"},"2019-09-04","Test Program 162","Test Part Number","Test Lot # 162"]
["Wafer - 200mm","SSU 01",{"$f":"-Inventory_Table[[#This Row],[Quantity In]]","v":-1},"SSU 07",1,{"$f":"_xlfn.CONCAT(Inventory_Table[[#This Row],[Form Factor]],Inventory_Table[[#This Row],[Current Location]])","v":"Wafer - 200mmSSU 07"},"2019-09-04","Test Program 163","Test Part Number","Test Lot # 163"]
["Wafer - 200mm","SSU 02",{"$f":"-Inventory_Table[[#This Row],[Quantity In]]","v":-1},"SSU 07",1,{"$f":"_xlfn.CONCAT(Inventory_Table[[#This Row],[Form Factor]],Inventory_Table[[#This Row],[Current Location]])","v":"Wafer - 200mmSSU 07"},"2019-09-04","Test Program 164","Test Part Number","Test Lot # 164"]
["Wafer - 200mm","SSU 03",{"$f":"-Inventory_Table[[#This Row],[Quantity In]]","v":-1},"SSU 07",1,{"$f":"_xlfn.CONCAT(Inventory_Table[[#This Row],[Form Factor]],Inventory_Table[[#This Row],[Current Location]])","v":"Wafer - 200mmSSU 07"},"2019-09-04","Test Program 165","Test Part Number","Test Lot # 165"]
["Wafer - 200mm","SSU 04",{"$f":"-Inventory_Table[[#This Row],[Quantity In]]","v":-1},"SSU 07",1,{"$f":"_xlfn.CONCAT(Inventory_Table[[#This Row],[Form Factor]],Inventory_Table[[#This Row],[Current Location]])","v":"Wafer - 200mmSSU 07"},"2019-09-04","Test Program 166","Test Part Number","Test Lot # 166"]
["Wafer - 200mm","SSU 05",{"$f":"-Inventory_Table[[#This Row],[Quantity In]]","v":-1},"SSU 07",1,{"$f":"_xlfn.CONCAT(Inventory_Table[[#This Row],[Form Factor]],Inventory_Table[[#This Row],[Current Location]])","v":"Wafer - 200mmSSU 07"},"2019-09-04","Test Program 167","Test Part Number","Test Lot # 167"]
["Wafer - 200mm","SSU 06",{"$f":"-Inventory_Table[[#This Row],[Quantity In]]","v":-1},"SSU 07",1,{"$f":"_xlfn.CONCAT(Inventory_Table[[#This Row],[Form Factor]],Inventory_Table[[#This Row],[Current Location]])","v":"Wafer - 200mmSSU 07"},"2019-09-04","Test Program 168","Test Part Number","Test Lot # 168"]
["Wafer - 200mm","SSU 07",{"$f":"-Inventory_Table[[#This Row],[Quantity In]]","v":-1},"SSU 07",1,{"$f":"_xlfn.CONCAT(Inventory_Table[[#This Row],[Form Factor]],Inventory_Table[[#This Row],[Current Location]])","v":"Wafer - 200mmSSU 07"},"2019-09-04","Test Program 169","Test Part Number","Test Lot # 169"]
["Wafer - 200mm","SSU 08",{"$f":"-Inventory_Table[[#This Row],[Quantity In]]","v":-1},"SSU 07",1,{"$f":"_xlfn.CONCAT(Inventory_Table[[#This Row],[Form Factor]],Inventory_Table[[#This Row],[Current Location]])","v":"Wafer - 200mmSSU 07"},"2019-09-04","Test Program 170","Test Part Number","Test Lot # 170"]
["Wafer - 200mm","SSU 09",{"$f":"-Inventory_Table[[#This Row],[Quantity In]]","v":-1},"SSU 07",1,{"$f":"_xlfn.CONCAT(Inventory_Table[[#This Row],[Form Factor]],Inventory_Table[[#This Row],[Current Location]])","v":"Wafer - 200mmSSU 07"},"2019-09-04","Test Program 171","Test Part Number","Test Lot # 171"]
["Wafer - 200mm","SSU 10",{"$f":"-Inventory_Table[[#This Row],[Quantity In]]","v":-1},"SSU 07",1,{"$f":"_xlfn.CONCAT(Inventory_Table[[#This Row],[Form Factor]],Inventory_Table[[#This Row],[Current Location]])","v":"Wafer - 200mmSSU 07"},"2019-09-04","Test Program 172","Test Part Number","Test Lot # 172"]
["Wafer - 200mm","SSU 11",{"$f":"-Inventory_Table[[#This Row],[Quantity In]]","v":-1},"SSU 07",1,{"$f":"_xlfn.CONCAT(Inventory_Table[[#This Row],[Form Factor]],Inventory_Table[[#This Row],[Current Location]])","v":"Wafer - 200mmSSU 07"},"2019-09-04","Test Program 173","Test Part Number","Test Lot # 173"]
["Wafer - 200mm","SSU 12",{"$f":"-Inventory_Table[[#This Row],[Quantity In]]","v":-1},"SSU 07",1,{"$f":"_xlfn.CONCAT(Inventory_Table[[#This Row],[Form Factor]],Inventory_Table[[#This Row],[Current Location]])","v":"Wafer - 200mmSSU 07"},"2019-09-04","Test Program 174","Test Part Number","Test Lot # 174"]
["Wafer - 200mm","SSU 13",{"$f":"-Inventory_Table[[#This Row],[Quantity In]]","v":-1},"SSU 07",1,{"$f":"_xlfn.CONCAT(Inventory_Table[[#This Row],[Form Factor]],Inventory_Table[[#This Row],[Current Location]])","v":"Wafer - 200mmSSU 07"},"2019-09-04","Test Program 175","Test Part Number","Test Lot # 175"]
["Wafer - 200mm","SSU 14",{"$f":"-Inventory_Table[[#This Row],[Quantity In]]","v":-1},"SSU 07",1,{"$f":"_xlfn.CONCAT(Inventory_Table[[#This Row],[Form Factor]],Inventory_Table[[#This Row],[Current Location]])","v":"Wafer - 200mmSSU 07"},"2019-09-04","Test Program 176","Test Part Number","Test Lot # 176"]
["Wafer - 200mm","SSU 15",{"$f":"-Inventory_Table[[#This Row],[Quantity In]]","v":-1},"SSU 07",1,{"$f":"_xlfn.CONCAT(Inventory_Table[[#This Row],[Form Factor]],Inventory_Table[[#This Row],[Current Location]])","v":"Wafer - 200mmSSU 07"},"2019-09-04","Test Program 177","Test Part Number","Test Lot # 177"]
["Wafer - 200mm","SSU 16",{"$f":"-Inventory_Table[[#This Row],[Quantity In]]","v":-1},"SSU 07",1,{"$f":"_xlfn.CONCAT(Inventory_Table[[#This Row],[Form Factor]],Inventory_Table[[#This Row],[Current Location]])","v":"Wafer - 200mmSSU 07"},"2019-09-04","Test Program 178","Test Part Number","Test Lot # 178"]
["Wafer - 200mm","SSU 17",{"$f":"-Inventory_Table[[#This Row],[Quantity In]]","v":-1},"SSU 07",1,{"$f":"_xlfn.CONCAT(Inventory_Table[[#This Row],[Form Factor]],Inventory_Table[[#This Row],[Current Location]])","v":"Wafer - 200mmSSU 07"},"2019-09-04","Test Program 179","Test Part Number","Test Lot # 179"]
["Wafer - 200mm","SSU 18",{"$f":"-Inventory_Table[[#This Row],[Quantity In]]","v":-1},"SSU 07",1,{"$f":"_xlfn.CONCAT(Inventory_Table[[#This Row],[Form Factor]],Inventory_Table[[#This Row],[Current Location]])","v":"Wafer - 200mmSSU 07"},"2019-09-04","Test Program 180","Test Part Number","Test Lot # 180"]
["Wafer - 200mm","SSU 01",{"$f":"-Inventory_Table[[#This Row],[Quantity In]]","v":-1},"SSU 06",1,{"$f":"_xlfn.CONCAT(Inventory_Table[[#This Row],[Form Factor]],Inventory_Table[[#This Row],[Current Location]])","v":"Wafer - 200mmSSU 06"},"2019-09-10","Test Program 181","Test Part Number","Test Lot # 181"]
["Wafer - 200mm","SSU 02",{"$f":"-Inventory_Table[[#This Row],[Quantity In]]","v":-1},"SSU 16",1,{"$f":"_xlfn.CONCAT(Inventory_Table[[#This Row],[Form Factor]],Inventory_Table[[#This Row],[Current Location]])","v":"Wafer - 200mmSSU 16"},"2019-09-12","Test Program 182","Test Part Number","Test Lot # 182"]
["Module","SSU 03",{"$f":"-Inventory_Table[[#This Row],[Quantity In]]","v":-51},"Bromont - BMT",51,{"$f":"_xlfn.CONCAT(Inventory_Table[[#This Row],[Form Factor]],Inventory_Table[[#This Row],[Current Location]])","v":"ModuleBromont - BMT"},"2019-09-12","Test Program 183","Test Part Number","Test Lot # 183"]
["Wafer - 200mm","SSU 04",{"$f":"-Inventory_Table[[#This Row],[Quantity In]]","v":-1},"SSU 10",1,{"$f":"_xlfn.CONCAT(Inventory_Table[[#This Row],[Form Factor]],Inventory_Table[[#This Row],[Current Location]])","v":"Wafer - 200mmSSU 10"},"2019-09-17","Test Program 184","Test Part Number","Test Lot # 184"]
["Die","SSU 05",{"$f":"-Inventory_Table[[#This Row],[Quantity In]]","v":-1},"SSU 07A",1,{"$f":"_xlfn.CONCAT(Inventory_Table[[#This Row],[Form Factor]],Inventory_Table[[#This Row],[Current Location]])","v":"DieSSU 07A"},"2019-11-01","Test Program 185","Test Part Number","Test Lot # 185"]
["Die","SSU 06",{"$f":"-Inventory_Table[[#This Row],[Quantity In]]","v":-1},"SSU 07A",1,{"$f":"_xlfn.CONCAT(Inventory_Table[[#This Row],[Form Factor]],Inventory_Table[[#This Row],[Current Location]])","v":"DieSSU 07A"},"2019-11-01","Test Program 186","Test Part Number","Test Lot # 186"]
["Die","SSU 07",{"$f":"-Inventory_Table[[#This Row],[Quantity In]]","v":-1},"SSU 07A",1,{"$f":"_xlfn.CONCAT(Inventory_Table[[#This Row],[Form Factor]],Inventory_Table[[#This Row],[Current Location]])","v":"DieSSU 07A"},"2019-11-01","Test Program 187","Test Part Number","Test Lot # 187"]
["Module","SSU 08",{"$f":"-Inventory_Table[[#This Row],[Quantity In]]","v":-1},"SSU 07",1,{"$f":"_xlfn.CONCAT(Inventory_Table[[#This Row],[Form Factor]],Inventory_Table[[#This Row],[Current Location]])","v":"ModuleSSU 07"},"2019-11-06","Test Program 188","Test Part Number","Test Lot # 188"]
["Module","SSU 09",{"$f":"-Inventory_Table[[#This Row],[Quantity In]]","v":-5},"SSU 07",5,{"$f":"_xlfn.CONCAT(Inventory_Table[[#This Row],[Form Factor]],Inventory_Table[[#This Row],[Current Location]])","v":"ModuleSSU 07"},"2019-11-06","Test Program 189","Test Part Number","Test Lot # 189"]
["Wafer - Carcass","SSU 10",{"$f":"-Inventory_Table[[#This Row],[Quantity In]]","v":-2},"SSU 07",2,{"$f":"_xlfn.CONCAT(Inventory_Table[[#This Row],[Form Factor]],Inventory_Table[[#This Row],[Current Location]])","v":"Wafer - CarcassSSU 07"},"2019-11-12","Test Program 190","Test Part Number","Test Lot # 190"]
["Wafer - Carcass","SSU 11",{"$f":"-Inventory_Table[[#This Row],[Quantity In]]","v":-1},"SSU 07",1,{"$f":"_xlfn.CONCAT(Inventory_Table[[#This Row],[Form Factor]],Inventory_Table[[#This Row],[Current Location]])","v":"Wafer - CarcassSSU 07"},"2019-11-12","Test Program 191","Test Part Number","Test Lot # 191"]
["Wafer - Carcass","SSU 12",{"$f":"-Inventory_Table[[#This Row],[Quantity In]]","v":-4},"SSU 07",4,{"$f":"_xlfn.CONCAT(Inventory_Table[[#This Row],[Form Factor]],Inventory_Table[[#This Row],[Current Location]])","v":"Wafer - CarcassSSU 07"},"2019-11-12","Test Program 192","Test Part Number","Test Lot # 192"]
["Wafer - Carcass","SSU 13",{"$f":"-Inventory_Table[[#This Row],[Quantity In]]","v":-1},"SSU 07",1,{"$f":"_xlfn.CONCAT(Inventory_Table[[#This Row],[Form Factor]],Inventory_Table[[#This Row],[Current Location]])","v":"Wafer - CarcassSSU 07"},"2019-11-12","Test Program 193","Test Part Number","Test Lot # 193"]
["Wafer - 200mm","SSU 14",{"$f":"-Inventory_Table[[#This Row],[Quantity In]]","v":-1},"SSU 01",1,{"$f":"_xlfn.CONCAT(Inventory_Table[[#This Row],[Form Factor]],Inventory_Table[[#This Row],[Current Location]])","v":"Wafer - 200mmSSU 01"},"2019-11-24","Test Program 194","Test Part Number","Test Lot # 194"]
["Wafer - 200mm","SSU 15",{"$f":"-Inventory_Table[[#This Row],[Quantity In]]","v":-1},"SSU 01",1,{"$f":"_xlfn.CONCAT(Inventory_Table[[#This Row],[Form Factor]],Inventory_Table[[#This Row],[Current Location]])","v":"Wafer - 200mmSSU 01"},"2019-11-30","Test Program 195","Test Part Number","Test Lot # 195"]
["Wafer - 200mm","SSU 16",{"$f":"-Inventory_Table[[#This Row],[Quantity In]]","v":-1},"SSU 01",1,{"$f":"_xlfn.CONCAT(Inventory_Table[[#This Row],[Form Factor]],Inventory_Table[[#This Row],[Current Location]])","v":"Wafer - 200mmSSU 01"},"2019-11-30","Test Program 196","Test Part Number","Test Lot # 196"]
["Wafer - 200mm","SSU 17",{"$f":"-Inventory_Table[[#This Row],[Quantity In]]","v":-1},"SSU 01",1,{"$f":"_xlfn.CONCAT(Inventory_Table[[#This Row],[Form Factor]],Inventory_Table[[#This Row],[Current Location]])","v":"Wafer - 200mmSSU 01"},"2019-12-01","Test Program 197","Test Part Number","Test Lot # 197"]
["Die","SSU 18",{"$f":"-Inventory_Table[[#This Row],[Quantity In]]","v":-286},"SSU 16",286,{"$f":"_xlfn.CONCAT(Inventory_Table[[#This Row],[Form Factor]],Inventory_Table[[#This Row],[Current Location]])","v":"DieSSU 16"},"2019-12-02","Test Program 198","Test Part Number","Test Lot # 198"]
["Module","SSU 01",{"$f":"-Inventory_Table[[#This Row],[Quantity In]]","v":-1},"SSU 07A",1,{"$f":"_xlfn.CONCAT(Inventory_Table[[#This Row],[Form Factor]],Inventory_Table[[#This Row],[Current Location]])","v":"ModuleSSU 07A"},"2019-12-03","Test Program 199","Test Part Number","Test Lot # 199"]
["Module","SSU 02",{"$f":"-Inventory_Table[[#This Row],[Quantity In]]","v":-2},"SSU 07A",2,{"$f":"_xlfn.CONCAT(Inventory_Table[[#This Row],[Form Factor]],Inventory_Table[[#This Row],[Current Location]])","v":"ModuleSSU 07A"},"2019-12-03","Test Program 200","Test Part Number","Test Lot # 200"]
["Module","SSU 03",{"$f":"-Inventory_Table[[#This Row],[Quantity In]]","v":-1},"SSU 07A",1,{"$f":"_xlfn.CONCAT(Inventory_Table[[#This Row],[Form Factor]],Inventory_Table[[#This Row],[Current Location]])","v":"ModuleSSU 07A"},"2019-12-03","Test Program 201","Test Part Number","Test Lot # 201"]
["Module","SSU 04",{"$f":"-Inventory_Table[[#This Row],[Quantity In]]","v":-1},"SSU 07A",1,{"$f":"_xlfn.CONCAT(Inventory_Table[[#This Row],[Form Factor]],Inventory_Table[[#This Row],[Current Location]])","v":"ModuleSSU 07A"},"2019-12-03","Test Program 202","Test Part Number","Test Lot # 202"]
["Module","SSU 05",{"$f":"-Inventory_Table[[#This Row],[Quantity In]]","v":-2},"SSU 07A",2,{"$f":"_xlfn.CONCAT(Inventory_Table[[#This Row],[Form Factor]],Inventory_Table[[#This Row],[Current Location]])","v":"ModuleSSU 07A"},"2019-12-03","Test Program 203","Test Part Number","Test Lot # 203"]
["Module","SSU 06",{"$f":"-Inventory_Table[[#This Row],[Quantity In]]","v":-1},"SSU 07A",1,{"$f":"_xlfn.CONCAT(Inventory_Table[[#This Row],[Form Factor]],Inventory_Table[[#This Row],[Current Location]])","v":"ModuleSSU 07A"},"2019-12-03","Test Program 204","Test Part Number","Test Lot # 204"]
["Module","SSU 07",{"$f":"-Inventory_Table[[#This Row],[Quantity In]]","v":-1},"SSU 07A",1,{"$f":"_xlfn.CONCAT(Inventory_Table[[#This Row],[Form Factor]],Inventory_Table[[#This Row],[Current Location]])","v":"ModuleSSU 07A"},"2019-12-03","Test Program 205","Test Part Number","Test Lot # 205"]
["Module","SSU 08",{"$f":"-Inventory_Table[[#This Row],[Quantity In]]","v":-1},"SSU 07A",1,{"$f":"_xlfn.CONCAT(Inventory_Table[[#This Row],[Form Factor]],Inventory_Table[[#This Row],[Current Location]])","v":"ModuleSSU 07A"},"2019-12-03","Test Program 206","Test Part Number","Test Lot # 206"]
["Module","SSU 09",{"$f":"-Inventory_Table[[#This Row],[Quantity In]]","v":-1},"SSU 07A",1,{"$f":"_xlfn.CONCAT(Inventory_Table[[#This Row],[Form Factor]],Inventory_Table[[#This Row],[Current Location]])","v":"ModuleSSU 07A"},"2019-12-03","Test Program 207","Test Part Number","Test Lot # 207"]
["Module","SSU 10",{"$f":"-Inventory_Table[[#This Row],[Quantity In]]","v":-4},"SSU 07A",4,{"$f":"_xlfn.CONCAT(Inventory_Table[[#This Row],[Form Factor]],Inventory_Table[[#This Row],[Current Location]])","v":"ModuleSSU 07A"},"2019-12-03","Test Program 208","Test Part Number","Test Lot # 208"]
["Die","SSU 11",{"$f":"-Inventory_Table[[#This Row],[Quantity In]]","v":-4},"SSU 07A",4,{"$f":"_xlfn.CONCAT(Inventory_Table[[#This Row],[Form Factor]],Inventory_Table[[#This Row],[Current Location]])","v":"DieSSU 07A"},"2019-12-03","Test Program 209","Test Part Number","Test Lot # 209"]
["Die","SSU 12",{"$f":"-Inventory_Table[[#This Row],[Quantity In]]","v":-1},"SSU 07A",1,{"$f":"_xlfn.CONCAT(Inventory_Table[[#This Row],[Form Factor]],Inventory_Table[[#This Row],[Current Location]])","v":"DieSSU 07A"},"2019-12-03","Test Program 210","Test Part Number","Test Lot # 210"]
["Module","SSU 13",{"$f":"-Inventory_Table[[#This Row],[Quantity In]]","v":-425},"SSU 07A",425,{"$f":"_xlfn.CONCAT(Inventory_Table[[#This Row],[Form Factor]],Inventory_Table[[#This Row],[Current Location]])","v":"ModuleSSU 07A"},"2019-12-03","Test Program 211","Test Part Number","Test Lot # 211"]
["Wafer - 200mm","SSU 14",{"$f":"-Inventory_Table[[#This Row],[Quantity In]]","v":-1},"SSU 01",1,{"$f":"_xlfn.CONCAT(Inventory_Table[[#This Row],[Form Factor]],Inventory_Table[[#This Row],[Current Location]])","v":"Wafer - 200mmSSU 01"},"2019-12-04","Test Program 212","Test Part Number","Test Lot # 212"]
["Wafer - 200mm","SSU 15",{"$f":"-Inventory_Table[[#This Row],[Quantity In]]","v":-1},"SSU 01",1,{"$f":"_xlfn.CONCAT(Inventory_Table[[#This Row],[Form Factor]],Inventory_Table[[#This Row],[Current Location]])","v":"Wafer - 200mmSSU 01"},"2019-12-04","Test Program 213","Test Part Number","Test Lot # 213"]
["Wafer - 200mm","SSU 16",{"$f":"-Inventory_Table[[#This Row],[Quantity In]]","v":-1},"SSU 01",1,{"$f":"_xlfn.CONCAT(Inventory_Table[[#This Row],[Form Factor]],Inventory_Table[[#This Row],[Current Location]])","v":"Wafer - 200mmSSU 01"},"2019-12-05","Test Program 214","Test Part Number","Test Lot # 214"]
["Wafer - 200mm","SSU 17",{"$f":"-Inventory_Table[[#This Row],[Quantity In]]","v":-1},"SSU 01",1,{"$f":"_xlfn.CONCAT(Inventory_Table[[#This Row],[Form Factor]],Inventory_Table[[#This Row],[Current Location]])","v":"Wafer - 200mmSSU 01"},"2019-12-05","Test Program 215","Test Part Number","Test Lot # 215"]
["Module","SSU 18",{"$f":"-Inventory_Table[[#This Row],[Quantity In]]","v":-4},"SSU 07A",4,{"$f":"_xlfn.CONCAT(Inventory_Table[[#This Row],[Form Factor]],Inventory_Table[[#This Row],[Current Location]])","v":"ModuleSSU 07A"},"2019-12-05","Test Program 216","Test Part Number","Test Lot # 216"]
["Module","SSU 17",{"$f":"-Inventory_Table[[#This Row],[Quantity In]]","v":-2},"SSU 07A",2,{"$f":"_xlfn.CONCAT(Inventory_Table[[#This Row],[Form Factor]],Inventory_Table[[#This Row],[Current Location]])","v":"ModuleSSU 07A"},"2019-12-05","Test Program 217","Test Part Number","Test Lot # 217"]
["Module","SSU 18",{"$f":"-Inventory_Table[[#This Row],[Quantity In]]","v":-2},"SSU 07A",2,{"$f":"_xlfn.CONCAT(Inventory_Table[[#This Row],[Form Factor]],Inventory_Table[[#This Row],[Current Location]])","v":"ModuleSSU 07A"},"2019-12-05","Test Program 218","Test Part Number","Test Lot # 218"]
["Module","SSU 01",{"$f":"-Inventory_Table[[#This Row],[Quantity In]]","v":-4},"SSU 07A",4,{"$f":"_xlfn.CONCAT(Inventory_Table[[#This Row],[Form Factor]],Inventory_Table[[#This Row],[Current Location]])","v":"ModuleSSU 07A"},"2019-12-05","Test Program 219","Test Part Number","Test Lot # 219"]
["Module","SSU 02",{"$f":"-Inventory_Table[[#This Row],[Quantity In]]","v":-2},"SSU 07A",2,{"$f":"_xlfn.CONCAT(Inventory_Table[[#This Row],[Form Factor]],Inventory_Table[[#This Row],[Current Location]])","v":"ModuleSSU 07A"},"2019-12-05","Test Program 220","Test Part Number","Test Lot # 220"]
["Module","SSU 03",{"$f":"-Inventory_Table[[#This Row],[Quantity In]]","v":-2},"SSU 07A",2,{"$f":"_xlfn.CONCAT(Inventory_Table[[#This Row],[Form Factor]],Inventory_Table[[#This Row],[Current Location]])","v":"ModuleSSU 07A"},"2019-12-05","Test Program 221","Test Part Number","Test Lot # 221"]
["Module","SSU 04",{"$f":"-Inventory_Table[[#This Row],[Quantity In]]","v":-1},"SSU 07A",1,{"$f":"_xlfn.CONCAT(Inventory_Table[[#This Row],[Form Factor]],Inventory_Table[[#This Row],[Current Location]])","v":"ModuleSSU 07A"},"2019-12-05","Test Program 222","Test Part Number","Test Lot # 222"]
["Module","SSU 05",{"$f":"-Inventory_Table[[#This Row],[Quantity In]]","v":-1},"SSU 07A",1,{"$f":"_xlfn.CONCAT(Inventory_Table[[#This Row],[Form Factor]],Inventory_Table[[#This Row],[Current Location]])","v":"ModuleSSU 07A"},"2019-12-05","Test Program 223","Test Part Number","Test Lot # 223"]
["Wafer - 200mm","SSU 06",{"$f":"-Inventory_Table[[#This Row],[Quantity In]]","v":-1},"SSU 01",1,{"$f":"_xlfn.CONCAT(Inventory_Table[[#This Row],[Form Factor]],Inventory_Table[[#This Row],[Current Location]])","v":"Wafer - 200mmSSU 01"},"2019-12-06","Test Program 224","Test Part Number","Test Lot # 224"]
["Wafer - 200mm","SSU 07",{"$f":"-Inventory_Table[[#This Row],[Quantity In]]","v":-1},"SSU 01",1,{"$f":"_xlfn.CONCAT(Inventory_Table[[#This Row],[Form Factor]],Inventory_Table[[#This Row],[Current Location]])","v":"Wafer - 200mmSSU 01"},"2019-12-07","Test Program 225","Test Part Number","Test Lot # 225"]
["Wafer - 200mm","SSU 08",{"$f":"-Inventory_Table[[#This Row],[Quantity In]]","v":-1},"SSU 01",1,{"$f":"_xlfn.CONCAT(Inventory_Table[[#This Row],[Form Factor]],Inventory_Table[[#This Row],[Current Location]])","v":"Wafer - 200mmSSU 01"},"2019-12-08","Test Program 226","Test Part Number","Test Lot # 226"]
["Wafer - 200mm","SSU 09",{"$f":"-Inventory_Table[[#This Row],[Quantity In]]","v":-1},"SSU 01",1,{"$f":"_xlfn.CONCAT(Inventory_Table[[#This Row],[Form Factor]],Inventory_Table[[#This Row],[Current Location]])","v":"Wafer - 200mmSSU 01"},"2019-12-08","Test Program 227","Test Part Number","Test Lot # 227"]
["Wafer - 200mm","SSU 10",{"$f":"-Inventory_Table[[#This Row],[Quantity In]]","v":-1},"SSU 01",1,{"$f":"_xlfn.CONCAT(Inventory_Table[[#This Row],[Form Factor]],Inventory_Table[[#This Row],[Current Location]])","v":"Wafer - 200mmSSU 01"},"2019-12-10","Test Program 228","Test Part Number","Test Lot # 228"]
["Module","SSU 11",{"$f":"-Inventory_Table[[#This Row],[Quantity In]]","v":-3},"SSU 07A",3,{"$f":"_xlfn.CONCAT(Inventory_Table[[#This Row],[Form Factor]],Inventory_Table[[#This Row],[Current Location]])","v":"ModuleSSU 07A"},"2019-12-11","Test Program 229","Test Part Number","Test Lot # 229"]
["Module","SSU 12",{"$f":"-Inventory_Table[[#This Row],[Quantity In]]","v":-4},"SSU 07A",4,{"$f":"_xlfn.CONCAT(Inventory_Table[[#This Row],[Form Factor]],Inventory_Table[[#This Row],[Current Location]])","v":"ModuleSSU 07A"},"2019-12-11","Test Program 230","Test Part Number","Test Lot # 230"]
["Wafer - 200mm","SSU 13",{"$f":"-Inventory_Table[[#This Row],[Quantity In]]","v":-1},"SSU 01",1,{"$f":"_xlfn.CONCAT(Inventory_Table[[#This Row],[Form Factor]],Inventory_Table[[#This Row],[Current Location]])","v":"Wafer - 200mmSSU 01"},"2019-12-12","Test Program 231","Test Part Number","Test Lot # 231"]
["Module","SSU 14",{"$f":"-Inventory_Table[[#This Row],[Quantity In]]","v":-1},"SSU 07A",1,{"$f":"_xlfn.CONCAT(Inventory_Table[[#This Row],[Form Factor]],Inventory_Table[[#This Row],[Current Location]])","v":"ModuleSSU 07A"},"2019-12-13","Test Program 232","Test Part Number","Test Lot # 232"]
["Module","SSU 15",{"$f":"-Inventory_Table[[#This Row],[Quantity In]]","v":-3},"SSU 07A",3,{"$f":"_xlfn.CONCAT(Inventory_Table[[#This Row],[Form Factor]],Inventory_Table[[#This Row],[Current Location]])","v":"ModuleSSU 07A"},"2019-12-13","Test Program 233","Test Part Number","Test Lot # 233"]
["Wafer - 200mm","SSU 16",{"$f":"-Inventory_Table[[#This Row],[Quantity In]]","v":-1},"SSU 01",1,{"$f":"_xlfn.CONCAT(Inventory_Table[[#This Row],[Form Factor]],Inventory_Table[[#This Row],[Current Location]])","v":"Wafer - 200mmSSU 01"},"2019-12-14","Test Program 234","Test Part Number","Test Lot # 234"]
["Wafer - 200mm","SSU 17",{"$f":"-Inventory_Table[[#This Row],[Quantity In]]","v":-1},"SSU 01",1,{"$f":"_xlfn.CONCAT(Inventory_Table[[#This Row],[Form Factor]],Inventory_Table[[#This Row],[Current Location]])","v":"Wafer - 200mmSSU 01"},"2019-12-15","Test Program 235","Test Part Number","Test Lot # 235"]
["Module","SSU 18",{"$f":"-Inventory_Table[[#This Row],[Quantity In]]","v":-10},"SSU 07A",10,{"$f":"_xlfn.CONCAT(Inventory_Table[[#This Row],[Form Factor]],Inventory_Table[[#This Row],[Current Location]])","v":"ModuleSSU 07A"},"2019-12-17","Test Program 236","Test Part Number","Test Lot # 236"]
["Die","SSU 01",{"$f":"-Inventory_Table[[#This Row],[Quantity In]]","v":-1},"SSU 07A",1,{"$f":"_xlfn.CONCAT(Inventory_Table[[#This Row],[Form Factor]],Inventory_Table[[#This Row],[Current Location]])","v":"DieSSU 07A"},"2019-12-17","Test Program 237","Test Part Number","Test Lot # 237"]
["Die","SSU 02",{"$f":"-Inventory_Table[[#This Row],[Quantity In]]","v":-11},"SSU 07A",11,{"$f":"_xlfn.CONCAT(Inventory_Table[[#This Row],[Form Factor]],Inventory_Table[[#This Row],[Current Location]])","v":"DieSSU 07A"},"2019-12-17","Test Program 238","Test Part Number","Test Lot # 238"]
["Die","SSU 03",{"$f":"-Inventory_Table[[#This Row],[Quantity In]]","v":-1},"SSU 07A",1,{"$f":"_xlfn.CONCAT(Inventory_Table[[#This Row],[Form Factor]],Inventory_Table[[#This Row],[Current Location]])","v":"DieSSU 07A"},"2019-12-17","Test Program 239","Test Part Number","Test Lot # 239"]
["Die","SSU 04",{"$f":"-Inventory_Table[[#This Row],[Quantity In]]","v":-61},"SSU 07A",61,{"$f":"_xlfn.CONCAT(Inventory_Table[[#This Row],[Form Factor]],Inventory_Table[[#This Row],[Current Location]])","v":"DieSSU 07A"},"2019-12-17","Test Program 240","Test Part Number","Test Lot # 240"]
["Die","SSU 05",{"$f":"-Inventory_Table[[#This Row],[Quantity In]]","v":-74},"SSU 07A",74,{"$f":"_xlfn.CONCAT(Inventory_Table[[#This Row],[Form Factor]],Inventory_Table[[#This Row],[Current Location]])","v":"DieSSU 07A"},"2019-12-17","Test Program 241","Test Part Number","Test Lot # 241"]
["Die","SSU 06",{"$f":"-Inventory_Table[[#This Row],[Quantity In]]","v":-59},"SSU 07A",59,{"$f":"_xlfn.CONCAT(Inventory_Table[[#This Row],[Form Factor]],Inventory_Table[[#This Row],[Current Location]])","v":"DieSSU 07A"},"2019-12-17","Test Program 242","Test Part Number","Test Lot # 242"]
["Die","SSU 07",{"$f":"-Inventory_Table[[#This Row],[Quantity In]]","v":-70},"SSU 07A",70,{"$f":"_xlfn.CONCAT(Inventory_Table[[#This Row],[Form Factor]],Inventory_Table[[#This Row],[Current Location]])","v":"DieSSU 07A"},"2019-12-17","Test Program 243","Test Part Number","Test Lot # 243"]
["Die","SSU 08",{"$f":"-Inventory_Table[[#This Row],[Quantity In]]","v":-71},"SSU 07A",71,{"$f":"_xlfn.CONCAT(Inventory_Table[[#This Row],[Form Factor]],Inventory_Table[[#This Row],[Current Location]])","v":"DieSSU 07A"},"2019-12-17","Test Program 244","Test Part Number","Test Lot # 244"]
["Die","SSU 09",{"$f":"-Inventory_Table[[#This Row],[Quantity In]]","v":-37},"SSU 07A",37,{"$f":"_xlfn.CONCAT(Inventory_Table[[#This Row],[Form Factor]],Inventory_Table[[#This Row],[Current Location]])","v":"DieSSU 07A"},"2019-12-17","Test Program 245","Test Part Number","Test Lot # 245"]
["Die","SSU 10",{"$f":"-Inventory_Table[[#This Row],[Quantity In]]","v":-66},"SSU 07A",66,{"$f":"_xlfn.CONCAT(Inventory_Table[[#This Row],[Form Factor]],Inventory_Table[[#This Row],[Current Location]])","v":"DieSSU 07A"},"2019-12-17","Test Program 246","Test Part Number","Test Lot # 246"]
["Die","SSU 11",{"$f":"-Inventory_Table[[#This Row],[Quantity In]]","v":-22},"SSU 07A",22,{"$f":"_xlfn.CONCAT(Inventory_Table[[#This Row],[Form Factor]],Inventory_Table[[#This Row],[Current Location]])","v":"DieSSU 07A"},"2019-12-17","Test Program 247","Test Part Number","Test Lot # 247"]
["Die","SSU 12",{"$f":"-Inventory_Table[[#This Row],[Quantity In]]","v":-28},"SSU 07A",28,{"$f":"_xlfn.CONCAT(Inventory_Table[[#This Row],[Form Factor]],Inventory_Table[[#This Row],[Current Location]])","v":"DieSSU 07A"},"2019-12-17","Test Program 248","Test Part Number","Test Lot # 248"]
["Die","SSU 13",{"$f":"-Inventory_Table[[#This Row],[Quantity In]]","v":-17},"SSU 07A",17,{"$f":"_xlfn.CONCAT(Inventory_Table[[#This Row],[Form Factor]],Inventory_Table[[#This Row],[Current Location]])","v":"DieSSU 07A"},"2019-12-17","Test Program 249","Test Part Number","Test Lot # 249"]
["Die","SSU 14",{"$f":"-Inventory_Table[[#This Row],[Quantity In]]","v":-22},"SSU 07A",22,{"$f":"_xlfn.CONCAT(Inventory_Table[[#This Row],[Form Factor]],Inventory_Table[[#This Row],[Current Location]])","v":"DieSSU 07A"},"2019-12-17","Test Program 250","Test Part Number","Test Lot # 250"]
["Die","SSU 15",{"$f":"-Inventory_Table[[#This Row],[Quantity In]]","v":-21},"SSU 07A",21,{"$f":"_xlfn.CONCAT(Inventory_Table[[#This Row],[Form Factor]],Inventory_Table[[#This Row],[Current Location]])","v":"DieSSU 07A"},"2019-12-17","Test Program 251","Test Part Number","Test Lot # 251"]
["Die","SSU 16",{"$f":"-Inventory_Table[[#This Row],[Quantity In]]","v":-90},"SSU 07A",90,{"$f":"_xlfn.CONCAT(Inventory_Table[[#This Row],[Form Factor]],Inventory_Table[[#This Row],[Current Location]])","v":"DieSSU 07A"},"2019-12-17","Test Program 252","Test Part Number","Test Lot # 252"]
["Die","SSU 17",{"$f":"-Inventory_Table[[#This Row],[Quantity In]]","v":-173},"SSU 07A",173,{"$f":"_xlfn.CONCAT(Inventory_Table[[#This Row],[Form Factor]],Inventory_Table[[#This Row],[Current Location]])","v":"DieSSU 07A"},"2019-12-17","Test Program 253","Test Part Number","Test Lot # 253"]
["Die","SSU 18",{"$f":"-Inventory_Table[[#This Row],[Quantity In]]","v":-93},"SSU 07A",93,{"$f":"_xlfn.CONCAT(Inventory_Table[[#This Row],[Form Factor]],Inventory_Table[[#This Row],[Current Location]])","v":"DieSSU 07A"},"2019-12-17","Test Program 254","Test Part Number","Test Lot # 254"]
["Die","SSU 01",{"$f":"-Inventory_Table[[#This Row],[Quantity In]]","v":-95},"SSU 07A",95,{"$f":"_xlfn.CONCAT(Inventory_Table[[#This Row],[Form Factor]],Inventory_Table[[#This Row],[Current Location]])","v":"DieSSU 07A"},"2019-12-17","Test Program 255","Test Part Number","Test Lot # 255"]
["Die","SSU 02",{"$f":"-Inventory_Table[[#This Row],[Quantity In]]","v":-13},"SSU 07A",13,{"$f":"_xlfn.CONCAT(Inventory_Table[[#This Row],[Form Factor]],Inventory_Table[[#This Row],[Current Location]])","v":"DieSSU 07A"},"2019-12-17","Test Program 256","Test Part Number","Test Lot # 256"]
["Die","SSU 03",{"$f":"-Inventory_Table[[#This Row],[Quantity In]]","v":-15},"SSU 07A",15,{"$f":"_xlfn.CONCAT(Inventory_Table[[#This Row],[Form Factor]],Inventory_Table[[#This Row],[Current Location]])","v":"DieSSU 07A"},"2019-12-17","Test Program 257","Test Part Number","Test Lot # 257"]
["Die","SSU 04",{"$f":"-Inventory_Table[[#This Row],[Quantity In]]","v":-5},"SSU 07A",5,{"$f":"_xlfn.CONCAT(Inventory_Table[[#This Row],[Form Factor]],Inventory_Table[[#This Row],[Current Location]])","v":"DieSSU 07A"},"2019-12-17","Test Program 258","Test Part Number","Test Lot # 258"]
["Die","SSU 05",{"$f":"-Inventory_Table[[#This Row],[Quantity In]]","v":-16},"SSU 07A",16,{"$f":"_xlfn.CONCAT(Inventory_Table[[#This Row],[Form Factor]],Inventory_Table[[#This Row],[Current Location]])","v":"DieSSU 07A"},"2019-12-17","Test Program 259","Test Part Number","Test Lot # 259"]
["Die","SSU 06",{"$f":"-Inventory_Table[[#This Row],[Quantity In]]","v":-2},"SSU 07A",2,{"$f":"_xlfn.CONCAT(Inventory_Table[[#This Row],[Form Factor]],Inventory_Table[[#This Row],[Current Location]])","v":"DieSSU 07A"},"2019-12-17","Test Program 260","Test Part Number","Test Lot # 260"]
["Module","SSU 07",{"$f":"-Inventory_Table[[#This Row],[Quantity In]]","v":-2},"SSU 07A",2,{"$f":"_xlfn.CONCAT(Inventory_Table[[#This Row],[Form Factor]],Inventory_Table[[#This Row],[Current Location]])","v":"ModuleSSU 07A"},"2019-12-17","Test Program 261","Test Part Number","Test Lot # 261"]
["Module","SSU 08",{"$f":"-Inventory_Table[[#This Row],[Quantity In]]","v":-1},"SSU 07A",1,{"$f":"_xlfn.CONCAT(Inventory_Table[[#This Row],[Form Factor]],Inventory_Table[[#This Row],[Current Location]])","v":"ModuleSSU 07A"},"2019-12-17","Test Program 262","Test Part Number","Test Lot # 262"]
["Module","SSU 09",{"$f":"-Inventory_Table[[#This Row],[Quantity In]]","v":-1},"SSU 07A",1,{"$f":"_xlfn.CONCAT(Inventory_Table[[#This Row],[Form Factor]],Inventory_Table[[#This Row],[Current Location]])","v":"ModuleSSU 07A"},"2019-12-17","Test Program 263","Test Part Number","Test Lot # 263"]
["Module","SSU 10",{"$f":"-Inventory_Table[[#This Row],[Quantity In]]","v":-1},"SSU 07A",1,{"$f":"_xlfn.CONCAT(Inventory_Table[[#This Row],[Form Factor]],Inventory_Table[[#This Row],[Current Location]])","v":"ModuleSSU 07A"},"2019-12-17","Test Program 264","Test Part Number","Test Lot # 264"]
["Module","SSU 11",{"$f":"-Inventory_Table[[#This Row],[Quantity In]]","v":-2},"SSU 07A",2,{"$f":"_xlfn.CONCAT(Inventory_Table[[#This Row],[Form Factor]],Inventory_Table[[#This Row],[Current Location]])","v":"ModuleSSU 07A"},"2019-12-17","Test Program 265","Test Part Number","Test Lot # 265"]
["Module","SSU 12",{"$f":"-Inventory_Table[[#This Row],[Quantity In]]","v":-3},"SSU 07A",3,{"$f":"_xlfn.CONCAT(Inventory_Table[[#This Row],[Form Factor]],Inventory_Table[[#This Row],[Current Location]])","v":"ModuleSSU 07A"},"2019-12-17","Test Program 266","Test Part Number","Test Lot # 266"]
["Wafer - 200mm","SSU 13",{"$f":"-Inventory_Table[[#This Row],[Quantity In]]","v":-1},"SSU 02",1,{"$f":"_xlfn.CONCAT(Inventory_Table[[#This Row],[Form Factor]],Inventory_Table[[#This Row],[Current Location]])","v":"Wafer - 200mmSSU 02"},"2019-12-18","Test Program 267","Test Part Number","Test Lot # 267"]
["Wafer - 200mm","SSU 14",{"$f":"-Inventory_Table[[#This Row],[Quantity In]]","v":-1},"SSU 07",1,{"$f":"_xlfn.CONCAT(Inventory_Table[[#This Row],[Form Factor]],Inventory_Table[[#This Row],[Current Location]])","v":"Wafer - 200mmSSU 07"},"2019-12-21","Test Program 268","Test Part Number","Test Lot # 268"]
["Wafer - 200mm","SSU 15",{"$f":"-Inventory_Table[[#This Row],[Quantity In]]","v":-1},"SSU 07",1,{"$f":"_xlfn.CONCAT(Inventory_Table[[#This Row],[Form Factor]],Inventory_Table[[#This Row],[Current Location]])","v":"Wafer - 200mmSSU 07"},"2019-12-21","Test Program 269","Test Part Number","Test Lot # 269"]
["Wafer - 200mm","SSU 16",{"$f":"-Inventory_Table[[#This Row],[Quantity In]]","v":-1},"SSU 07",1,{"$f":"_xlfn.CONCAT(Inventory_Table[[#This Row],[Form Factor]],Inventory_Table[[#This Row],[Current Location]])","v":"Wafer - 200mmSSU 07"},"2019-12-21","Test Program 270","Test Part Number","Test Lot # 270"]
["Wafer - 200mm","SSU 17",{"$f":"-Inventory_Table[[#This Row],[Quantity In]]","v":-1},"SSU 07",1,{"$f":"_xlfn.CONCAT(Inventory_Table[[#This Row],[Form Factor]],Inventory_Table[[#This Row],[Current Location]])","v":"Wafer - 200mmSSU 07"},"2019-12-21","Test Program 271","Test Part Number","Test Lot # 271"]
["Wafer - 200mm","SSU 17",{"$f":"-Inventory_Table[[#This Row],[Quantity In]]","v":-1},"SSU 07",1,{"$f":"_xlfn.CONCAT(Inventory_Table[[#This Row],[Form Factor]],Inventory_Table[[#This Row],[Current Location]])","v":"Wafer - 200mmSSU 07"},"2019-12-21","Test Program 272","Test Part Number","Test Lot # 272"]
["Wafer - 200mm","SSU 18",{"$f":"-Inventory_Table[[#This Row],[Quantity In]]","v":-1},"SSU 07",1,{"$f":"_xlfn.CONCAT(Inventory_Table[[#This Row],[Form Factor]],Inventory_Table[[#This Row],[Current Location]])","v":"Wafer - 200mmSSU 07"},"2019-12-21","Test Program 273","Test Part Number","Test Lot # 273"]
["Wafer - 300mm","SSU 01",{"$f":"-Inventory_Table[[#This Row],[Quantity In]]","v":-1},"SSU 07",1,{"$f":"_xlfn.CONCAT(Inventory_Table[[#This Row],[Form Factor]],Inventory_Table[[#This Row],[Current Location]])","v":"Wafer - 300mmSSU 07"},"2019-12-21","Test Program 274","Test Part Number","Test Lot # 274"]
["Wafer - 200mm","SSU 02",{"$f":"-Inventory_Table[[#This Row],[Quantity In]]","v":-1},"SSU 01",1,{"$f":"_xlfn.CONCAT(Inventory_Table[[#This Row],[Form Factor]],Inventory_Table[[#This Row],[Current Location]])","v":"Wafer - 200mmSSU 01"},"2019-12-21","Test Program 275","Test Part Number","Test Lot # 275"]
["Wafer - Carcass","SSU 03",{"$f":"-Inventory_Table[[#This Row],[Quantity In]]","v":-2},"SSU 07",2,{"$f":"_xlfn.CONCAT(Inventory_Table[[#This Row],[Form Factor]],Inventory_Table[[#This Row],[Current Location]])","v":"Wafer - CarcassSSU 07"},"2019-12-24","Test Program 276","Test Part Number","Test Lot # 276"]
["Wafer - Carcass","SSU 04",{"$f":"-Inventory_Table[[#This Row],[Quantity In]]","v":-1},"SSU 07",1,{"$f":"_xlfn.CONCAT(Inventory_Table[[#This Row],[Form Factor]],Inventory_Table[[#This Row],[Current Location]])","v":"Wafer - CarcassSSU 07"},"2019-12-24","Test Program 277","Test Part Number","Test Lot # 277"]
["Wafer - Carcass","SSU 05",{"$f":"-Inventory_Table[[#This Row],[Quantity In]]","v":-2},"SSU 07",2,{"$f":"_xlfn.CONCAT(Inventory_Table[[#This Row],[Form Factor]],Inventory_Table[[#This Row],[Current Location]])","v":"Wafer - CarcassSSU 07"},"2019-12-24","Test Program 278","Test Part Number","Test Lot # 278"]
["Wafer - Carcass","SSU 06",{"$f":"-Inventory_Table[[#This Row],[Quantity In]]","v":-5},"SSU 07",5,{"$f":"_xlfn.CONCAT(Inventory_Table[[#This Row],[Form Factor]],Inventory_Table[[#This Row],[Current Location]])","v":"Wafer - CarcassSSU 07"},"2019-12-24","Test Program 279","Test Part Number","Test Lot # 279"]
["Wafer - Carcass","SSU 07",{"$f":"-Inventory_Table[[#This Row],[Quantity In]]","v":-5},"SSU 07",5,{"$f":"_xlfn.CONCAT(Inventory_Table[[#This Row],[Form Factor]],Inventory_Table[[#This Row],[Current Location]])","v":"Wafer - CarcassSSU 07"},"2019-12-24","Test Program 280","Test Part Number","Test Lot # 280"]
["Wafer - Carcass","SSU 08",{"$f":"-Inventory_Table[[#This Row],[Quantity In]]","v":-5},"SSU 07",5,{"$f":"_xlfn.CONCAT(Inventory_Table[[#This Row],[Form Factor]],Inventory_Table[[#This Row],[Current Location]])","v":"Wafer - CarcassSSU 07"},"2019-12-24","Test Program 281","Test Part Number","Test Lot # 281"]
["Wafer - Carcass","SSU 09",{"$f":"-Inventory_Table[[#This Row],[Quantity In]]","v":-3},"SSU 07",3,{"$f":"_xlfn.CONCAT(Inventory_Table[[#This Row],[Form Factor]],Inventory_Table[[#This Row],[Current Location]])","v":"Wafer - CarcassSSU 07"},"2019-12-24","Test Program 282","Test Part Number","Test Lot # 282"]
["Wafer - Carcass","SSU 10",{"$f":"-Inventory_Table[[#This Row],[Quantity In]]","v":-5},"SSU 07",5,{"$f":"_xlfn.CONCAT(Inventory_Table[[#This Row],[Form Factor]],Inventory_Table[[#This Row],[Current Location]])","v":"Wafer - CarcassSSU 07"},"2019-12-24","Test Program 283","Test Part Number","Test Lot # 283"]
["Wafer - 200mm","SSU 11",{"$f":"-Inventory_Table[[#This Row],[Quantity In]]","v":-25},"FGI/Shipped to Client",25,{"$f":"_xlfn.CONCAT(Inventory_Table[[#This Row],[Form Factor]],Inventory_Table[[#This Row],[Current Location]])","v":"Wafer - 200mmFGI/Shipped to Client"},"2020-01-01","Test Program 284","Test Part Number","Test Lot # 284"]
["Wafer - 200mm","SSU 12",{"$f":"-Inventory_Table[[#This Row],[Quantity In]]","v":-25},"FGI/Shipped to Client",25,{"$f":"_xlfn.CONCAT(Inventory_Table[[#This Row],[Form Factor]],Inventory_Table[[#This Row],[Current Location]])","v":"Wafer - 200mmFGI/Shipped to Client"},"2020-01-03","Test Program 285","Test Part Number","Test Lot # 285"]
["Wafer - 200mm","SSU 13",{"$f":"-Inventory_Table[[#This Row],[Quantity In]]","v":-24},"FGI/Shipped to Client",24,{"$f":"_xlfn.CONCAT(Inventory_Table[[#This Row],[Form Factor]],Inventory_Table[[#This Row],[Current Location]])","v":"Wafer - 200mmFGI/Shipped to Client"},"2020-01-03","Test Program 286","Test Part Number","Test Lot # 286"]
["Wafer - 200mm","SSU 14",{"$f":"-Inventory_Table[[#This Row],[Quantity In]]","v":-23},"FGI/Shipped to Client",23,{"$f":"_xlfn.CONCAT(Inventory_Table[[#This Row],[Form Factor]],Inventory_Table[[#This Row],[Current Location]])","v":"Wafer - 200mmFGI/Shipped to Client"},"2020-01-06","Test Program 287","Test Part Number","Test Lot # 287"]
["Wafer - 200mm","SSU 15",{"$f":"-Inventory_Table[[#This Row],[Quantity In]]","v":-13},"FGI/Shipped to Client",13,{"$f":"_xlfn.CONCAT(Inventory_Table[[#This Row],[Form Factor]],Inventory_Table[[#This Row],[Current Location]])","v":"Wafer - 200mmFGI/Shipped to Client"},"2020-01-06","Test Program 288","Test Part Number","Test Lot # 288"]
["Wafer - 200mm","SSU 16",{"$f":"-Inventory_Table[[#This Row],[Quantity In]]","v":-22},"FGI/Shipped to Client",22,{"$f":"_xlfn.CONCAT(Inventory_Table[[#This Row],[Form Factor]],Inventory_Table[[#This Row],[Current Location]])","v":"Wafer - 200mmFGI/Shipped to Client"},"2020-01-06","Test Program 289","Test Part Number","Test Lot # 289"]
["Wafer - 200mm","SSU 17",{"$f":"-Inventory_Table[[#This Row],[Quantity In]]","v":-20},"FGI/Shipped to Client",20,{"$f":"_xlfn.CONCAT(Inventory_Table[[#This Row],[Form Factor]],Inventory_Table[[#This Row],[Current Location]])","v":"Wafer - 200mmFGI/Shipped to Client"},"2020-01-06","Test Program 290","Test Part Number","Test Lot # 290"]
["Module","SSU 18",{"$f":"-Inventory_Table[[#This Row],[Quantity In]]","v":-142},"FGI/Shipped to Client",142,{"$f":"_xlfn.CONCAT(Inventory_Table[[#This Row],[Form Factor]],Inventory_Table[[#This Row],[Current Location]])","v":"ModuleFGI/Shipped to Client"},"2020-01-07","Test Program 291","Test Part Number","Test Lot # 291"]
["Module","SSU 01",{"$f":"-Inventory_Table[[#This Row],[Quantity In]]","v":-271},"FGI/Shipped to Client",271,{"$f":"_xlfn.CONCAT(Inventory_Table[[#This Row],[Form Factor]],Inventory_Table[[#This Row],[Current Location]])","v":"ModuleFGI/Shipped to Client"},"2020-01-07","Test Program 292","Test Part Number","Test Lot # 292"]
["Module","SSU 02",{"$f":"-Inventory_Table[[#This Row],[Quantity In]]","v":-85},"FGI/Shipped to Client",85,{"$f":"_xlfn.CONCAT(Inventory_Table[[#This Row],[Form Factor]],Inventory_Table[[#This Row],[Current Location]])","v":"ModuleFGI/Shipped to Client"},"2020-01-07","Test Program 293","Test Part Number","Test Lot # 293"]
["Module","SSU 03",{"$f":"-Inventory_Table[[#This Row],[Quantity In]]","v":-281},"FGI/Shipped to Client",281,{"$f":"_xlfn.CONCAT(Inventory_Table[[#This Row],[Form Factor]],Inventory_Table[[#This Row],[Current Location]])","v":"ModuleFGI/Shipped to Client"},"2020-01-07","Test Program 294","Test Part Number","Test Lot # 294"]
["Wafer - 300mm","SSU 04",{"$f":"-Inventory_Table[[#This Row],[Quantity In]]","v":-1},"Post Fab",1,{"$f":"_xlfn.CONCAT(Inventory_Table[[#This Row],[Form Factor]],Inventory_Table[[#This Row],[Current Location]])","v":"Wafer - 300mmPost Fab"},"2020-01-07","Test Program 295","Test Part Number","Test Lot # 295"]
["Wafer - 300mm","SSU 05",{"$f":"-Inventory_Table[[#This Row],[Quantity In]]","v":-1},"Post Fab",1,{"$f":"_xlfn.CONCAT(Inventory_Table[[#This Row],[Form Factor]],Inventory_Table[[#This Row],[Current Location]])","v":"Wafer - 300mmPost Fab"},"2020-01-07","Test Program 296","Test Part Number","Test Lot # 296"]
["Wafer - 300mm","SSU 06",{"$f":"-Inventory_Table[[#This Row],[Quantity In]]","v":-1},"Post Fab",1,{"$f":"_xlfn.CONCAT(Inventory_Table[[#This Row],[Form Factor]],Inventory_Table[[#This Row],[Current Location]])","v":"Wafer - 300mmPost Fab"},"2020-01-07","Test Program 297","Test Part Number","Test Lot # 297"]
["Wafer - 300mm","SSU 07",{"$f":"-Inventory_Table[[#This Row],[Quantity In]]","v":-1},"Post Fab",1,{"$f":"_xlfn.CONCAT(Inventory_Table[[#This Row],[Form Factor]],Inventory_Table[[#This Row],[Current Location]])","v":"Wafer - 300mmPost Fab"},"2020-01-07","Test Program 298","Test Part Number","Test Lot # 298"]
["Module","SSU 08",{"$f":"-Inventory_Table[[#This Row],[Quantity In]]","v":-1},"SSU 07A",1,{"$f":"_xlfn.CONCAT(Inventory_Table[[#This Row],[Form Factor]],Inventory_Table[[#This Row],[Current Location]])","v":"ModuleSSU 07A"},"2020-01-07","Test Program 299","Test Part Number","Test Lot # 299"]
["Module","SSU 09",{"$f":"-Inventory_Table[[#This Row],[Quantity In]]","v":-8},"SSU 07A",8,{"$f":"_xlfn.CONCAT(Inventory_Table[[#This Row],[Form Factor]],Inventory_Table[[#This Row],[Current Location]])","v":"ModuleSSU 07A"},"2020-01-07","Test Program 300","Test Part Number","Test Lot # 300"]
["Module","SSU 10",{"$f":"-Inventory_Table[[#This Row],[Quantity In]]","v":-3},"SSU 07A",3,{"$f":"_xlfn.CONCAT(Inventory_Table[[#This Row],[Form Factor]],Inventory_Table[[#This Row],[Current Location]])","v":"ModuleSSU 07A"},"2020-01-07","Test Program 301","Test Part Number","Test Lot # 301"]
["Module","SSU 11",{"$f":"-Inventory_Table[[#This Row],[Quantity In]]","v":-6},"SSU 07A",6,{"$f":"_xlfn.CONCAT(Inventory_Table[[#This Row],[Form Factor]],Inventory_Table[[#This Row],[Current Location]])","v":"ModuleSSU 07A"},"2020-01-07","Test Program 302","Test Part Number","Test Lot # 302"]
["Module","SSU 12",{"$f":"-Inventory_Table[[#This Row],[Quantity In]]","v":-1},"SSU 07A",1,{"$f":"_xlfn.CONCAT(Inventory_Table[[#This Row],[Form Factor]],Inventory_Table[[#This Row],[Current Location]])","v":"ModuleSSU 07A"},"2020-01-07","Test Program 303","Test Part Number","Test Lot # 303"]
["Wafer - 200mm","SSU 13",{"$f":"-Inventory_Table[[#This Row],[Quantity In]]","v":-4},"FGI/Shipped to Client",4,{"$f":"_xlfn.CONCAT(Inventory_Table[[#This Row],[Form Factor]],Inventory_Table[[#This Row],[Current Location]])","v":"Wafer - 200mmFGI/Shipped to Client"},"2020-01-07","Test Program 304","Test Part Number","Test Lot # 304"]
["Wafer - 200mm","SSU 14",{"$f":"-Inventory_Table[[#This Row],[Quantity In]]","v":-23},"FGI/Shipped to Client",23,{"$f":"_xlfn.CONCAT(Inventory_Table[[#This Row],[Form Factor]],Inventory_Table[[#This Row],[Current Location]])","v":"Wafer - 200mmFGI/Shipped to Client"},"2020-01-07","Test Program 305","Test Part Number","Test Lot # 305"]
["Module","SSU 15",{"$f":"-Inventory_Table[[#This Row],[Quantity In]]","v":-1},"SSU 07A",1,{"$f":"_xlfn.CONCAT(Inventory_Table[[#This Row],[Form Factor]],Inventory_Table[[#This Row],[Current Location]])","v":"ModuleSSU 07A"},"2020-01-07","Test Program 306","Test Part Number","Test Lot # 306"]
["Module","SSU 16",{"$f":"-Inventory_Table[[#This Row],[Quantity In]]","v":-1},"SSU 07A",1,{"$f":"_xlfn.CONCAT(Inventory_Table[[#This Row],[Form Factor]],Inventory_Table[[#This Row],[Current Location]])","v":"ModuleSSU 07A"},"2020-01-07","Test Program 307","Test Part Number","Test Lot # 307"]
["Module","SSU 17",{"$f":"-Inventory_Table[[#This Row],[Quantity In]]","v":-1},"SSU 07A",1,{"$f":"_xlfn.CONCAT(Inventory_Table[[#This Row],[Form Factor]],Inventory_Table[[#This Row],[Current Location]])","v":"ModuleSSU 07A"},"2020-01-07","Test Program 308","Test Part Number","Test Lot # 308"]
["Module","SSU 18",{"$f":"-Inventory_Table[[#This Row],[Quantity In]]","v":-1},"SSU 07A",1,{"$f":"_xlfn.CONCAT(Inventory_Table[[#This Row],[Form Factor]],Inventory_Table[[#This Row],[Current Location]])","v":"ModuleSSU 07A"},"2020-01-07","Test Program 309","Test Part Number","Test Lot # 309"]
["Module","SSU 01",{"$f":"-Inventory_Table[[#This Row],[Quantity In]]","v":-1},"SSU 07A",1,{"$f":"_xlfn.CONCAT(Inventory_Table[[#This Row],[Form Factor]],Inventory_Table[[#This Row],[Current Location]])","v":"ModuleSSU 07A"},"2020-01-07","Test Program 310","Test Part Number","Test Lot # 310"]
["Module","SSU 02",{"$f":"-Inventory_Table[[#This Row],[Quantity In]]","v":-1},"SSU 07A",1,{"$f":"_xlfn.CONCAT(Inventory_Table[[#This Row],[Form Factor]],Inventory_Table[[#This Row],[Current Location]])","v":"ModuleSSU 07A"},"2020-01-07","Test Program 311","Test Part Number","Test Lot # 311"]
["Module","SSU 03",{"$f":"-Inventory_Table[[#This Row],[Quantity In]]","v":-6},"SSU 07A",6,{"$f":"_xlfn.CONCAT(Inventory_Table[[#This Row],[Form Factor]],Inventory_Table[[#This Row],[Current Location]])","v":"ModuleSSU 07A"},"2020-01-07","Test Program 312","Test Part Number","Test Lot # 312"]
["Wafer - 200mm","SSU 04",{"$f":"-Inventory_Table[[#This Row],[Quantity In]]","v":-17},"FGI/Shipped to Client",17,{"$f":"_xlfn.CONCAT(Inventory_Table[[#This Row],[Form Factor]],Inventory_Table[[#This Row],[Current Location]])","v":"Wafer - 200mmFGI/Shipped to Client"},"2020-01-08","Test Program 313","Test Part Number","Test Lot # 313"]
["Wafer - 200mm","SSU 05",{"$f":"-Inventory_Table[[#This Row],[Quantity In]]","v":-8},"FGI/Shipped to Client",8,{"$f":"_xlfn.CONCAT(Inventory_Table[[#This Row],[Form Factor]],Inventory_Table[[#This Row],[Current Location]])","v":"Wafer - 200mmFGI/Shipped to Client"},"2020-01-08","Test Program 314","Test Part Number","Test Lot # 314"]
["Wafer - 200mm","SSU 06",{"$f":"-Inventory_Table[[#This Row],[Quantity In]]","v":-13},"FGI/Shipped to Client",13,{"$f":"_xlfn.CONCAT(Inventory_Table[[#This Row],[Form Factor]],Inventory_Table[[#This Row],[Current Location]])","v":"Wafer - 200mmFGI/Shipped to Client"},"2020-01-12","Test Program 315","Test Part Number","Test Lot # 315"]
["Wafer - 200mm","SSU 07",{"$f":"-Inventory_Table[[#This Row],[Quantity In]]","v":-1},"SSU 01",1,{"$f":"_xlfn.CONCAT(Inventory_Table[[#This Row],[Form Factor]],Inventory_Table[[#This Row],[Current Location]])","v":"Wafer - 200mmSSU 01"},"2020-01-13","Test Program 316","Test Part Number","Test Lot # 316"]
["Wafer - 200mm","SSU 08",{"$f":"-Inventory_Table[[#This Row],[Quantity In]]","v":-1},"SSU 01",1,{"$f":"_xlfn.CONCAT(Inventory_Table[[#This Row],[Form Factor]],Inventory_Table[[#This Row],[Current Location]])","v":"Wafer - 200mmSSU 01"},"2020-01-13","Test Program 317","Test Part Number","Test Lot # 317"]
["Wafer - 200mm","SSU 09",{"$f":"-Inventory_Table[[#This Row],[Quantity In]]","v":-1},"SSU 01",1,{"$f":"_xlfn.CONCAT(Inventory_Table[[#This Row],[Form Factor]],Inventory_Table[[#This Row],[Current Location]])","v":"Wafer - 200mmSSU 01"},"2020-01-13","Test Program 318","Test Part Number","Test Lot # 318"]
["Wafer - 200mm","SSU 10",{"$f":"-Inventory_Table[[#This Row],[Quantity In]]","v":-1},"SSU 01",1,{"$f":"_xlfn.CONCAT(Inventory_Table[[#This Row],[Form Factor]],Inventory_Table[[#This Row],[Current Location]])","v":"Wafer - 200mmSSU 01"},"2020-01-13","Test Program 319","Test Part Number","Test Lot # 319"]
["Wafer - 200mm","SSU 11",{"$f":"-Inventory_Table[[#This Row],[Quantity In]]","v":-1},"SSU 01",1,{"$f":"_xlfn.CONCAT(Inventory_Table[[#This Row],[Form Factor]],Inventory_Table[[#This Row],[Current Location]])","v":"Wafer - 200mmSSU 01"},"2020-01-13","Test Program 320","Test Part Number","Test Lot # 320"]
["Wafer - 200mm","SSU 12",{"$f":"-Inventory_Table[[#This Row],[Quantity In]]","v":-1},"SSU 01",1,{"$f":"_xlfn.CONCAT(Inventory_Table[[#This Row],[Form Factor]],Inventory_Table[[#This Row],[Current Location]])","v":"Wafer - 200mmSSU 01"},"2020-01-13","Test Program 321","Test Part Number","Test Lot # 321"]
["Wafer - 200mm","SSU 13",{"$f":"-Inventory_Table[[#This Row],[Quantity In]]","v":-1},"SSU 01",1,{"$f":"_xlfn.CONCAT(Inventory_Table[[#This Row],[Form Factor]],Inventory_Table[[#This Row],[Current Location]])","v":"Wafer - 200mmSSU 01"},"2020-01-13","Test Program 322","Test Part Number","Test Lot # 322"]
["Wafer - 200mm","SSU 14",{"$f":"-Inventory_Table[[#This Row],[Quantity In]]","v":-1},"SSU 01",1,{"$f":"_xlfn.CONCAT(Inventory_Table[[#This Row],[Form Factor]],Inventory_Table[[#This Row],[Current Location]])","v":"Wafer - 200mmSSU 01"},"2020-01-13","Test Program 323","Test Part Number","Test Lot # 323"]
["Wafer - 200mm","SSU 15",{"$f":"-Inventory_Table[[#This Row],[Quantity In]]","v":-1},"SSU 01",1,{"$f":"_xlfn.CONCAT(Inventory_Table[[#This Row],[Form Factor]],Inventory_Table[[#This Row],[Current Location]])","v":"Wafer - 200mmSSU 01"},"2020-01-13","Test Program 324","Test Part Number","Test Lot # 324"]
["Wafer - 200mm","SSU 16",{"$f":"-Inventory_Table[[#This Row],[Quantity In]]","v":-1},"SSU 01",1,{"$f":"_xlfn.CONCAT(Inventory_Table[[#This Row],[Form Factor]],Inventory_Table[[#This Row],[Current Location]])","v":"Wafer - 200mmSSU 01"},"2020-01-13","Test Program 325","Test Part Number","Test Lot # 325"]
["Wafer - 200mm","SSU 17",{"$f":"-Inventory_Table[[#This Row],[Quantity In]]","v":-1},"SSU 01",1,{"$f":"_xlfn.CONCAT(Inventory_Table[[#This Row],[Form Factor]],Inventory_Table[[#This Row],[Current Location]])","v":"Wafer - 200mmSSU 01"},"2020-01-13","Test Program 326","Test Part Number","Test Lot # 326"]
["Wafer - 200mm","SSU 17",{"$f":"-Inventory_Table[[#This Row],[Quantity In]]","v":-1},"SSU 01",1,{"$f":"_xlfn.CONCAT(Inventory_Table[[#This Row],[Form Factor]],Inventory_Table[[#This Row],[Current Location]])","v":"Wafer - 200mmSSU 01"},"2020-01-13","Test Program 327","Test Part Number","Test Lot # 327"]
["Wafer - 200mm","SSU 18",{"$f":"-Inventory_Table[[#This Row],[Quantity In]]","v":-1},"SSU 01",1,{"$f":"_xlfn.CONCAT(Inventory_Table[[#This Row],[Form Factor]],Inventory_Table[[#This Row],[Current Location]])","v":"Wafer - 200mmSSU 01"},"2020-01-14","Test Program 328","Test Part Number","Test Lot # 328"]
["Wafer - 200mm","SSU 01",{"$f":"-Inventory_Table[[#This Row],[Quantity In]]","v":-1},"SSU 01",1,{"$f":"_xlfn.CONCAT(Inventory_Table[[#This Row],[Form Factor]],Inventory_Table[[#This Row],[Current Location]])","v":"Wafer - 200mmSSU 01"},"2020-01-14","Test Program 329","Test Part Number","Test Lot # 329"]
["Wafer - 200mm","SSU 02",{"$f":"-Inventory_Table[[#This Row],[Quantity In]]","v":-1},"SSU 01",1,{"$f":"_xlfn.CONCAT(Inventory_Table[[#This Row],[Form Factor]],Inventory_Table[[#This Row],[Current Location]])","v":"Wafer - 200mmSSU 01"},"2020-01-14","Test Program 330","Test Part Number","Test Lot # 330"]
["Wafer - 200mm","SSU 03",{"$f":"-Inventory_Table[[#This Row],[Quantity In]]","v":-1},"SSU 01",1,{"$f":"_xlfn.CONCAT(Inventory_Table[[#This Row],[Form Factor]],Inventory_Table[[#This Row],[Current Location]])","v":"Wafer - 200mmSSU 01"},"2020-01-14","Test Program 331","Test Part Number","Test Lot # 331"]
["Wafer - 200mm","SSU 04",{"$f":"-Inventory_Table[[#This Row],[Quantity In]]","v":-1},"SSU 01",1,{"$f":"_xlfn.CONCAT(Inventory_Table[[#This Row],[Form Factor]],Inventory_Table[[#This Row],[Current Location]])","v":"Wafer - 200mmSSU 01"},"2020-01-14","Test Program 332","Test Part Number","Test Lot # 332"]
["Wafer - 200mm","SSU 05",{"$f":"-Inventory_Table[[#This Row],[Quantity In]]","v":-1},"SSU 01",1,{"$f":"_xlfn.CONCAT(Inventory_Table[[#This Row],[Form Factor]],Inventory_Table[[#This Row],[Current Location]])","v":"Wafer - 200mmSSU 01"},"2020-01-14","Test Program 333","Test Part Number","Test Lot # 333"]
["Wafer - 200mm","SSU 06",{"$f":"-Inventory_Table[[#This Row],[Quantity In]]","v":-1},"SSU 01",1,{"$f":"_xlfn.CONCAT(Inventory_Table[[#This Row],[Form Factor]],Inventory_Table[[#This Row],[Current Location]])","v":"Wafer - 200mmSSU 01"},"2020-01-14","Test Program 334","Test Part Number","Test Lot # 334"]
["Wafer - 200mm","SSU 07",{"$f":"-Inventory_Table[[#This Row],[Quantity In]]","v":-1},"SSU 01",1,{"$f":"_xlfn.CONCAT(Inventory_Table[[#This Row],[Form Factor]],Inventory_Table[[#This Row],[Current Location]])","v":"Wafer - 200mmSSU 01"},"2020-01-14","Test Program 335","Test Part Number","Test Lot # 335"]
["Wafer - 200mm","SSU 08",{"$f":"-Inventory_Table[[#This Row],[Quantity In]]","v":-1},"SSU 01",1,{"$f":"_xlfn.CONCAT(Inventory_Table[[#This Row],[Form Factor]],Inventory_Table[[#This Row],[Current Location]])","v":"Wafer - 200mmSSU 01"},"2020-01-14","Test Program 336","Test Part Number","Test Lot # 336"]
["Wafer - 200mm","SSU 09",{"$f":"-Inventory_Table[[#This Row],[Quantity In]]","v":-1},"SSU 01",1,{"$f":"_xlfn.CONCAT(Inventory_Table[[#This Row],[Form Factor]],Inventory_Table[[#This Row],[Current Location]])","v":"Wafer - 200mmSSU 01"},"2020-01-14","Test Program 337","Test Part Number","Test Lot # 337"]
["Wafer - 200mm","SSU 10",{"$f":"-Inventory_Table[[#This Row],[Quantity In]]","v":-1},"SSU 01",1,{"$f":"_xlfn.CONCAT(Inventory_Table[[#This Row],[Form Factor]],Inventory_Table[[#This Row],[Current Location]])","v":"Wafer - 200mmSSU 01"},"2020-01-14","Test Program 338","Test Part Number","Test Lot # 338"]
["Wafer - 200mm","SSU 11",{"$f":"-Inventory_Table[[#This Row],[Quantity In]]","v":-1},"SSU 01",1,{"$f":"_xlfn.CONCAT(Inventory_Table[[#This Row],[Form Factor]],Inventory_Table[[#This Row],[Current Location]])","v":"Wafer - 200mmSSU 01"},"2020-01-14","Test Program 339","Test Part Number","Test Lot # 339"]
["Module","SSU 12",{"$f":"-Inventory_Table[[#This Row],[Quantity In]]","v":-7},"SSU 07A",7,{"$f":"_xlfn.CONCAT(Inventory_Table[[#This Row],[Form Factor]],Inventory_Table[[#This Row],[Current Location]])","v":"ModuleSSU 07A"},"2020-01-15","Test Program 340","Test Part Number","Test Lot # 340"]
["Module","SSU 13",{"$f":"-Inventory_Table[[#This Row],[Quantity In]]","v":-1},"SSU 07A",1,{"$f":"_xlfn.CONCAT(Inventory_Table[[#This Row],[Form Factor]],Inventory_Table[[#This Row],[Current Location]])","v":"ModuleSSU 07A"},"2020-01-15","Test Program 341","Test Part Number","Test Lot # 341"]
["Module","SSU 14",{"$f":"-Inventory_Table[[#This Row],[Quantity In]]","v":-4},"SSU 07A",4,{"$f":"_xlfn.CONCAT(Inventory_Table[[#This Row],[Form Factor]],Inventory_Table[[#This Row],[Current Location]])","v":"ModuleSSU 07A"},"2020-01-15","Test Program 342","Test Part Number","Test Lot # 342"]
["Module","SSU 15",{"$f":"-Inventory_Table[[#This Row],[Quantity In]]","v":-1},"SSU 07A",1,{"$f":"_xlfn.CONCAT(Inventory_Table[[#This Row],[Form Factor]],Inventory_Table[[#This Row],[Current Location]])","v":"ModuleSSU 07A"},"2020-01-15","Test Program 343","Test Part Number","Test Lot # 343"]
["Module","SSU 16",{"$f":"-Inventory_Table[[#This Row],[Quantity In]]","v":-1},"SSU 07A",1,{"$f":"_xlfn.CONCAT(Inventory_Table[[#This Row],[Form Factor]],Inventory_Table[[#This Row],[Current Location]])","v":"ModuleSSU 07A"},"2020-01-15","Test Program 344","Test Part Number","Test Lot # 344"]
["Module","SSU 17",{"$f":"-Inventory_Table[[#This Row],[Quantity In]]","v":-9},"SSU 07A",9,{"$f":"_xlfn.CONCAT(Inventory_Table[[#This Row],[Form Factor]],Inventory_Table[[#This Row],[Current Location]])","v":"ModuleSSU 07A"},"2020-01-15","Test Program 345","Test Part Number","Test Lot # 345"]
["Module","SSU 18",{"$f":"-Inventory_Table[[#This Row],[Quantity In]]","v":-1},"SSU 07A",1,{"$f":"_xlfn.CONCAT(Inventory_Table[[#This Row],[Form Factor]],Inventory_Table[[#This Row],[Current Location]])","v":"ModuleSSU 07A"},"2020-01-15","Test Program 346","Test Part Number","Test Lot # 346"]
["Wafer - 200mm","SSU 01",{"$f":"-Inventory_Table[[#This Row],[Quantity In]]","v":-1},"FA",1,{"$f":"_xlfn.CONCAT(Inventory_Table[[#This Row],[Form Factor]],Inventory_Table[[#This Row],[Current Location]])","v":"Wafer - 200mmFA"},"2020-01-16","Test Program 347","Test Part Number","Test Lot # 347"]
["Wafer - Carcass","SSU 02",{"$f":"-Inventory_Table[[#This Row],[Quantity In]]","v":-5},"CMC",5,{"$f":"_xlfn.CONCAT(Inventory_Table[[#This Row],[Form Factor]],Inventory_Table[[#This Row],[Current Location]])","v":"Wafer - CarcassCMC"},"2020-01-20","Test Program 348","Test Part Number","Test Lot # 348"]
["Wafer - Carcass","SSU 03",{"$f":"-Inventory_Table[[#This Row],[Quantity In]]","v":-5},"CMC",5,{"$f":"_xlfn.CONCAT(Inventory_Table[[#This Row],[Form Factor]],Inventory_Table[[#This Row],[Current Location]])","v":"Wafer - CarcassCMC"},"2020-01-20","Test Program 349","Test Part Number","Test Lot # 349"]
["Wafer - Carcass","SSU 04",{"$f":"-Inventory_Table[[#This Row],[Quantity In]]","v":-5},"CMC",5,{"$f":"_xlfn.CONCAT(Inventory_Table[[#This Row],[Form Factor]],Inventory_Table[[#This Row],[Current Location]])","v":"Wafer - CarcassCMC"},"2020-01-20","Test Program 350","Test Part Number","Test Lot # 350"]
["Wafer - Carcass","SSU 05",{"$f":"-Inventory_Table[[#This Row],[Quantity In]]","v":-3},"CMC",3,{"$f":"_xlfn.CONCAT(Inventory_Table[[#This Row],[Form Factor]],Inventory_Table[[#This Row],[Current Location]])","v":"Wafer - CarcassCMC"},"2020-01-20","Test Program 351","Test Part Number","Test Lot # 351"]
["Wafer - Carcass","SSU 06",{"$f":"-Inventory_Table[[#This Row],[Quantity In]]","v":-5},"CMC",5,{"$f":"_xlfn.CONCAT(Inventory_Table[[#This Row],[Form Factor]],Inventory_Table[[#This Row],[Current Location]])","v":"Wafer - CarcassCMC"},"2020-01-20","Test Program 352","Test Part Number","Test Lot # 352"]
["Wafer - 300mm","SSU 07",{"$f":"-Inventory_Table[[#This Row],[Quantity In]]","v":-1},"CMC",1,{"$f":"_xlfn.CONCAT(Inventory_Table[[#This Row],[Form Factor]],Inventory_Table[[#This Row],[Current Location]])","v":"Wafer - 300mmCMC"},"2020-01-20","Test Program 353","Test Part Number","Test Lot # 353"]
["Wafer - 300mm","SSU 08",{"$f":"-Inventory_Table[[#This Row],[Quantity In]]","v":-1},"CMC",1,{"$f":"_xlfn.CONCAT(Inventory_Table[[#This Row],[Form Factor]],Inventory_Table[[#This Row],[Current Location]])","v":"Wafer - 300mmCMC"},"2020-01-20","Test Program 354","Test Part Number","Test Lot # 354"]
["Wafer - Carcass","SSU 09",{"$f":"-Inventory_Table[[#This Row],[Quantity In]]","v":-1},"CMC",1,{"$f":"_xlfn.CONCAT(Inventory_Table[[#This Row],[Form Factor]],Inventory_Table[[#This Row],[Current Location]])","v":"Wafer - CarcassCMC"},"2020-01-20","Test Program 355","Test Part Number","Test Lot # 355"]
["Wafer - Carcass","SSU 10",{"$f":"-Inventory_Table[[#This Row],[Quantity In]]","v":-1},"CMC",1,{"$f":"_xlfn.CONCAT(Inventory_Table[[#This Row],[Form Factor]],Inventory_Table[[#This Row],[Current Location]])","v":"Wafer - CarcassCMC"},"2020-01-20","Test Program 356","Test Part Number","Test Lot # 356"]
["Wafer - Carcass","SSU 11",{"$f":"-Inventory_Table[[#This Row],[Quantity In]]","v":-1},"CMC",1,{"$f":"_xlfn.CONCAT(Inventory_Table[[#This Row],[Form Factor]],Inventory_Table[[#This Row],[Current Location]])","v":"Wafer - CarcassCMC"},"2020-01-20","Test Program 357","Test Part Number","Test Lot # 357"]
["Wafer - Carcass","SSU 12",{"$f":"-Inventory_Table[[#This Row],[Quantity In]]","v":-1},"CMC",1,{"$f":"_xlfn.CONCAT(Inventory_Table[[#This Row],[Form Factor]],Inventory_Table[[#This Row],[Current Location]])","v":"Wafer - CarcassCMC"},"2020-01-20","Test Program 358","Test Part Number","Test Lot # 358"]
["Wafer - Carcass","SSU 13",{"$f":"-Inventory_Table[[#This Row],[Quantity In]]","v":-1},"CMC",1,{"$f":"_xlfn.CONCAT(Inventory_Table[[#This Row],[Form Factor]],Inventory_Table[[#This Row],[Current Location]])","v":"Wafer - CarcassCMC"},"2020-01-20","Test Program 359","Test Part Number","Test Lot # 359"]
["Wafer - Carcass","SSU 14",{"$f":"-Inventory_Table[[#This Row],[Quantity In]]","v":-1},"CMC",1,{"$f":"_xlfn.CONCAT(Inventory_Table[[#This Row],[Form Factor]],Inventory_Table[[#This Row],[Current Location]])","v":"Wafer - CarcassCMC"},"2020-01-20","Test Program 360","Test Part Number","Test Lot # 360"]
["Wafer - Carcass","SSU 15",{"$f":"-Inventory_Table[[#This Row],[Quantity In]]","v":-1},"CMC",1,{"$f":"_xlfn.CONCAT(Inventory_Table[[#This Row],[Form Factor]],Inventory_Table[[#This Row],[Current Location]])","v":"Wafer - CarcassCMC"},"2020-01-20","Test Program 361","Test Part Number","Test Lot # 361"]
["Wafer - Carcass","SSU 16",{"$f":"-Inventory_Table[[#This Row],[Quantity In]]","v":-1},"CMC",1,{"$f":"_xlfn.CONCAT(Inventory_Table[[#This Row],[Form Factor]],Inventory_Table[[#This Row],[Current Location]])","v":"Wafer - CarcassCMC"},"2020-01-20","Test Program 362","Test Part Number","Test Lot # 362"]
["Wafer - Carcass","SSU 17",{"$f":"-Inventory_Table[[#This Row],[Quantity In]]","v":-1},"CMC",1,{"$f":"_xlfn.CONCAT(Inventory_Table[[#This Row],[Form Factor]],Inventory_Table[[#This Row],[Current Location]])","v":"Wafer - CarcassCMC"},"2020-01-20","Test Program 363","Test Part Number","Test Lot # 363"]
["Wafer - Carcass","SSU 18",{"$f":"-Inventory_Table[[#This Row],[Quantity In]]","v":-1},"CMC",1,{"$f":"_xlfn.CONCAT(Inventory_Table[[#This Row],[Form Factor]],Inventory_Table[[#This Row],[Current Location]])","v":"Wafer - CarcassCMC"},"2020-01-20","Test Program 364","Test Part Number","Test Lot # 364"]
["Wafer - Carcass","SSU 01",{"$f":"-Inventory_Table[[#This Row],[Quantity In]]","v":-1},"CMC",1,{"$f":"_xlfn.CONCAT(Inventory_Table[[#This Row],[Form Factor]],Inventory_Table[[#This Row],[Current Location]])","v":"Wafer - CarcassCMC"},"2020-01-20","Test Program 365","Test Part Number","Test Lot # 365"]
["Wafer - Carcass","SSU 02",{"$f":"-Inventory_Table[[#This Row],[Quantity In]]","v":-1},"CMC",1,{"$f":"_xlfn.CONCAT(Inventory_Table[[#This Row],[Form Factor]],Inventory_Table[[#This Row],[Current Location]])","v":"Wafer - CarcassCMC"},"2020-01-20","Test Program 366","Test Part Number","Test Lot # 366"]
["Wafer - Carcass","SSU 03",{"$f":"-Inventory_Table[[#This Row],[Quantity In]]","v":-1},"CMC",1,{"$f":"_xlfn.CONCAT(Inventory_Table[[#This Row],[Form Factor]],Inventory_Table[[#This Row],[Current Location]])","v":"Wafer - CarcassCMC"},"2020-01-20","Test Program 367","Test Part Number","Test Lot # 367"]
["Wafer - Carcass","SSU 04",{"$f":"-Inventory_Table[[#This Row],[Quantity In]]","v":-1},"CMC",1,{"$f":"_xlfn.CONCAT(Inventory_Table[[#This Row],[Form Factor]],Inventory_Table[[#This Row],[Current Location]])","v":"Wafer - CarcassCMC"},"2020-01-20","Test Program 368","Test Part Number","Test Lot # 368"]
["Wafer - Carcass","SSU 05",{"$f":"-Inventory_Table[[#This Row],[Quantity In]]","v":-1},"CMC",1,{"$f":"_xlfn.CONCAT(Inventory_Table[[#This Row],[Form Factor]],Inventory_Table[[#This Row],[Current Location]])","v":"Wafer - CarcassCMC"},"2020-01-20","Test Program 369","Test Part Number","Test Lot # 369"]
["Wafer - Carcass","SSU 06",{"$f":"-Inventory_Table[[#This Row],[Quantity In]]","v":-1},"CMC",1,{"$f":"_xlfn.CONCAT(Inventory_Table[[#This Row],[Form Factor]],Inventory_Table[[#This Row],[Current Location]])","v":"Wafer - CarcassCMC"},"2020-01-20","Test Program 370","Test Part Number","Test Lot # 370"]
["Wafer - Carcass","SSU 07",{"$f":"-Inventory_Table[[#This Row],[Quantity In]]","v":-1},"CMC",1,{"$f":"_xlfn.CONCAT(Inventory_Table[[#This Row],[Form Factor]],Inventory_Table[[#This Row],[Current Location]])","v":"Wafer - CarcassCMC"},"2020-01-20","Test Program 371","Test Part Number","Test Lot # 371"]
["Wafer - Carcass","SSU 08",{"$f":"-Inventory_Table[[#This Row],[Quantity In]]","v":-1},"CMC",1,{"$f":"_xlfn.CONCAT(Inventory_Table[[#This Row],[Form Factor]],Inventory_Table[[#This Row],[Current Location]])","v":"Wafer - CarcassCMC"},"2020-01-20","Test Program 372","Test Part Number","Test Lot # 372"]
["Wafer - Carcass","SSU 09",{"$f":"-Inventory_Table[[#This Row],[Quantity In]]","v":-1},"CMC",1,{"$f":"_xlfn.CONCAT(Inventory_Table[[#This Row],[Form Factor]],Inventory_Table[[#This Row],[Current Location]])","v":"Wafer - CarcassCMC"},"2020-01-20","Test Program 373","Test Part Number","Test Lot # 373"]
["Wafer - Carcass","SSU 10",{"$f":"-Inventory_Table[[#This Row],[Quantity In]]","v":-1},"CMC",1,{"$f":"_xlfn.CONCAT(Inventory_Table[[#This Row],[Form Factor]],Inventory_Table[[#This Row],[Current Location]])","v":"Wafer - CarcassCMC"},"2020-01-20","Test Program 374","Test Part Number","Test Lot # 374"]
["Wafer - Carcass","SSU 11",{"$f":"-Inventory_Table[[#This Row],[Quantity In]]","v":-1},"CMC",1,{"$f":"_xlfn.CONCAT(Inventory_Table[[#This Row],[Form Factor]],Inventory_Table[[#This Row],[Current Location]])","v":"Wafer - CarcassCMC"},"2020-01-20","Test Program 375","Test Part Number","Test Lot # 375"]
["Wafer - Carcass","SSU 12",{"$f":"-Inventory_Table[[#This Row],[Quantity In]]","v":-1},"CMC",1,{"$f":"_xlfn.CONCAT(Inventory_Table[[#This Row],[Form Factor]],Inventory_Table[[#This Row],[Current Location]])","v":"Wafer - CarcassCMC"},"2020-01-20","Test Program 376","Test Part Number","Test Lot # 376"]
["Wafer - Carcass","SSU 13",{"$f":"-Inventory_Table[[#This Row],[Quantity In]]","v":-1},"CMC",1,{"$f":"_xlfn.CONCAT(Inventory_Table[[#This Row],[Form Factor]],Inventory_Table[[#This Row],[Current Location]])","v":"Wafer - CarcassCMC"},"2020-01-20","Test Program 377","Test Part Number","Test Lot # 377"]
["Wafer - Carcass","SSU 14",{"$f":"-Inventory_Table[[#This Row],[Quantity In]]","v":-1},"CMC",1,{"$f":"_xlfn.CONCAT(Inventory_Table[[#This Row],[Form Factor]],Inventory_Table[[#This Row],[Current Location]])","v":"Wafer - CarcassCMC"},"2020-01-20","Test Program 378","Test Part Number","Test Lot # 378"]
["Wafer - Carcass","SSU 15",{"$f":"-Inventory_Table[[#This Row],[Quantity In]]","v":-2},"CMC",2,{"$f":"_xlfn.CONCAT(Inventory_Table[[#This Row],[Form Factor]],Inventory_Table[[#This Row],[Current Location]])","v":"Wafer - CarcassCMC"},"2020-01-20","Test Program 379","Test Part Number","Test Lot # 379"]
["Wafer - Carcass","SSU 16",{"$f":"-Inventory_Table[[#This Row],[Quantity In]]","v":-1},"CMC",1,{"$f":"_xlfn.CONCAT(Inventory_Table[[#This Row],[Form Factor]],Inventory_Table[[#This Row],[Current Location]])","v":"Wafer - CarcassCMC"},"2020-01-20","Test Program 380","Test Part Number","Test Lot # 380"]
["Wafer - Carcass","SSU 17",{"$f":"-Inventory_Table[[#This Row],[Quantity In]]","v":-2},"CMC",2,{"$f":"_xlfn.CONCAT(Inventory_Table[[#This Row],[Form Factor]],Inventory_Table[[#This Row],[Current Location]])","v":"Wafer - CarcassCMC"},"2020-01-20","Test Program 381","Test Part Number","Test Lot # 381"]
["Wafer - Carcass","SSU 17",{"$f":"-Inventory_Table[[#This Row],[Quantity In]]","v":-2},"CMC",2,{"$f":"_xlfn.CONCAT(Inventory_Table[[#This Row],[Form Factor]],Inventory_Table[[#This Row],[Current Location]])","v":"Wafer - CarcassCMC"},"2020-01-20","Test Program 382","Test Part Number","Test Lot # 382"]
["Wafer - Carcass","SSU 18",{"$f":"-Inventory_Table[[#This Row],[Quantity In]]","v":-1},"CMC",1,{"$f":"_xlfn.CONCAT(Inventory_Table[[#This Row],[Form Factor]],Inventory_Table[[#This Row],[Current Location]])","v":"Wafer - CarcassCMC"},"2020-01-20","Test Program 383","Test Part Number","Test Lot # 383"]
["Wafer - Carcass","SSU 01",{"$f":"-Inventory_Table[[#This Row],[Quantity In]]","v":-4},"CMC",4,{"$f":"_xlfn.CONCAT(Inventory_Table[[#This Row],[Form Factor]],Inventory_Table[[#This Row],[Current Location]])","v":"Wafer - CarcassCMC"},"2020-01-20","Test Program 384","Test Part Number","Test Lot # 384"]
["Wafer - Carcass","SSU 02",{"$f":"-Inventory_Table[[#This Row],[Quantity In]]","v":-1},"CMC",1,{"$f":"_xlfn.CONCAT(Inventory_Table[[#This Row],[Form Factor]],Inventory_Table[[#This Row],[Current Location]])","v":"Wafer - CarcassCMC"},"2020-01-20","Test Program 385","Test Part Number","Test Lot # 385"]
["Wafer - Carcass","SSU 03",{"$f":"-Inventory_Table[[#This Row],[Quantity In]]","v":-5},"CMC",5,{"$f":"_xlfn.CONCAT(Inventory_Table[[#This Row],[Form Factor]],Inventory_Table[[#This Row],[Current Location]])","v":"Wafer - CarcassCMC"},"2020-01-20","Test Program 386","Test Part Number","Test Lot # 386"]
["Wafer - Carcass","SSU 04",{"$f":"-Inventory_Table[[#This Row],[Quantity In]]","v":-1},"CMC",1,{"$f":"_xlfn.CONCAT(Inventory_Table[[#This Row],[Form Factor]],Inventory_Table[[#This Row],[Current Location]])","v":"Wafer - CarcassCMC"},"2020-01-20","Test Program 387","Test Part Number","Test Lot # 387"]
["Mask","SSU 05",{"$f":"-Inventory_Table[[#This Row],[Quantity In]]","v":-1},"CMC",1,{"$f":"_xlfn.CONCAT(Inventory_Table[[#This Row],[Form Factor]],Inventory_Table[[#This Row],[Current Location]])","v":"MaskCMC"},"2020-01-21","Test Program 388","Test Part Number","Test Lot # 388"]
["Mask","SSU 06",{"$f":"-Inventory_Table[[#This Row],[Quantity In]]","v":-1},"CMC",1,{"$f":"_xlfn.CONCAT(Inventory_Table[[#This Row],[Form Factor]],Inventory_Table[[#This Row],[Current Location]])","v":"MaskCMC"},"2020-01-21","Test Program 389","Test Part Number","Test Lot # 389"]
["Mask","SSU 07",{"$f":"-Inventory_Table[[#This Row],[Quantity In]]","v":-1},"CMC",1,{"$f":"_xlfn.CONCAT(Inventory_Table[[#This Row],[Form Factor]],Inventory_Table[[#This Row],[Current Location]])","v":"MaskCMC"},"2020-01-21","Test Program 390","Test Part Number","Test Lot # 390"]
["Mask","SSU 08",{"$f":"-Inventory_Table[[#This Row],[Quantity In]]","v":-1},"CMC",1,{"$f":"_xlfn.CONCAT(Inventory_Table[[#This Row],[Form Factor]],Inventory_Table[[#This Row],[Current Location]])","v":"MaskCMC"},"2020-01-21","Test Program 391","Test Part Number","Test Lot # 391"]
["Mask","SSU 09",{"$f":"-Inventory_Table[[#This Row],[Quantity In]]","v":-1},"CMC",1,{"$f":"_xlfn.CONCAT(Inventory_Table[[#This Row],[Form Factor]],Inventory_Table[[#This Row],[Current Location]])","v":"MaskCMC"},"2020-01-21","Test Program 392","Test Part Number","Test Lot # 392"]
["Mask","SSU 10",{"$f":"-Inventory_Table[[#This Row],[Quantity In]]","v":-1},"CMC",1,{"$f":"_xlfn.CONCAT(Inventory_Table[[#This Row],[Form Factor]],Inventory_Table[[#This Row],[Current Location]])","v":"MaskCMC"},"2020-01-21","Test Program 393","Test Part Number","Test Lot # 393"]
["Mask","SSU 11",{"$f":"-Inventory_Table[[#This Row],[Quantity In]]","v":-1},"CMC",1,{"$f":"_xlfn.CONCAT(Inventory_Table[[#This Row],[Form Factor]],Inventory_Table[[#This Row],[Current Location]])","v":"MaskCMC"},"2020-01-21","Test Program 394","Test Part Number","Test Lot # 394"]
["Mask","SSU 12",{"$f":"-Inventory_Table[[#This Row],[Quantity In]]","v":-1},"CMC",1,{"$f":"_xlfn.CONCAT(Inventory_Table[[#This Row],[Form Factor]],Inventory_Table[[#This Row],[Current Location]])","v":"MaskCMC"},"2020-01-21","Test Program 395","Test Part Number","Test Lot # 395"]
["Mask","SSU 13",{"$f":"-Inventory_Table[[#This Row],[Quantity In]]","v":-1},"CMC",1,{"$f":"_xlfn.CONCAT(Inventory_Table[[#This Row],[Form Factor]],Inventory_Table[[#This Row],[Current Location]])","v":"MaskCMC"},"2020-01-21","Test Program 396","Test Part Number","Test Lot # 396"]
["Mask","SSU 14",{"$f":"-Inventory_Table[[#This Row],[Quantity In]]","v":-1},"CMC",1,{"$f":"_xlfn.CONCAT(Inventory_Table[[#This Row],[Form Factor]],Inventory_Table[[#This Row],[Current Location]])","v":"MaskCMC"},"2020-01-21","Test Program 397","Test Part Number","Test Lot # 397"]
["Mask","SSU 15",{"$f":"-Inventory_Table[[#This Row],[Quantity In]]","v":-1},"CMC",1,{"$f":"_xlfn.CONCAT(Inventory_Table[[#This Row],[Form Factor]],Inventory_Table[[#This Row],[Current Location]])","v":"MaskCMC"},"2020-01-21","Test Program 398","Test Part Number","Test Lot # 398"]
["Mask","SSU 16",{"$f":"-Inventory_Table[[#This Row],[Quantity In]]","v":-1},"CMC",1,{"$f":"_xlfn.CONCAT(Inventory_Table[[#This Row],[Form Factor]],Inventory_Table[[#This Row],[Current Location]])","v":"MaskCMC"},"2020-01-21","Test Program 399","Test Part Number","Test Lot # 399"]
["Mask","SSU 17",{"$f":"-Inventory_Table[[#This Row],[Quantity In]]","v":-1},"CMC",1,{"$f":"_xlfn.CONCAT(Inventory_Table[[#This Row],[Form Factor]],Inventory_Table[[#This Row],[Current Location]])","v":"MaskCMC"},"2020-01-21","Test Program 400","Test Part Number","Test Lot # 400"]
["Mask","SSU 18",{"$f":"-Inventory_Table[[#This Row],[Quantity In]]","v":-1},"CMC",1,{"$f":"_xlfn.CONCAT(Inventory_Table[[#This Row],[Form Factor]],Inventory_Table[[#This Row],[Current Location]])","v":"MaskCMC"},"2020-01-21","Test Program 401","Test Part Number","Test Lot # 401"]
["Mask","SSU 01",{"$f":"-Inventory_Table[[#This Row],[Quantity In]]","v":-1},"CMC",1,{"$f":"_xlfn.CONCAT(Inventory_Table[[#This Row],[Form Factor]],Inventory_Table[[#This Row],[Current Location]])","v":"MaskCMC"},"2020-01-21","Test Program 402","Test Part Number","Test Lot # 402"]
["Mask","SSU 02",{"$f":"-Inventory_Table[[#This Row],[Quantity In]]","v":-1},"CMC",1,{"$f":"_xlfn.CONCAT(Inventory_Table[[#This Row],[Form Factor]],Inventory_Table[[#This Row],[Current Location]])","v":"MaskCMC"},"2020-01-21","Test Program 403","Test Part Number","Test Lot # 403"]
["Mask","SSU 03",{"$f":"-Inventory_Table[[#This Row],[Quantity In]]","v":-1},"CMC",1,{"$f":"_xlfn.CONCAT(Inventory_Table[[#This Row],[Form Factor]],Inventory_Table[[#This Row],[Current Location]])","v":"MaskCMC"},"2020-01-21","Test Program 404","Test Part Number","Test Lot # 404"]
["Mask","SSU 04",{"$f":"-Inventory_Table[[#This Row],[Quantity In]]","v":-1},"CMC",1,{"$f":"_xlfn.CONCAT(Inventory_Table[[#This Row],[Form Factor]],Inventory_Table[[#This Row],[Current Location]])","v":"MaskCMC"},"2020-01-21","Test Program 405","Test Part Number","Test Lot # 405"]
["Mask","SSU 05",{"$f":"-Inventory_Table[[#This Row],[Quantity In]]","v":-1},"CMC",1,{"$f":"_xlfn.CONCAT(Inventory_Table[[#This Row],[Form Factor]],Inventory_Table[[#This Row],[Current Location]])","v":"MaskCMC"},"2020-01-21","Test Program 406","Test Part Number","Test Lot # 406"]
["Mask","SSU 06",{"$f":"-Inventory_Table[[#This Row],[Quantity In]]","v":-1},"CMC",1,{"$f":"_xlfn.CONCAT(Inventory_Table[[#This Row],[Form Factor]],Inventory_Table[[#This Row],[Current Location]])","v":"MaskCMC"},"2020-01-21","Test Program 407","Test Part Number","Test Lot # 407"]
["Mask","SSU 07",{"$f":"-Inventory_Table[[#This Row],[Quantity In]]","v":-1},"CMC",1,{"$f":"_xlfn.CONCAT(Inventory_Table[[#This Row],[Form Factor]],Inventory_Table[[#This Row],[Current Location]])","v":"MaskCMC"},"2020-01-21","Test Program 408","Test Part Number","Test Lot # 408"]
["Mask","SSU 08",{"$f":"-Inventory_Table[[#This Row],[Quantity In]]","v":-1},"CMC",1,{"$f":"_xlfn.CONCAT(Inventory_Table[[#This Row],[Form Factor]],Inventory_Table[[#This Row],[Current Location]])","v":"MaskCMC"},"2020-01-21","Test Program 409","Test Part Number","Test Lot # 409"]
["Mask","SSU 09",{"$f":"-Inventory_Table[[#This Row],[Quantity In]]","v":-1},"CMC",1,{"$f":"_xlfn.CONCAT(Inventory_Table[[#This Row],[Form Factor]],Inventory_Table[[#This Row],[Current Location]])","v":"MaskCMC"},"2020-01-21","Test Program 410","Test Part Number","Test Lot # 410"]
["Mask","SSU 10",{"$f":"-Inventory_Table[[#This Row],[Quantity In]]","v":-1},"CMC",1,{"$f":"_xlfn.CONCAT(Inventory_Table[[#This Row],[Form Factor]],Inventory_Table[[#This Row],[Current Location]])","v":"MaskCMC"},"2020-01-21","Test Program 411","Test Part Number","Test Lot # 411"]
["Mask","SSU 11",{"$f":"-Inventory_Table[[#This Row],[Quantity In]]","v":-1},"CMC",1,{"$f":"_xlfn.CONCAT(Inventory_Table[[#This Row],[Form Factor]],Inventory_Table[[#This Row],[Current Location]])","v":"MaskCMC"},"2020-01-21","Test Program 412","Test Part Number","Test Lot # 412"]
["Module","SSU 12",{"$f":"-Inventory_Table[[#This Row],[Quantity In]]","v":-6},"SSU 08",6,{"$f":"_xlfn.CONCAT(Inventory_Table[[#This Row],[Form Factor]],Inventory_Table[[#This Row],[Current Location]])","v":"ModuleSSU 08"},"2020-01-22","Test Program 413","Test Part Number","Test Lot # 413"]
["Module","SSU 13",{"$f":"-Inventory_Table[[#This Row],[Quantity In]]","v":-6},"SSU 08",6,{"$f":"_xlfn.CONCAT(Inventory_Table[[#This Row],[Form Factor]],Inventory_Table[[#This Row],[Current Location]])","v":"ModuleSSU 08"},"2020-01-22","Test Program 414","Test Part Number","Test Lot # 414"]
["Module","SSU 14",{"$f":"-Inventory_Table[[#This Row],[Quantity In]]","v":-1},"SSU 08",1,{"$f":"_xlfn.CONCAT(Inventory_Table[[#This Row],[Form Factor]],Inventory_Table[[#This Row],[Current Location]])","v":"ModuleSSU 08"},"2020-01-22","Test Program 415","Test Part Number","Test Lot # 415"]
["Module","SSU 15",{"$f":"-Inventory_Table[[#This Row],[Quantity In]]","v":-4},"SSU 07A",4,{"$f":"_xlfn.CONCAT(Inventory_Table[[#This Row],[Form Factor]],Inventory_Table[[#This Row],[Current Location]])","v":"ModuleSSU 07A"},"2020-01-24","Test Program 416","Test Part Number","Test Lot # 416"]
["Wafer - 300mm","SSU 16",{"$f":"-Inventory_Table[[#This Row],[Quantity In]]","v":-4},"FGI/Shipped to Client",4,{"$f":"_xlfn.CONCAT(Inventory_Table[[#This Row],[Form Factor]],Inventory_Table[[#This Row],[Current Location]])","v":"Wafer - 300mmFGI/Shipped to Client"},"2020-01-29","Test Program 417","Test Part Number","Test Lot # 417"]
["Module","SSU 17",{"$f":"-Inventory_Table[[#This Row],[Quantity In]]","v":-438},"FGI/Shipped to Client",438,{"$f":"_xlfn.CONCAT(Inventory_Table[[#This Row],[Form Factor]],Inventory_Table[[#This Row],[Current Location]])","v":"ModuleFGI/Shipped to Client"},"2020-01-30","Test Program 418","Test Part Number","Test Lot # 418"]
["Module","SSU 18",{"$f":"-Inventory_Table[[#This Row],[Quantity In]]","v":-430},"FGI/Shipped to Client",430,{"$f":"_xlfn.CONCAT(Inventory_Table[[#This Row],[Form Factor]],Inventory_Table[[#This Row],[Current Location]])","v":"ModuleFGI/Shipped to Client"},"2020-01-30","Test Program 419","Test Part Number","Test Lot # 419"]
["Module","SSU 01",{"$f":"-Inventory_Table[[#This Row],[Quantity In]]","v":-433},"FGI/Shipped to Client",433,{"$f":"_xlfn.CONCAT(Inventory_Table[[#This Row],[Form Factor]],Inventory_Table[[#This Row],[Current Location]])","v":"ModuleFGI/Shipped to Client"},"2020-01-30","Test Program 420","Test Part Number","Test Lot # 420"]
["Module","SSU 02",{"$f":"-Inventory_Table[[#This Row],[Quantity In]]","v":-401},"FGI/Shipped to Client",401,{"$f":"_xlfn.CONCAT(Inventory_Table[[#This Row],[Form Factor]],Inventory_Table[[#This Row],[Current Location]])","v":"ModuleFGI/Shipped to Client"},"2020-01-30","Test Program 421","Test Part Number","Test Lot # 421"]
["Module","SSU 03",{"$f":"-Inventory_Table[[#This Row],[Quantity In]]","v":-389},"FGI/Shipped to Client",389,{"$f":"_xlfn.CONCAT(Inventory_Table[[#This Row],[Form Factor]],Inventory_Table[[#This Row],[Current Location]])","v":"ModuleFGI/Shipped to Client"},"2020-01-30","Test Program 422","Test Part Number","Test Lot # 422"]
["Module","SSU 04",{"$f":"-Inventory_Table[[#This Row],[Quantity In]]","v":-436},"FGI/Shipped to Client",436,{"$f":"_xlfn.CONCAT(Inventory_Table[[#This Row],[Form Factor]],Inventory_Table[[#This Row],[Current Location]])","v":"ModuleFGI/Shipped to Client"},"2020-01-30","Test Program 423","Test Part Number","Test Lot # 423"]
["Module","SSU 05",{"$f":"-Inventory_Table[[#This Row],[Quantity In]]","v":-59},"FGI/Shipped to Client",59,{"$f":"_xlfn.CONCAT(Inventory_Table[[#This Row],[Form Factor]],Inventory_Table[[#This Row],[Current Location]])","v":"ModuleFGI/Shipped to Client"},"2020-01-30","Test Program 424","Test Part Number","Test Lot # 424"]
["Wafer - 200mm","SSU 06",{"$f":"-Inventory_Table[[#This Row],[Quantity In]]","v":-11},"FGI/Shipped to Client",11,{"$f":"_xlfn.CONCAT(Inventory_Table[[#This Row],[Form Factor]],Inventory_Table[[#This Row],[Current Location]])","v":"Wafer - 200mmFGI/Shipped to Client"},"2020-01-30","Test Program 425","Test Part Number","Test Lot # 425"]
["Module","SSU 07",{"$f":"-Inventory_Table[[#This Row],[Quantity In]]","v":-429},"FGI/Shipped to Client",429,{"$f":"_xlfn.CONCAT(Inventory_Table[[#This Row],[Form Factor]],Inventory_Table[[#This Row],[Current Location]])","v":"ModuleFGI/Shipped to Client"},"2020-01-30","Test Program 426","Test Part Number","Test Lot # 426"]
["Module","SSU 08",{"$f":"-Inventory_Table[[#This Row],[Quantity In]]","v":-431},"FGI/Shipped to Client",431,{"$f":"_xlfn.CONCAT(Inventory_Table[[#This Row],[Form Factor]],Inventory_Table[[#This Row],[Current Location]])","v":"ModuleFGI/Shipped to Client"},"2020-01-30","Test Program 427","Test Part Number","Test Lot # 427"]
["Module","SSU 09",{"$f":"-Inventory_Table[[#This Row],[Quantity In]]","v":-160},"FGI/Shipped to Client",160,{"$f":"_xlfn.CONCAT(Inventory_Table[[#This Row],[Form Factor]],Inventory_Table[[#This Row],[Current Location]])","v":"ModuleFGI/Shipped to Client"},"2020-01-30","Test Program 428","Test Part Number","Test Lot # 428"]
["Module","SSU 10",{"$f":"-Inventory_Table[[#This Row],[Quantity In]]","v":-86},"FGI/Shipped to Client",86,{"$f":"_xlfn.CONCAT(Inventory_Table[[#This Row],[Form Factor]],Inventory_Table[[#This Row],[Current Location]])","v":"ModuleFGI/Shipped to Client"},"2020-01-30","Test Program 429","Test Part Number","Test Lot # 429"]
["Module","SSU 11",{"$f":"-Inventory_Table[[#This Row],[Quantity In]]","v":-104},"FGI/Shipped to Client",104,{"$f":"_xlfn.CONCAT(Inventory_Table[[#This Row],[Form Factor]],Inventory_Table[[#This Row],[Current Location]])","v":"ModuleFGI/Shipped to Client"},"2020-01-30","Test Program 430","Test Part Number","Test Lot # 430"]
["Module","SSU 12",{"$f":"-Inventory_Table[[#This Row],[Quantity In]]","v":-16},"FGI/Shipped to Client",16,{"$f":"_xlfn.CONCAT(Inventory_Table[[#This Row],[Form Factor]],Inventory_Table[[#This Row],[Current Location]])","v":"ModuleFGI/Shipped to Client"},"2020-01-30","Test Program 431","Test Part Number","Test Lot # 431"]
["Module","SSU 13",{"$f":"-Inventory_Table[[#This Row],[Quantity In]]","v":-53},"FGI/Shipped to Client",53,{"$f":"_xlfn.CONCAT(Inventory_Table[[#This Row],[Form Factor]],Inventory_Table[[#This Row],[Current Location]])","v":"ModuleFGI/Shipped to Client"},"2020-01-30","Test Program 432","Test Part Number","Test Lot # 432"]
["Module","SSU 14",{"$f":"-Inventory_Table[[#This Row],[Quantity In]]","v":-153},"FGI/Shipped to Client",153,{"$f":"_xlfn.CONCAT(Inventory_Table[[#This Row],[Form Factor]],Inventory_Table[[#This Row],[Current Location]])","v":"ModuleFGI/Shipped to Client"},"2020-01-30","Test Program 433","Test Part Number","Test Lot # 433"]
["Module","SSU 15",{"$f":"-Inventory_Table[[#This Row],[Quantity In]]","v":-168},"FGI/Shipped to Client",168,{"$f":"_xlfn.CONCAT(Inventory_Table[[#This Row],[Form Factor]],Inventory_Table[[#This Row],[Current Location]])","v":"ModuleFGI/Shipped to Client"},"2020-01-30","Test Program 434","Test Part Number","Test Lot # 434"]
["Module","SSU 16",{"$f":"-Inventory_Table[[#This Row],[Quantity In]]","v":-67},"FGI/Shipped to Client",67,{"$f":"_xlfn.CONCAT(Inventory_Table[[#This Row],[Form Factor]],Inventory_Table[[#This Row],[Current Location]])","v":"ModuleFGI/Shipped to Client"},"2020-01-30","Test Program 435","Test Part Number","Test Lot # 435"]
["Module","SSU 17",{"$f":"-Inventory_Table[[#This Row],[Quantity In]]","v":-370},"FGI/Shipped to Client",370,{"$f":"_xlfn.CONCAT(Inventory_Table[[#This Row],[Form Factor]],Inventory_Table[[#This Row],[Current Location]])","v":"ModuleFGI/Shipped to Client"},"2020-01-30","Test Program 436","Test Part Number","Test Lot # 436"]
["Module","SSU 17",{"$f":"-Inventory_Table[[#This Row],[Quantity In]]","v":-315},"FGI/Shipped to Client",315,{"$f":"_xlfn.CONCAT(Inventory_Table[[#This Row],[Form Factor]],Inventory_Table[[#This Row],[Current Location]])","v":"ModuleFGI/Shipped to Client"},"2020-01-30","Test Program 437","Test Part Number","Test Lot # 437"]
["Module","SSU 18",{"$f":"-Inventory_Table[[#This Row],[Quantity In]]","v":-12},"FGI/Shipped to Client",12,{"$f":"_xlfn.CONCAT(Inventory_Table[[#This Row],[Form Factor]],Inventory_Table[[#This Row],[Current Location]])","v":"ModuleFGI/Shipped to Client"},"2020-01-30","Test Program 438","Test Part Number","Test Lot # 438"]
["Mask","SSU 01",{"$f":"-Inventory_Table[[#This Row],[Quantity In]]","v":-1},"SSU 12",1,{"$f":"_xlfn.CONCAT(Inventory_Table[[#This Row],[Form Factor]],Inventory_Table[[#This Row],[Current Location]])","v":"MaskSSU 12"},"2020-02-02","Test Program 439","Test Part Number","Test Lot # 439"]
["Mask","SSU 02",{"$f":"-Inventory_Table[[#This Row],[Quantity In]]","v":-1},"SSU 12",1,{"$f":"_xlfn.CONCAT(Inventory_Table[[#This Row],[Form Factor]],Inventory_Table[[#This Row],[Current Location]])","v":"MaskSSU 12"},"2020-02-02","Test Program 440","Test Part Number","Test Lot # 440"]
["Wafer - 200mm","SSU 03",{"$f":"-Inventory_Table[[#This Row],[Quantity In]]","v":-16},"FGI/Shipped to Client",16,{"$f":"_xlfn.CONCAT(Inventory_Table[[#This Row],[Form Factor]],Inventory_Table[[#This Row],[Current Location]])","v":"Wafer - 200mmFGI/Shipped to Client"},"2020-02-02","Test Program 441","Test Part Number","Test Lot # 441"]
["Wafer - 200mm","SSU 04",{"$f":"-Inventory_Table[[#This Row],[Quantity In]]","v":-6},"FGI/Shipped to Client",6,{"$f":"_xlfn.CONCAT(Inventory_Table[[#This Row],[Form Factor]],Inventory_Table[[#This Row],[Current Location]])","v":"Wafer - 200mmFGI/Shipped to Client"},"2020-02-02","Test Program 442","Test Part Number","Test Lot # 442"]
["Mask","SSU 05",{"$f":"-Inventory_Table[[#This Row],[Quantity In]]","v":-1},"SSU 13",1,{"$f":"_xlfn.CONCAT(Inventory_Table[[#This Row],[Form Factor]],Inventory_Table[[#This Row],[Current Location]])","v":"MaskSSU 13"},"2020-02-04","Test Program 443","Test Part Number","Test Lot # 443"]
["Module","SSU 06",{"$f":"-Inventory_Table[[#This Row],[Quantity In]]","v":-3},"SSU 08",3,{"$f":"_xlfn.CONCAT(Inventory_Table[[#This Row],[Form Factor]],Inventory_Table[[#This Row],[Current Location]])","v":"ModuleSSU 08"},"2020-02-06","Test Program 444","Test Part Number","Test Lot # 444"]
["Module","SSU 07",{"$f":"-Inventory_Table[[#This Row],[Quantity In]]","v":-3},"SSU 08",3,{"$f":"_xlfn.CONCAT(Inventory_Table[[#This Row],[Form Factor]],Inventory_Table[[#This Row],[Current Location]])","v":"ModuleSSU 08"},"2020-02-06","Test Program 445","Test Part Number","Test Lot # 445"]
["Module","SSU 08",{"$f":"-Inventory_Table[[#This Row],[Quantity In]]","v":-1},"SSU 08",1,{"$f":"_xlfn.CONCAT(Inventory_Table[[#This Row],[Form Factor]],Inventory_Table[[#This Row],[Current Location]])","v":"ModuleSSU 08"},"2020-02-06","Test Program 446","Test Part Number","Test Lot # 446"]
["Module","SSU 09",{"$f":"-Inventory_Table[[#This Row],[Quantity In]]","v":-1},"SSU 08",1,{"$f":"_xlfn.CONCAT(Inventory_Table[[#This Row],[Form Factor]],Inventory_Table[[#This Row],[Current Location]])","v":"ModuleSSU 08"},"2020-02-06","Test Program 447","Test Part Number","Test Lot # 447"]
["Module","SSU 10",{"$f":"-Inventory_Table[[#This Row],[Quantity In]]","v":-4},"SSU 08",4,{"$f":"_xlfn.CONCAT(Inventory_Table[[#This Row],[Form Factor]],Inventory_Table[[#This Row],[Current Location]])","v":"ModuleSSU 08"},"2020-02-06","Test Program 448","Test Part Number","Test Lot # 448"]
["Wafer - 300mm","SSU 11",{"$f":"-Inventory_Table[[#This Row],[Quantity In]]","v":-1},"Post Fab",1,{"$f":"_xlfn.CONCAT(Inventory_Table[[#This Row],[Form Factor]],Inventory_Table[[#This Row],[Current Location]])","v":"Wafer - 300mmPost Fab"},"2020-02-11","Test Program 449","Test Part Number","Test Lot # 449"]
["Wafer - 300mm","SSU 12",{"$f":"-Inventory_Table[[#This Row],[Quantity In]]","v":-1},"Post Fab",1,{"$f":"_xlfn.CONCAT(Inventory_Table[[#This Row],[Form Factor]],Inventory_Table[[#This Row],[Current Location]])","v":"Wafer - 300mmPost Fab"},"2020-02-11","Test Program 450","Test Part Number","Test Lot # 450"]
["Wafer - 300mm","SSU 13",{"$f":"-Inventory_Table[[#This Row],[Quantity In]]","v":-1},"Post Fab",1,{"$f":"_xlfn.CONCAT(Inventory_Table[[#This Row],[Form Factor]],Inventory_Table[[#This Row],[Current Location]])","v":"Wafer - 300mmPost Fab"},"2020-02-11","Test Program 451","Test Part Number","Test Lot # 451"]
["Wafer - 300mm","SSU 14",{"$f":"-Inventory_Table[[#This Row],[Quantity In]]","v":-5},"Bromont - BMT",5,{"$f":"_xlfn.CONCAT(Inventory_Table[[#This Row],[Form Factor]],Inventory_Table[[#This Row],[Current Location]])","v":"Wafer - 300mmBromont - BMT"},"2020-02-11","Test Program 452","Test Part Number","Test Lot # 452"]
["Wafer - 300mm","SSU 15",{"$f":"-Inventory_Table[[#This Row],[Quantity In]]","v":-5},"Bromont - BMT",5,{"$f":"_xlfn.CONCAT(Inventory_Table[[#This Row],[Form Factor]],Inventory_Table[[#This Row],[Current Location]])","v":"Wafer - 300mmBromont - BMT"},"2020-02-11","Test Program 453","Test Part Number","Test Lot # 453"]
["Wafer - 300mm","SSU 16",{"$f":"-Inventory_Table[[#This Row],[Quantity In]]","v":-5},"Bromont - BMT",5,{"$f":"_xlfn.CONCAT(Inventory_Table[[#This Row],[Form Factor]],Inventory_Table[[#This Row],[Current Location]])","v":"Wafer - 300mmBromont - BMT"},"2020-02-11","Test Program 454","Test Part Number","Test Lot # 454"]
["Wafer - 300mm","SSU 17",{"$f":"-Inventory_Table[[#This Row],[Quantity In]]","v":-5},"Bromont - BMT",5,{"$f":"_xlfn.CONCAT(Inventory_Table[[#This Row],[Form Factor]],Inventory_Table[[#This Row],[Current Location]])","v":"Wafer - 300mmBromont - BMT"},"2020-02-11","Test Program 455","Test Part Number","Test Lot # 455"]
["Wafer - 300mm","SSU 18",{"$f":"-Inventory_Table[[#This Row],[Quantity In]]","v":-5},"Bromont - BMT",5,{"$f":"_xlfn.CONCAT(Inventory_Table[[#This Row],[Form Factor]],Inventory_Table[[#This Row],[Current Location]])","v":"Wafer - 300mmBromont - BMT"},"2020-02-11","Test Program 456","Test Part Number","Test Lot # 456"]
["Wafer - 200mm","SSU 01",{"$f":"-Inventory_Table[[#This Row],[Quantity In]]","v":-1},"SSU 01",1,{"$f":"_xlfn.CONCAT(Inventory_Table[[#This Row],[Form Factor]],Inventory_Table[[#This Row],[Current Location]])","v":"Wafer - 200mmSSU 01"},"2020-02-13","Test Program 457","Test Part Number","Test Lot # 457"]
["Wafer - 200mm","SSU 02",{"$f":"-Inventory_Table[[#This Row],[Quantity In]]","v":-1},"SSU 01",1,{"$f":"_xlfn.CONCAT(Inventory_Table[[#This Row],[Form Factor]],Inventory_Table[[#This Row],[Current Location]])","v":"Wafer - 200mmSSU 01"},"2020-02-13","Test Program 458","Test Part Number","Test Lot # 458"]
["Wafer - 200mm","SSU 03",{"$f":"-Inventory_Table[[#This Row],[Quantity In]]","v":-1},"SSU 01",1,{"$f":"_xlfn.CONCAT(Inventory_Table[[#This Row],[Form Factor]],Inventory_Table[[#This Row],[Current Location]])","v":"Wafer - 200mmSSU 01"},"2020-02-13","Test Program 459","Test Part Number","Test Lot # 459"]
["Wafer - 200mm","SSU 04",{"$f":"-Inventory_Table[[#This Row],[Quantity In]]","v":-1},"SSU 01",1,{"$f":"_xlfn.CONCAT(Inventory_Table[[#This Row],[Form Factor]],Inventory_Table[[#This Row],[Current Location]])","v":"Wafer - 200mmSSU 01"},"2020-02-13","Test Program 460","Test Part Number","Test Lot # 460"]
["Wafer - 200mm","SSU 05",{"$f":"-Inventory_Table[[#This Row],[Quantity In]]","v":-1},"SSU 01",1,{"$f":"_xlfn.CONCAT(Inventory_Table[[#This Row],[Form Factor]],Inventory_Table[[#This Row],[Current Location]])","v":"Wafer - 200mmSSU 01"},"2020-02-13","Test Program 461","Test Part Number","Test Lot # 461"]
["Wafer - 200mm","SSU 06",{"$f":"-Inventory_Table[[#This Row],[Quantity In]]","v":-1},"SSU 01",1,{"$f":"_xlfn.CONCAT(Inventory_Table[[#This Row],[Form Factor]],Inventory_Table[[#This Row],[Current Location]])","v":"Wafer - 200mmSSU 01"},"2020-02-13","Test Program 462","Test Part Number","Test Lot # 462"]
["Wafer - 200mm","SSU 07",{"$f":"-Inventory_Table[[#This Row],[Quantity In]]","v":-1},"SSU 01",1,{"$f":"_xlfn.CONCAT(Inventory_Table[[#This Row],[Form Factor]],Inventory_Table[[#This Row],[Current Location]])","v":"Wafer - 200mmSSU 01"},"2020-02-13","Test Program 463","Test Part Number","Test Lot # 463"]
["Wafer - 200mm","SSU 08",{"$f":"-Inventory_Table[[#This Row],[Quantity In]]","v":-1},"SSU 01",1,{"$f":"_xlfn.CONCAT(Inventory_Table[[#This Row],[Form Factor]],Inventory_Table[[#This Row],[Current Location]])","v":"Wafer - 200mmSSU 01"},"2020-02-13","Test Program 464","Test Part Number","Test Lot # 464"]
["Wafer - 200mm","SSU 09",{"$f":"-Inventory_Table[[#This Row],[Quantity In]]","v":-1},"SSU 01",1,{"$f":"_xlfn.CONCAT(Inventory_Table[[#This Row],[Form Factor]],Inventory_Table[[#This Row],[Current Location]])","v":"Wafer - 200mmSSU 01"},"2020-02-13","Test Program 465","Test Part Number","Test Lot # 465"]
["Wafer - 200mm","SSU 10",{"$f":"-Inventory_Table[[#This Row],[Quantity In]]","v":-1},"SSU 01",1,{"$f":"_xlfn.CONCAT(Inventory_Table[[#This Row],[Form Factor]],Inventory_Table[[#This Row],[Current Location]])","v":"Wafer - 200mmSSU 01"},"2020-02-13","Test Program 466","Test Part Number","Test Lot # 466"]
["Wafer - 200mm","SSU 11",{"$f":"-Inventory_Table[[#This Row],[Quantity In]]","v":-1},"SSU 01",1,{"$f":"_xlfn.CONCAT(Inventory_Table[[#This Row],[Form Factor]],Inventory_Table[[#This Row],[Current Location]])","v":"Wafer - 200mmSSU 01"},"2020-02-13","Test Program 467","Test Part Number","Test Lot # 467"]
["Wafer - 200mm","SSU 12",{"$f":"-Inventory_Table[[#This Row],[Quantity In]]","v":-1},"SSU 01",1,{"$f":"_xlfn.CONCAT(Inventory_Table[[#This Row],[Form Factor]],Inventory_Table[[#This Row],[Current Location]])","v":"Wafer - 200mmSSU 01"},"2020-02-13","Test Program 468","Test Part Number","Test Lot # 468"]
["Wafer - 200mm","SSU 13",{"$f":"-Inventory_Table[[#This Row],[Quantity In]]","v":-1},"SSU 01",1,{"$f":"_xlfn.CONCAT(Inventory_Table[[#This Row],[Form Factor]],Inventory_Table[[#This Row],[Current Location]])","v":"Wafer - 200mmSSU 01"},"2020-02-13","Test Program 469","Test Part Number","Test Lot # 469"]
["Wafer - 200mm","SSU 14",{"$f":"-Inventory_Table[[#This Row],[Quantity In]]","v":-1},"SSU 01",1,{"$f":"_xlfn.CONCAT(Inventory_Table[[#This Row],[Form Factor]],Inventory_Table[[#This Row],[Current Location]])","v":"Wafer - 200mmSSU 01"},"2020-02-13","Test Program 470","Test Part Number","Test Lot # 470"]
["Wafer - 200mm","SSU 15",{"$f":"-Inventory_Table[[#This Row],[Quantity In]]","v":-1},"SSU 01",1,{"$f":"_xlfn.CONCAT(Inventory_Table[[#This Row],[Form Factor]],Inventory_Table[[#This Row],[Current Location]])","v":"Wafer - 200mmSSU 01"},"2020-02-13","Test Program 471","Test Part Number","Test Lot # 471"]
["Wafer - 200mm","SSU 16",{"$f":"-Inventory_Table[[#This Row],[Quantity In]]","v":-1},"SSU 01",1,{"$f":"_xlfn.CONCAT(Inventory_Table[[#This Row],[Form Factor]],Inventory_Table[[#This Row],[Current Location]])","v":"Wafer - 200mmSSU 01"},"2020-02-13","Test Program 472","Test Part Number","Test Lot # 472"]
["Wafer - 200mm","SSU 17",{"$f":"-Inventory_Table[[#This Row],[Quantity In]]","v":-1},"SSU 01",1,{"$f":"_xlfn.CONCAT(Inventory_Table[[#This Row],[Form Factor]],Inventory_Table[[#This Row],[Current Location]])","v":"Wafer - 200mmSSU 01"},"2020-02-13","Test Program 473","Test Part Number","Test Lot # 473"]
["Wafer - 200mm","SSU 18",{"$f":"-Inventory_Table[[#This Row],[Quantity In]]","v":-1},"SSU 01",1,{"$f":"_xlfn.CONCAT(Inventory_Table[[#This Row],[Form Factor]],Inventory_Table[[#This Row],[Current Location]])","v":"Wafer - 200mmSSU 01"},"2020-02-13","Test Program 474","Test Part Number","Test Lot # 474"]
["Wafer - 200mm","SSU 01",{"$f":"-Inventory_Table[[#This Row],[Quantity In]]","v":-1},"SSU 01",1,{"$f":"_xlfn.CONCAT(Inventory_Table[[#This Row],[Form Factor]],Inventory_Table[[#This Row],[Current Location]])","v":"Wafer - 200mmSSU 01"},"2020-02-13","Test Program 475","Test Part Number","Test Lot # 475"]
["Wafer - 200mm","SSU 02",{"$f":"-Inventory_Table[[#This Row],[Quantity In]]","v":-1},"SSU 01",1,{"$f":"_xlfn.CONCAT(Inventory_Table[[#This Row],[Form Factor]],Inventory_Table[[#This Row],[Current Location]])","v":"Wafer - 200mmSSU 01"},"2020-02-13","Test Program 476","Test Part Number","Test Lot # 476"]
["Wafer - 200mm","SSU 03",{"$f":"-Inventory_Table[[#This Row],[Quantity In]]","v":-1},"SSU 01",1,{"$f":"_xlfn.CONCAT(Inventory_Table[[#This Row],[Form Factor]],Inventory_Table[[#This Row],[Current Location]])","v":"Wafer - 200mmSSU 01"},"2020-02-13","Test Program 477","Test Part Number","Test Lot # 477"]
["Wafer - 200mm","SSU 04",{"$f":"-Inventory_Table[[#This Row],[Quantity In]]","v":-1},"SSU 01",1,{"$f":"_xlfn.CONCAT(Inventory_Table[[#This Row],[Form Factor]],Inventory_Table[[#This Row],[Current Location]])","v":"Wafer - 200mmSSU 01"},"2020-02-13","Test Program 478","Test Part Number","Test Lot # 478"]
["Wafer - 200mm","SSU 05",{"$f":"-Inventory_Table[[#This Row],[Quantity In]]","v":-1},"SSU 01",1,{"$f":"_xlfn.CONCAT(Inventory_Table[[#This Row],[Form Factor]],Inventory_Table[[#This Row],[Current Location]])","v":"Wafer - 200mmSSU 01"},"2020-02-13","Test Program 479","Test Part Number","Test Lot # 479"]
["Wafer - 200mm","SSU 06",{"$f":"-Inventory_Table[[#This Row],[Quantity In]]","v":-1},"SSU 01",1,{"$f":"_xlfn.CONCAT(Inventory_Table[[#This Row],[Form Factor]],Inventory_Table[[#This Row],[Current Location]])","v":"Wafer - 200mmSSU 01"},"2020-02-13","Test Program 480","Test Part Number","Test Lot # 480"]
["Module","SSU 07",{"$f":"-Inventory_Table[[#This Row],[Quantity In]]","v":-4},"SSU 08",4,{"$f":"_xlfn.CONCAT(Inventory_Table[[#This Row],[Form Factor]],Inventory_Table[[#This Row],[Current Location]])","v":"ModuleSSU 08"},"2020-02-14","Test Program 481","Test Part Number","Test Lot # 481"]
["Module","SSU 08",{"$f":"-Inventory_Table[[#This Row],[Quantity In]]","v":-22},"SSU 08",22,{"$f":"_xlfn.CONCAT(Inventory_Table[[#This Row],[Form Factor]],Inventory_Table[[#This Row],[Current Location]])","v":"ModuleSSU 08"},"2020-02-14","Test Program 482","Test Part Number","Test Lot # 482"]
["Module","SSU 09",{"$f":"-Inventory_Table[[#This Row],[Quantity In]]","v":-2},"SSU 08",2,{"$f":"_xlfn.CONCAT(Inventory_Table[[#This Row],[Form Factor]],Inventory_Table[[#This Row],[Current Location]])","v":"ModuleSSU 08"},"2020-02-14","Test Program 483","Test Part Number","Test Lot # 483"]
["Module","SSU 10",{"$f":"-Inventory_Table[[#This Row],[Quantity In]]","v":-4},"SSU 08",4,{"$f":"_xlfn.CONCAT(Inventory_Table[[#This Row],[Form Factor]],Inventory_Table[[#This Row],[Current Location]])","v":"ModuleSSU 08"},"2020-02-14","Test Program 484","Test Part Number","Test Lot # 484"]
["Module","SSU 11",{"$f":"-Inventory_Table[[#This Row],[Quantity In]]","v":-1},"SSU 08",1,{"$f":"_xlfn.CONCAT(Inventory_Table[[#This Row],[Form Factor]],Inventory_Table[[#This Row],[Current Location]])","v":"ModuleSSU 08"},"2020-02-14","Test Program 485","Test Part Number","Test Lot # 485"]
["Module","SSU 12",{"$f":"-Inventory_Table[[#This Row],[Quantity In]]","v":-4},"SSU 08",4,{"$f":"_xlfn.CONCAT(Inventory_Table[[#This Row],[Form Factor]],Inventory_Table[[#This Row],[Current Location]])","v":"ModuleSSU 08"},"2020-02-14","Test Program 486","Test Part Number","Test Lot # 486"]
["Module","SSU 13",{"$f":"-Inventory_Table[[#This Row],[Quantity In]]","v":-2},"SSU 08",2,{"$f":"_xlfn.CONCAT(Inventory_Table[[#This Row],[Form Factor]],Inventory_Table[[#This Row],[Current Location]])","v":"ModuleSSU 08"},"2020-02-14","Test Program 487","Test Part Number","Test Lot # 487"]
["Module","SSU 14",{"$f":"-Inventory_Table[[#This Row],[Quantity In]]","v":-1},"SSU 08",1,{"$f":"_xlfn.CONCAT(Inventory_Table[[#This Row],[Form Factor]],Inventory_Table[[#This Row],[Current Location]])","v":"ModuleSSU 08"},"2020-02-14","Test Program 488","Test Part Number","Test Lot # 488"]
["Module","SSU 15",{"$f":"-Inventory_Table[[#This Row],[Quantity In]]","v":-6},"SSU 08",6,{"$f":"_xlfn.CONCAT(Inventory_Table[[#This Row],[Form Factor]],Inventory_Table[[#This Row],[Current Location]])","v":"ModuleSSU 08"},"2020-02-14","Test Program 489","Test Part Number","Test Lot # 489"]
["Wafer - 200mm","SSU 16",{"$f":"-Inventory_Table[[#This Row],[Quantity In]]","v":-1},"SSU 07",1,{"$f":"_xlfn.CONCAT(Inventory_Table[[#This Row],[Form Factor]],Inventory_Table[[#This Row],[Current Location]])","v":"Wafer - 200mmSSU 07"},"2020-02-19","Test Program 490","Test Part Number","Test Lot # 490"]
["Wafer - 200mm","SSU 17",{"$f":"-Inventory_Table[[#This Row],[Quantity In]]","v":-22},"SSU 07",22,{"$f":"_xlfn.CONCAT(Inventory_Table[[#This Row],[Form Factor]],Inventory_Table[[#This Row],[Current Location]])","v":"Wafer - 200mmSSU 07"},"2020-02-19","Test Program 491","Test Part Number","Test Lot # 491"]
["Wafer - 200mm","SSU 18",{"$f":"-Inventory_Table[[#This Row],[Quantity In]]","v":-24},"SSU 07",24,{"$f":"_xlfn.CONCAT(Inventory_Table[[#This Row],[Form Factor]],Inventory_Table[[#This Row],[Current Location]])","v":"Wafer - 200mmSSU 07"},"2020-02-19","Test Program 492","Test Part Number","Test Lot # 492"]
["Wafer - 200mm","SSU 01",{"$f":"-Inventory_Table[[#This Row],[Quantity In]]","v":-24},"SSU 07",24,{"$f":"_xlfn.CONCAT(Inventory_Table[[#This Row],[Form Factor]],Inventory_Table[[#This Row],[Current Location]])","v":"Wafer - 200mmSSU 07"},"2020-02-19","Test Program 493","Test Part Number","Test Lot # 493"]
["Wafer - 200mm","SSU 02",{"$f":"-Inventory_Table[[#This Row],[Quantity In]]","v":-25},"SSU 07",25,{"$f":"_xlfn.CONCAT(Inventory_Table[[#This Row],[Form Factor]],Inventory_Table[[#This Row],[Current Location]])","v":"Wafer - 200mmSSU 07"},"2020-02-19","Test Program 494","Test Part Number","Test Lot # 494"]
["Wafer - 300mm","SSU 03",{"$f":"-Inventory_Table[[#This Row],[Quantity In]]","v":-6},"FGI/Shipped to Client",6,{"$f":"_xlfn.CONCAT(Inventory_Table[[#This Row],[Form Factor]],Inventory_Table[[#This Row],[Current Location]])","v":"Wafer - 300mmFGI/Shipped to Client"},"2020-02-19","Test Program 495","Test Part Number","Test Lot # 495"]
["Wafer - 300mm","SSU 04",{"$f":"-Inventory_Table[[#This Row],[Quantity In]]","v":-6},"FGI/Shipped to Client",6,{"$f":"_xlfn.CONCAT(Inventory_Table[[#This Row],[Form Factor]],Inventory_Table[[#This Row],[Current Location]])","v":"Wafer - 300mmFGI/Shipped to Client"},"2020-02-19","Test Program 496","Test Part Number","Test Lot # 496"]
["Wafer - 300mm","SSU 05",{"$f":"-Inventory_Table[[#This Row],[Quantity In]]","v":-5},"FGI/Shipped to Client",5,{"$f":"_xlfn.CONCAT(Inventory_Table[[#This Row],[Form Factor]],Inventory_Table[[#This Row],[Current Location]])","v":"Wafer - 300mmFGI/Shipped to Client"},"2020-02-19","Test Program 497","Test Part Number","Test Lot # 497"]
["Wafer - 300mm","SSU 06",{"$f":"-Inventory_Table[[#This Row],[Quantity In]]","v":-1},"FGI/Shipped to Client",1,{"$f":"_xlfn.CONCAT(Inventory_Table[[#This Row],[Form Factor]],Inventory_Table[[#This Row],[Current Location]])","v":"Wafer - 300mmFGI/Shipped to Client"},"2020-02-19","Test Program 498","Test Part Number","Test Lot # 498"]
["Wafer - 200mm","SSU 07",{"$f":"-Inventory_Table[[#This Row],[Quantity In]]","v":-1},"SSU 07",1,{"$f":"_xlfn.CONCAT(Inventory_Table[[#This Row],[Form Factor]],Inventory_Table[[#This Row],[Current Location]])","v":"Wafer - 200mmSSU 07"},"2020-02-20","Test Program 499","Test Part Number","Test Lot # 499"]
["Wafer - 200mm","SSU 08",{"$f":"-Inventory_Table[[#This Row],[Quantity In]]","v":-1},"SSU 07",1,{"$f":"_xlfn.CONCAT(Inventory_Table[[#This Row],[Form Factor]],Inventory_Table[[#This Row],[Current Location]])","v":"Wafer - 200mmSSU 07"},"2020-02-20","Test Program 500","Test Part Number","Test Lot # 500"]
["Wafer - 300mm","SSU 09",{"$f":"-Inventory_Table[[#This Row],[Quantity In]]","v":-5},"Bromont - BMT",5,{"$f":"_xlfn.CONCAT(Inventory_Table[[#This Row],[Form Factor]],Inventory_Table[[#This Row],[Current Location]])","v":"Wafer - 300mmBromont - BMT"},"2020-02-20","Test Program 501","Test Part Number","Test Lot # 501"]
["Wafer - 300mm","SSU 10",{"$f":"-Inventory_Table[[#This Row],[Quantity In]]","v":-5},"Bromont - BMT",5,{"$f":"_xlfn.CONCAT(Inventory_Table[[#This Row],[Form Factor]],Inventory_Table[[#This Row],[Current Location]])","v":"Wafer - 300mmBromont - BMT"},"2020-02-20","Test Program 502","Test Part Number","Test Lot # 502"]
["Wafer - 300mm","SSU 11",{"$f":"-Inventory_Table[[#This Row],[Quantity In]]","v":-4},"Bromont - BMT",4,{"$f":"_xlfn.CONCAT(Inventory_Table[[#This Row],[Form Factor]],Inventory_Table[[#This Row],[Current Location]])","v":"Wafer - 300mmBromont - BMT"},"2020-02-20","Test Program 503","Test Part Number","Test Lot # 503"]
["Module","SSU 12",{"$f":"-Inventory_Table[[#This Row],[Quantity In]]","v":-1},"SSU 07A",1,{"$f":"_xlfn.CONCAT(Inventory_Table[[#This Row],[Form Factor]],Inventory_Table[[#This Row],[Current Location]])","v":"ModuleSSU 07A"},"2020-02-21","Test Program 504","Test Part Number","Test Lot # 504"]
["Module","SSU 13",{"$f":"-Inventory_Table[[#This Row],[Quantity In]]","v":-2},"SSU 07A",2,{"$f":"_xlfn.CONCAT(Inventory_Table[[#This Row],[Form Factor]],Inventory_Table[[#This Row],[Current Location]])","v":"ModuleSSU 07A"},"2020-02-21","Test Program 505","Test Part Number","Test Lot # 505"]
["Module","SSU 14",{"$f":"-Inventory_Table[[#This Row],[Quantity In]]","v":-1},"SSU 07A",1,{"$f":"_xlfn.CONCAT(Inventory_Table[[#This Row],[Form Factor]],Inventory_Table[[#This Row],[Current Location]])","v":"ModuleSSU 07A"},"2020-02-21","Test Program 506","Test Part Number","Test Lot # 506"]
["Module","SSU 15",{"$f":"-Inventory_Table[[#This Row],[Quantity In]]","v":-4},"SSU 07A",4,{"$f":"_xlfn.CONCAT(Inventory_Table[[#This Row],[Form Factor]],Inventory_Table[[#This Row],[Current Location]])","v":"ModuleSSU 07A"},"2020-02-21","Test Program 507","Test Part Number","Test Lot # 507"]
["Module","SSU 16",{"$f":"-Inventory_Table[[#This Row],[Quantity In]]","v":-2},"SSU 07A",2,{"$f":"_xlfn.CONCAT(Inventory_Table[[#This Row],[Form Factor]],Inventory_Table[[#This Row],[Current Location]])","v":"ModuleSSU 07A"},"2020-02-21","Test Program 508","Test Part Number","Test Lot # 508"]
["Module","SSU 17",{"$f":"-Inventory_Table[[#This Row],[Quantity In]]","v":-2},"SSU 07A",2,{"$f":"_xlfn.CONCAT(Inventory_Table[[#This Row],[Form Factor]],Inventory_Table[[#This Row],[Current Location]])","v":"ModuleSSU 07A"},"2020-02-21","Test Program 509","Test Part Number","Test Lot # 509"]
["Wafer - Carcass","SSU 17",{"$f":"-Inventory_Table[[#This Row],[Quantity In]]","v":-5},"SSU 07",5,{"$f":"_xlfn.CONCAT(Inventory_Table[[#This Row],[Form Factor]],Inventory_Table[[#This Row],[Current Location]])","v":"Wafer - CarcassSSU 07"},"2020-02-21","Test Program 510","Test Part Number","Test Lot # 510"]
["Wafer - Carcass","SSU 18",{"$f":"-Inventory_Table[[#This Row],[Quantity In]]","v":-5},"SSU 07",5,{"$f":"_xlfn.CONCAT(Inventory_Table[[#This Row],[Form Factor]],Inventory_Table[[#This Row],[Current Location]])","v":"Wafer - CarcassSSU 07"},"2020-02-21","Test Program 511","Test Part Number","Test Lot # 511"]
["Wafer - Carcass","SSU 01",{"$f":"-Inventory_Table[[#This Row],[Quantity In]]","v":-5},"SSU 07",5,{"$f":"_xlfn.CONCAT(Inventory_Table[[#This Row],[Form Factor]],Inventory_Table[[#This Row],[Current Location]])","v":"Wafer - CarcassSSU 07"},"2020-02-21","Test Program 512","Test Part Number","Test Lot # 512"]
["Wafer - Carcass","SSU 02",{"$f":"-Inventory_Table[[#This Row],[Quantity In]]","v":-5},"SSU 07",5,{"$f":"_xlfn.CONCAT(Inventory_Table[[#This Row],[Form Factor]],Inventory_Table[[#This Row],[Current Location]])","v":"Wafer - CarcassSSU 07"},"2020-02-21","Test Program 513","Test Part Number","Test Lot # 513"]
["Wafer - Carcass","SSU 03",{"$f":"-Inventory_Table[[#This Row],[Quantity In]]","v":-5},"SSU 07",5,{"$f":"_xlfn.CONCAT(Inventory_Table[[#This Row],[Form Factor]],Inventory_Table[[#This Row],[Current Location]])","v":"Wafer - CarcassSSU 07"},"2020-02-21","Test Program 514","Test Part Number","Test Lot # 514"]
["Module","SSU 04",{"$f":"-Inventory_Table[[#This Row],[Quantity In]]","v":-1},"SSU 07A",1,{"$f":"_xlfn.CONCAT(Inventory_Table[[#This Row],[Form Factor]],Inventory_Table[[#This Row],[Current Location]])","v":"ModuleSSU 07A"},"2020-02-21","Test Program 515","Test Part Number","Test Lot # 515"]
["Module","SSU 05",{"$f":"-Inventory_Table[[#This Row],[Quantity In]]","v":-1},"SSU 07A",1,{"$f":"_xlfn.CONCAT(Inventory_Table[[#This Row],[Form Factor]],Inventory_Table[[#This Row],[Current Location]])","v":"ModuleSSU 07A"},"2020-02-21","Test Program 516","Test Part Number","Test Lot # 516"]
["Module","SSU 06",{"$f":"-Inventory_Table[[#This Row],[Quantity In]]","v":-1},"SSU 07A",1,{"$f":"_xlfn.CONCAT(Inventory_Table[[#This Row],[Form Factor]],Inventory_Table[[#This Row],[Current Location]])","v":"ModuleSSU 07A"},"2020-02-21","Test Program 517","Test Part Number","Test Lot # 517"]
["Module","SSU 07",{"$f":"-Inventory_Table[[#This Row],[Quantity In]]","v":-1},"SSU 07A",1,{"$f":"_xlfn.CONCAT(Inventory_Table[[#This Row],[Form Factor]],Inventory_Table[[#This Row],[Current Location]])","v":"ModuleSSU 07A"},"2020-02-21","Test Program 518","Test Part Number","Test Lot # 518"]
["Mask","SSU 08",{"$f":"-Inventory_Table[[#This Row],[Quantity In]]","v":-1},"SSU 12",1,{"$f":"_xlfn.CONCAT(Inventory_Table[[#This Row],[Form Factor]],Inventory_Table[[#This Row],[Current Location]])","v":"MaskSSU 12"},"2020-02-25","Test Program 519","Test Part Number","Test Lot # 519"]
["Wafer - 300mm","SSU 09",{"$f":"-Inventory_Table[[#This Row],[Quantity In]]","v":-5},"Bromont - BMT",5,{"$f":"_xlfn.CONCAT(Inventory_Table[[#This Row],[Form Factor]],Inventory_Table[[#This Row],[Current Location]])","v":"Wafer - 300mmBromont - BMT"},"2020-02-25","Test Program 520","Test Part Number","Test Lot # 520"]
["Wafer - 300mm","SSU 10",{"$f":"-Inventory_Table[[#This Row],[Quantity In]]","v":-5},"Bromont - BMT",5,{"$f":"_xlfn.CONCAT(Inventory_Table[[#This Row],[Form Factor]],Inventory_Table[[#This Row],[Current Location]])","v":"Wafer - 300mmBromont - BMT"},"2020-02-25","Test Program 521","Test Part Number","Test Lot # 521"]
["Wafer - 300mm","SSU 11",{"$f":"-Inventory_Table[[#This Row],[Quantity In]]","v":-1},"Bromont - BMT",1,{"$f":"_xlfn.CONCAT(Inventory_Table[[#This Row],[Form Factor]],Inventory_Table[[#This Row],[Current Location]])","v":"Wafer - 300mmBromont - BMT"},"2020-02-25","Test Program 522","Test Part Number","Test Lot # 522"]
["Wafer - 300mm","SSU 12",{"$f":"-Inventory_Table[[#This Row],[Quantity In]]","v":-3},"Bromont - BMT",3,{"$f":"_xlfn.CONCAT(Inventory_Table[[#This Row],[Form Factor]],Inventory_Table[[#This Row],[Current Location]])","v":"Wafer - 300mmBromont - BMT"},"2020-02-25","Test Program 523","Test Part Number","Test Lot # 523"]
["Module","SSU 13",{"$f":"-Inventory_Table[[#This Row],[Quantity In]]","v":-12},"FGI/Shipped to Client",12,{"$f":"_xlfn.CONCAT(Inventory_Table[[#This Row],[Form Factor]],Inventory_Table[[#This Row],[Current Location]])","v":"ModuleFGI/Shipped to Client"},"2020-02-27","Test Program 524","Test Part Number","Test Lot # 524"]
["Module","SSU 14",{"$f":"-Inventory_Table[[#This Row],[Quantity In]]","v":-434},"FGI/Shipped to Client",434,{"$f":"_xlfn.CONCAT(Inventory_Table[[#This Row],[Form Factor]],Inventory_Table[[#This Row],[Current Location]])","v":"ModuleFGI/Shipped to Client"},"2020-02-27","Test Program 525","Test Part Number","Test Lot # 525"]
["Module","SSU 15",{"$f":"-Inventory_Table[[#This Row],[Quantity In]]","v":-436},"FGI/Shipped to Client",436,{"$f":"_xlfn.CONCAT(Inventory_Table[[#This Row],[Form Factor]],Inventory_Table[[#This Row],[Current Location]])","v":"ModuleFGI/Shipped to Client"},"2020-02-27","Test Program 526","Test Part Number","Test Lot # 526"]
["Module","SSU 16",{"$f":"-Inventory_Table[[#This Row],[Quantity In]]","v":-393},"FGI/Shipped to Client",393,{"$f":"_xlfn.CONCAT(Inventory_Table[[#This Row],[Form Factor]],Inventory_Table[[#This Row],[Current Location]])","v":"ModuleFGI/Shipped to Client"},"2020-02-27","Test Program 527","Test Part Number","Test Lot # 527"]
["Module","SSU 17",{"$f":"-Inventory_Table[[#This Row],[Quantity In]]","v":-434},"FGI/Shipped to Client",434,{"$f":"_xlfn.CONCAT(Inventory_Table[[#This Row],[Form Factor]],Inventory_Table[[#This Row],[Current Location]])","v":"ModuleFGI/Shipped to Client"},"2020-02-27","Test Program 528","Test Part Number","Test Lot # 528"]
["Module","SSU 18",{"$f":"-Inventory_Table[[#This Row],[Quantity In]]","v":-417},"FGI/Shipped to Client",417,{"$f":"_xlfn.CONCAT(Inventory_Table[[#This Row],[Form Factor]],Inventory_Table[[#This Row],[Current Location]])","v":"ModuleFGI/Shipped to Client"},"2020-02-27","Test Program 529","Test Part Number","Test Lot # 529"]
["Module","SSU 01",{"$f":"-Inventory_Table[[#This Row],[Quantity In]]","v":-55},"FGI/Shipped to Client",55,{"$f":"_xlfn.CONCAT(Inventory_Table[[#This Row],[Form Factor]],Inventory_Table[[#This Row],[Current Location]])","v":"ModuleFGI/Shipped to Client"},"2020-02-27","Test Program 530","Test Part Number","Test Lot # 530"]
["Module","SSU 02",{"$f":"-Inventory_Table[[#This Row],[Quantity In]]","v":-377},"FGI/Shipped to Client",377,{"$f":"_xlfn.CONCAT(Inventory_Table[[#This Row],[Form Factor]],Inventory_Table[[#This Row],[Current Location]])","v":"ModuleFGI/Shipped to Client"},"2020-02-27","Test Program 531","Test Part Number","Test Lot # 531"]
["Module","SSU 03",{"$f":"-Inventory_Table[[#This Row],[Quantity In]]","v":-63},"FGI/Shipped to Client",63,{"$f":"_xlfn.CONCAT(Inventory_Table[[#This Row],[Form Factor]],Inventory_Table[[#This Row],[Current Location]])","v":"ModuleFGI/Shipped to Client"},"2020-02-27","Test Program 532","Test Part Number","Test Lot # 532"]
["Module","SSU 04",{"$f":"-Inventory_Table[[#This Row],[Quantity In]]","v":-434},"FGI/Shipped to Client",434,{"$f":"_xlfn.CONCAT(Inventory_Table[[#This Row],[Form Factor]],Inventory_Table[[#This Row],[Current Location]])","v":"ModuleFGI/Shipped to Client"},"2020-02-27","Test Program 533","Test Part Number","Test Lot # 533"]
["Module","SSU 05",{"$f":"-Inventory_Table[[#This Row],[Quantity In]]","v":-434},"FGI/Shipped to Client",434,{"$f":"_xlfn.CONCAT(Inventory_Table[[#This Row],[Form Factor]],Inventory_Table[[#This Row],[Current Location]])","v":"ModuleFGI/Shipped to Client"},"2020-02-27","Test Program 534","Test Part Number","Test Lot # 534"]
["Module","SSU 06",{"$f":"-Inventory_Table[[#This Row],[Quantity In]]","v":-196},"FGI/Shipped to Client",196,{"$f":"_xlfn.CONCAT(Inventory_Table[[#This Row],[Form Factor]],Inventory_Table[[#This Row],[Current Location]])","v":"ModuleFGI/Shipped to Client"},"2020-02-27","Test Program 535","Test Part Number","Test Lot # 535"]
["Module","SSU 07",{"$f":"-Inventory_Table[[#This Row],[Quantity In]]","v":-275},"FGI/Shipped to Client",275,{"$f":"_xlfn.CONCAT(Inventory_Table[[#This Row],[Form Factor]],Inventory_Table[[#This Row],[Current Location]])","v":"ModuleFGI/Shipped to Client"},"2020-02-27","Test Program 536","Test Part Number","Test Lot # 536"]
["Wafer - Carcass","SSU 08",{"$f":"-Inventory_Table[[#This Row],[Quantity In]]","v":-4},"SSU 07",4,{"$f":"_xlfn.CONCAT(Inventory_Table[[#This Row],[Form Factor]],Inventory_Table[[#This Row],[Current Location]])","v":"Wafer - CarcassSSU 07"},"2020-02-28","Test Program 537","Test Part Number","Test Lot # 537"]
["Wafer - Carcass","SSU 09",{"$f":"-Inventory_Table[[#This Row],[Quantity In]]","v":-5},"SSU 07",5,{"$f":"_xlfn.CONCAT(Inventory_Table[[#This Row],[Form Factor]],Inventory_Table[[#This Row],[Current Location]])","v":"Wafer - CarcassSSU 07"},"2020-02-28","Test Program 538","Test Part Number","Test Lot # 538"]
["Wafer - Carcass","SSU 10",{"$f":"-Inventory_Table[[#This Row],[Quantity In]]","v":-5},"SSU 07",5,{"$f":"_xlfn.CONCAT(Inventory_Table[[#This Row],[Form Factor]],Inventory_Table[[#This Row],[Current Location]])","v":"Wafer - CarcassSSU 07"},"2020-02-28","Test Program 539","Test Part Number","Test Lot # 539"]
["Wafer - Carcass","SSU 11",{"$f":"-Inventory_Table[[#This Row],[Quantity In]]","v":-1},"SSU 07",1,{"$f":"_xlfn.CONCAT(Inventory_Table[[#This Row],[Form Factor]],Inventory_Table[[#This Row],[Current Location]])","v":"Wafer - CarcassSSU 07"},"2020-02-28","Test Program 540","Test Part Number","Test Lot # 540"]
["Wafer - Carcass","SSU 12",{"$f":"-Inventory_Table[[#This Row],[Quantity In]]","v":-3},"SSU 07",3,{"$f":"_xlfn.CONCAT(Inventory_Table[[#This Row],[Form Factor]],Inventory_Table[[#This Row],[Current Location]])","v":"Wafer - CarcassSSU 07"},"2020-02-28","Test Program 541","Test Part Number","Test Lot # 541"]
["Wafer - Carcass","SSU 13",{"$f":"-Inventory_Table[[#This Row],[Quantity In]]","v":-5},"SSU 07",5,{"$f":"_xlfn.CONCAT(Inventory_Table[[#This Row],[Form Factor]],Inventory_Table[[#This Row],[Current Location]])","v":"Wafer - CarcassSSU 07"},"2020-02-28","Test Program 542","Test Part Number","Test Lot # 542"]
["Wafer - Carcass","SSU 14",{"$f":"-Inventory_Table[[#This Row],[Quantity In]]","v":-5},"SSU 07",5,{"$f":"_xlfn.CONCAT(Inventory_Table[[#This Row],[Form Factor]],Inventory_Table[[#This Row],[Current Location]])","v":"Wafer - CarcassSSU 07"},"2020-02-28","Test Program 543","Test Part Number","Test Lot # 543"]
["Die","SSU 15",{"$f":"-Inventory_Table[[#This Row],[Quantity In]]","v":-720},"SSU 07A",720,{"$f":"_xlfn.CONCAT(Inventory_Table[[#This Row],[Form Factor]],Inventory_Table[[#This Row],[Current Location]])","v":"DieSSU 07A"},"2020-02-28","Test Program 544","Test Part Number","Test Lot # 544"]
["Die","SSU 16",{"$f":"-Inventory_Table[[#This Row],[Quantity In]]","v":-54},"SSU 07A",54,{"$f":"_xlfn.CONCAT(Inventory_Table[[#This Row],[Form Factor]],Inventory_Table[[#This Row],[Current Location]])","v":"DieSSU 07A"},"2020-02-28","Test Program 545","Test Part Number","Test Lot # 545"]
["Die","SSU 17",{"$f":"-Inventory_Table[[#This Row],[Quantity In]]","v":-39},"SSU 07A",39,{"$f":"_xlfn.CONCAT(Inventory_Table[[#This Row],[Form Factor]],Inventory_Table[[#This Row],[Current Location]])","v":"DieSSU 07A"},"2020-02-28","Test Program 546","Test Part Number","Test Lot # 546"]
["Die","SSU 18",{"$f":"-Inventory_Table[[#This Row],[Quantity In]]","v":-69},"SSU 07A",69,{"$f":"_xlfn.CONCAT(Inventory_Table[[#This Row],[Form Factor]],Inventory_Table[[#This Row],[Current Location]])","v":"DieSSU 07A"},"2020-02-28","Test Program 547","Test Part Number","Test Lot # 547"]
["Die","SSU 01",{"$f":"-Inventory_Table[[#This Row],[Quantity In]]","v":-46},"SSU 07A",46,{"$f":"_xlfn.CONCAT(Inventory_Table[[#This Row],[Form Factor]],Inventory_Table[[#This Row],[Current Location]])","v":"DieSSU 07A"},"2020-02-28","Test Program 548","Test Part Number","Test Lot # 548"]
["Die","SSU 02",{"$f":"-Inventory_Table[[#This Row],[Quantity In]]","v":-73},"SSU 07A",73,{"$f":"_xlfn.CONCAT(Inventory_Table[[#This Row],[Form Factor]],Inventory_Table[[#This Row],[Current Location]])","v":"DieSSU 07A"},"2020-02-28","Test Program 549","Test Part Number","Test Lot # 549"]
["Die","SSU 03",{"$f":"-Inventory_Table[[#This Row],[Quantity In]]","v":-39},"SSU 07A",39,{"$f":"_xlfn.CONCAT(Inventory_Table[[#This Row],[Form Factor]],Inventory_Table[[#This Row],[Current Location]])","v":"DieSSU 07A"},"2020-02-28","Test Program 550","Test Part Number","Test Lot # 550"]
["Die","SSU 04",{"$f":"-Inventory_Table[[#This Row],[Quantity In]]","v":-55},"SSU 07A",55,{"$f":"_xlfn.CONCAT(Inventory_Table[[#This Row],[Form Factor]],Inventory_Table[[#This Row],[Current Location]])","v":"DieSSU 07A"},"2020-02-28","Test Program 551","Test Part Number","Test Lot # 551"]
["Die","SSU 05",{"$f":"-Inventory_Table[[#This Row],[Quantity In]]","v":-69},"SSU 07A",69,{"$f":"_xlfn.CONCAT(Inventory_Table[[#This Row],[Form Factor]],Inventory_Table[[#This Row],[Current Location]])","v":"DieSSU 07A"},"2020-02-28","Test Program 552","Test Part Number","Test Lot # 552"]
["Die","SSU 06",{"$f":"-Inventory_Table[[#This Row],[Quantity In]]","v":-45},"SSU 07A",45,{"$f":"_xlfn.CONCAT(Inventory_Table[[#This Row],[Form Factor]],Inventory_Table[[#This Row],[Current Location]])","v":"DieSSU 07A"},"2020-02-28","Test Program 553","Test Part Number","Test Lot # 553"]
["Die","SSU 07",{"$f":"-Inventory_Table[[#This Row],[Quantity In]]","v":-65},"SSU 07A",65,{"$f":"_xlfn.CONCAT(Inventory_Table[[#This Row],[Form Factor]],Inventory_Table[[#This Row],[Current Location]])","v":"DieSSU 07A"},"2020-02-28","Test Program 554","Test Part Number","Test Lot # 554"]
["Wafer - 200mm","SSU 08",{"$f":"-Inventory_Table[[#This Row],[Quantity In]]","v":-1},"SSU 10",1,{"$f":"_xlfn.CONCAT(Inventory_Table[[#This Row],[Form Factor]],Inventory_Table[[#This Row],[Current Location]])","v":"Wafer - 200mmSSU 10"},"2020-02-29","Test Program 555","Test Part Number","Test Lot # 555"]
["Wafer - 200mm","SSU 09",{"$f":"-Inventory_Table[[#This Row],[Quantity In]]","v":-16},"FGI/Shipped to Client",16,{"$f":"_xlfn.CONCAT(Inventory_Table[[#This Row],[Form Factor]],Inventory_Table[[#This Row],[Current Location]])","v":"Wafer - 200mmFGI/Shipped to Client"},"2020-03-01","Test Program 556","Test Part Number","Test Lot # 556"]
["Wafer - 200mm","SSU 10",{"$f":"-Inventory_Table[[#This Row],[Quantity In]]","v":-9},"FGI/Shipped to Client",9,{"$f":"_xlfn.CONCAT(Inventory_Table[[#This Row],[Form Factor]],Inventory_Table[[#This Row],[Current Location]])","v":"Wafer - 200mmFGI/Shipped to Client"},"2020-03-01","Test Program 557","Test Part Number","Test Lot # 557"]
["Wafer - 300mm","SSU 11",{"$f":"-Inventory_Table[[#This Row],[Quantity In]]","v":-1},"SSU 09",1,{"$f":"_xlfn.CONCAT(Inventory_Table[[#This Row],[Form Factor]],Inventory_Table[[#This Row],[Current Location]])","v":"Wafer - 300mmSSU 09"},"2020-03-03","Test Program 558","Test Part Number","Test Lot # 558"]
["Wafer - 300mm","SSU 12",{"$f":"-Inventory_Table[[#This Row],[Quantity In]]","v":-1},"SSU 09",1,{"$f":"_xlfn.CONCAT(Inventory_Table[[#This Row],[Form Factor]],Inventory_Table[[#This Row],[Current Location]])","v":"Wafer - 300mmSSU 09"},"2020-03-03","Test Program 559","Test Part Number","Test Lot # 559"]
["Wafer - 300mm","SSU 13",{"$f":"-Inventory_Table[[#This Row],[Quantity In]]","v":-1},"SSU 09",1,{"$f":"_xlfn.CONCAT(Inventory_Table[[#This Row],[Form Factor]],Inventory_Table[[#This Row],[Current Location]])","v":"Wafer - 300mmSSU 09"},"2020-03-03","Test Program 560","Test Part Number","Test Lot # 560"]
["Wafer - 300mm","SSU 14",{"$f":"-Inventory_Table[[#This Row],[Quantity In]]","v":-1},"SSU 09",1,{"$f":"_xlfn.CONCAT(Inventory_Table[[#This Row],[Form Factor]],Inventory_Table[[#This Row],[Current Location]])","v":"Wafer - 300mmSSU 09"},"2020-03-03","Test Program 561","Test Part Number","Test Lot # 561"]
["Wafer - 300mm","SSU 15",{"$f":"-Inventory_Table[[#This Row],[Quantity In]]","v":-1},"SSU 09",1,{"$f":"_xlfn.CONCAT(Inventory_Table[[#This Row],[Form Factor]],Inventory_Table[[#This Row],[Current Location]])","v":"Wafer - 300mmSSU 09"},"2020-03-03","Test Program 562","Test Part Number","Test Lot # 562"]
["Wafer - 300mm","SSU 16",{"$f":"-Inventory_Table[[#This Row],[Quantity In]]","v":-5},"Bromont - BMT",5,{"$f":"_xlfn.CONCAT(Inventory_Table[[#This Row],[Form Factor]],Inventory_Table[[#This Row],[Current Location]])","v":"Wafer - 300mmBromont - BMT"},"2020-03-03","Test Program 563","Test Part Number","Test Lot # 563"]
["Wafer - 300mm","SSU 17",{"$f":"-Inventory_Table[[#This Row],[Quantity In]]","v":-5},"Bromont - BMT",5,{"$f":"_xlfn.CONCAT(Inventory_Table[[#This Row],[Form Factor]],Inventory_Table[[#This Row],[Current Location]])","v":"Wafer - 300mmBromont - BMT"},"2020-03-03","Test Program 564","Test Part Number","Test Lot # 564"]
["Wafer - 300mm","SSU 17",{"$f":"-Inventory_Table[[#This Row],[Quantity In]]","v":-5},"FGI/Shipped to Client",5,{"$f":"_xlfn.CONCAT(Inventory_Table[[#This Row],[Form Factor]],Inventory_Table[[#This Row],[Current Location]])","v":"Wafer - 300mmFGI/Shipped to Client"},"2020-03-04","Test Program 565","Test Part Number","Test Lot # 565"]
["Module","SSU 18",{"$f":"-Inventory_Table[[#This Row],[Quantity In]]","v":-1},"SSU 08",1,{"$f":"_xlfn.CONCAT(Inventory_Table[[#This Row],[Form Factor]],Inventory_Table[[#This Row],[Current Location]])","v":"ModuleSSU 08"},"2020-03-04","Test Program 566","Test Part Number","Test Lot # 566"]
["Wafer - 300mm","SSU 01",{"$f":"-Inventory_Table[[#This Row],[Quantity In]]","v":-1},"SSU 10",1,{"$f":"_xlfn.CONCAT(Inventory_Table[[#This Row],[Form Factor]],Inventory_Table[[#This Row],[Current Location]])","v":"Wafer - 300mmSSU 10"},"2020-03-05","Test Program 567","Test Part Number","Test Lot # 567"]
["Wafer - 300mm","SSU 02",{"$f":"-Inventory_Table[[#This Row],[Quantity In]]","v":-1},"SSU 10",1,{"$f":"_xlfn.CONCAT(Inventory_Table[[#This Row],[Form Factor]],Inventory_Table[[#This Row],[Current Location]])","v":"Wafer - 300mmSSU 10"},"2020-03-05","Test Program 568","Test Part Number","Test Lot # 568"]
["Wafer - 300mm","SSU 03",{"$f":"-Inventory_Table[[#This Row],[Quantity In]]","v":-1},"SSU 10",1,{"$f":"_xlfn.CONCAT(Inventory_Table[[#This Row],[Form Factor]],Inventory_Table[[#This Row],[Current Location]])","v":"Wafer - 300mmSSU 10"},"2020-03-05","Test Program 569","Test Part Number","Test Lot # 569"]
["Wafer - 300mm","SSU 04",{"$f":"-Inventory_Table[[#This Row],[Quantity In]]","v":-1},"SSU 10",1,{"$f":"_xlfn.CONCAT(Inventory_Table[[#This Row],[Form Factor]],Inventory_Table[[#This Row],[Current Location]])","v":"Wafer - 300mmSSU 10"},"2020-03-05","Test Program 570","Test Part Number","Test Lot # 570"]
["Wafer - 300mm","SSU 05",{"$f":"-Inventory_Table[[#This Row],[Quantity In]]","v":-1},"SSU 10",1,{"$f":"_xlfn.CONCAT(Inventory_Table[[#This Row],[Form Factor]],Inventory_Table[[#This Row],[Current Location]])","v":"Wafer - 300mmSSU 10"},"2020-03-05","Test Program 571","Test Part Number","Test Lot # 571"]
["Wafer - 300mm","SSU 06",{"$f":"-Inventory_Table[[#This Row],[Quantity In]]","v":-1},"Post Fab",1,{"$f":"_xlfn.CONCAT(Inventory_Table[[#This Row],[Form Factor]],Inventory_Table[[#This Row],[Current Location]])","v":"Wafer - 300mmPost Fab"},"2020-03-05","Test Program 572","Test Part Number","Test Lot # 572"]
["Wafer - 300mm","SSU 07",{"$f":"-Inventory_Table[[#This Row],[Quantity In]]","v":-1},"Post Fab",1,{"$f":"_xlfn.CONCAT(Inventory_Table[[#This Row],[Form Factor]],Inventory_Table[[#This Row],[Current Location]])","v":"Wafer - 300mmPost Fab"},"2020-03-05","Test Program 573","Test Part Number","Test Lot # 573"]
["Wafer - 300mm","SSU 08",{"$f":"-Inventory_Table[[#This Row],[Quantity In]]","v":-1},"Post Fab",1,{"$f":"_xlfn.CONCAT(Inventory_Table[[#This Row],[Form Factor]],Inventory_Table[[#This Row],[Current Location]])","v":"Wafer - 300mmPost Fab"},"2020-03-05","Test Program 574","Test Part Number","Test Lot # 574"]
["Wafer - 300mm","SSU 09",{"$f":"-Inventory_Table[[#This Row],[Quantity In]]","v":-1},"Post Fab",1,{"$f":"_xlfn.CONCAT(Inventory_Table[[#This Row],[Form Factor]],Inventory_Table[[#This Row],[Current Location]])","v":"Wafer - 300mmPost Fab"},"2020-03-05","Test Program 575","Test Part Number","Test Lot # 575"]
["Wafer - 200mm","SSU 10",{"$f":"-Inventory_Table[[#This Row],[Quantity In]]","v":-6},"FGI/Shipped to Client",6,{"$f":"_xlfn.CONCAT(Inventory_Table[[#This Row],[Form Factor]],Inventory_Table[[#This Row],[Current Location]])","v":"Wafer - 200mmFGI/Shipped to Client"},"2020-03-05","Test Program 576","Test Part Number","Test Lot # 576"]
["Wafer - 200mm","SSU 11",{"$f":"-Inventory_Table[[#This Row],[Quantity In]]","v":-25},"FGI/Shipped to Client",25,{"$f":"_xlfn.CONCAT(Inventory_Table[[#This Row],[Form Factor]],Inventory_Table[[#This Row],[Current Location]])","v":"Wafer - 200mmFGI/Shipped to Client"},"2020-03-07","Test Program 577","Test Part Number","Test Lot # 577"]
["Wafer - 200mm","SSU 12",{"$f":"-Inventory_Table[[#This Row],[Quantity In]]","v":-1},"SSU 01",1,{"$f":"_xlfn.CONCAT(Inventory_Table[[#This Row],[Form Factor]],Inventory_Table[[#This Row],[Current Location]])","v":"Wafer - 200mmSSU 01"},"2020-03-09","Test Program 578","Test Part Number","Test Lot # 578"]
["Wafer - 200mm","SSU 13",{"$f":"-Inventory_Table[[#This Row],[Quantity In]]","v":-1},"SSU 01",1,{"$f":"_xlfn.CONCAT(Inventory_Table[[#This Row],[Form Factor]],Inventory_Table[[#This Row],[Current Location]])","v":"Wafer - 200mmSSU 01"},"2020-03-09","Test Program 579","Test Part Number","Test Lot # 579"]
["Wafer - 200mm","SSU 14",{"$f":"-Inventory_Table[[#This Row],[Quantity In]]","v":-1},"SSU 01",1,{"$f":"_xlfn.CONCAT(Inventory_Table[[#This Row],[Form Factor]],Inventory_Table[[#This Row],[Current Location]])","v":"Wafer - 200mmSSU 01"},"2020-03-09","Test Program 580","Test Part Number","Test Lot # 580"]
["Wafer - 200mm","SSU 15",{"$f":"-Inventory_Table[[#This Row],[Quantity In]]","v":-1},"SSU 01",1,{"$f":"_xlfn.CONCAT(Inventory_Table[[#This Row],[Form Factor]],Inventory_Table[[#This Row],[Current Location]])","v":"Wafer - 200mmSSU 01"},"2020-03-09","Test Program 581","Test Part Number","Test Lot # 581"]
["Wafer - 200mm","SSU 16",{"$f":"-Inventory_Table[[#This Row],[Quantity In]]","v":-1},"SSU 01",1,{"$f":"_xlfn.CONCAT(Inventory_Table[[#This Row],[Form Factor]],Inventory_Table[[#This Row],[Current Location]])","v":"Wafer - 200mmSSU 01"},"2020-03-09","Test Program 582","Test Part Number","Test Lot # 582"]
["Wafer - 200mm","SSU 17",{"$f":"-Inventory_Table[[#This Row],[Quantity In]]","v":-1},"SSU 01",1,{"$f":"_xlfn.CONCAT(Inventory_Table[[#This Row],[Form Factor]],Inventory_Table[[#This Row],[Current Location]])","v":"Wafer - 200mmSSU 01"},"2020-03-09","Test Program 583","Test Part Number","Test Lot # 583"]
["Wafer - 200mm","SSU 18",{"$f":"-Inventory_Table[[#This Row],[Quantity In]]","v":-1},"SSU 01",1,{"$f":"_xlfn.CONCAT(Inventory_Table[[#This Row],[Form Factor]],Inventory_Table[[#This Row],[Current Location]])","v":"Wafer - 200mmSSU 01"},"2020-03-09","Test Program 584","Test Part Number","Test Lot # 584"]
["Wafer - 200mm","SSU 01",{"$f":"-Inventory_Table[[#This Row],[Quantity In]]","v":-1},"SSU 01",1,{"$f":"_xlfn.CONCAT(Inventory_Table[[#This Row],[Form Factor]],Inventory_Table[[#This Row],[Current Location]])","v":"Wafer - 200mmSSU 01"},"2020-03-09","Test Program 585","Test Part Number","Test Lot # 585"]
["Wafer - 200mm","SSU 02",{"$f":"-Inventory_Table[[#This Row],[Quantity In]]","v":-1},"SSU 01",1,{"$f":"_xlfn.CONCAT(Inventory_Table[[#This Row],[Form Factor]],Inventory_Table[[#This Row],[Current Location]])","v":"Wafer - 200mmSSU 01"},"2020-03-09","Test Program 586","Test Part Number","Test Lot # 586"]
["Wafer - 200mm","SSU 03",{"$f":"-Inventory_Table[[#This Row],[Quantity In]]","v":-1},"SSU 01",1,{"$f":"_xlfn.CONCAT(Inventory_Table[[#This Row],[Form Factor]],Inventory_Table[[#This Row],[Current Location]])","v":"Wafer - 200mmSSU 01"},"2020-03-09","Test Program 587","Test Part Number","Test Lot # 587"]
["Wafer - 200mm","SSU 04",{"$f":"-Inventory_Table[[#This Row],[Quantity In]]","v":-1},"SSU 01",1,{"$f":"_xlfn.CONCAT(Inventory_Table[[#This Row],[Form Factor]],Inventory_Table[[#This Row],[Current Location]])","v":"Wafer - 200mmSSU 01"},"2020-03-09","Test Program 588","Test Part Number","Test Lot # 588"]
["Wafer - 200mm","SSU 05",{"$f":"-Inventory_Table[[#This Row],[Quantity In]]","v":-1},"SSU 01",1,{"$f":"_xlfn.CONCAT(Inventory_Table[[#This Row],[Form Factor]],Inventory_Table[[#This Row],[Current Location]])","v":"Wafer - 200mmSSU 01"},"2020-03-09","Test Program 589","Test Part Number","Test Lot # 589"]
["Wafer - 200mm","SSU 06",{"$f":"-Inventory_Table[[#This Row],[Quantity In]]","v":-1},"SSU 01",1,{"$f":"_xlfn.CONCAT(Inventory_Table[[#This Row],[Form Factor]],Inventory_Table[[#This Row],[Current Location]])","v":"Wafer - 200mmSSU 01"},"2020-03-09","Test Program 590","Test Part Number","Test Lot # 590"]
["Wafer - 200mm","SSU 07",{"$f":"-Inventory_Table[[#This Row],[Quantity In]]","v":-1},"SSU 01",1,{"$f":"_xlfn.CONCAT(Inventory_Table[[#This Row],[Form Factor]],Inventory_Table[[#This Row],[Current Location]])","v":"Wafer - 200mmSSU 01"},"2020-03-09","Test Program 591","Test Part Number","Test Lot # 591"]
["Wafer - 200mm","SSU 08",{"$f":"-Inventory_Table[[#This Row],[Quantity In]]","v":-1},"SSU 01",1,{"$f":"_xlfn.CONCAT(Inventory_Table[[#This Row],[Form Factor]],Inventory_Table[[#This Row],[Current Location]])","v":"Wafer - 200mmSSU 01"},"2020-03-09","Test Program 592","Test Part Number","Test Lot # 592"]
["Wafer - 200mm","SSU 09",{"$f":"-Inventory_Table[[#This Row],[Quantity In]]","v":-1},"SSU 01",1,{"$f":"_xlfn.CONCAT(Inventory_Table[[#This Row],[Form Factor]],Inventory_Table[[#This Row],[Current Location]])","v":"Wafer - 200mmSSU 01"},"2020-03-09","Test Program 593","Test Part Number","Test Lot # 593"]
["Wafer - 200mm","SSU 10",{"$f":"-Inventory_Table[[#This Row],[Quantity In]]","v":-1},"SSU 01",1,{"$f":"_xlfn.CONCAT(Inventory_Table[[#This Row],[Form Factor]],Inventory_Table[[#This Row],[Current Location]])","v":"Wafer - 200mmSSU 01"},"2020-03-09","Test Program 594","Test Part Number","Test Lot # 594"]
["Wafer - 200mm","SSU 11",{"$f":"-Inventory_Table[[#This Row],[Quantity In]]","v":-1},"SSU 01",1,{"$f":"_xlfn.CONCAT(Inventory_Table[[#This Row],[Form Factor]],Inventory_Table[[#This Row],[Current Location]])","v":"Wafer - 200mmSSU 01"},"2020-03-09","Test Program 595","Test Part Number","Test Lot # 595"]
["Wafer - 200mm","SSU 12",{"$f":"-Inventory_Table[[#This Row],[Quantity In]]","v":-1},"SSU 01",1,{"$f":"_xlfn.CONCAT(Inventory_Table[[#This Row],[Form Factor]],Inventory_Table[[#This Row],[Current Location]])","v":"Wafer - 200mmSSU 01"},"2020-03-09","Test Program 596","Test Part Number","Test Lot # 596"]
["Wafer - 200mm","SSU 13",{"$f":"-Inventory_Table[[#This Row],[Quantity In]]","v":-1},"SSU 01",1,{"$f":"_xlfn.CONCAT(Inventory_Table[[#This Row],[Form Factor]],Inventory_Table[[#This Row],[Current Location]])","v":"Wafer - 200mmSSU 01"},"2020-03-09","Test Program 597","Test Part Number","Test Lot # 597"]
["Wafer - 200mm","SSU 14",{"$f":"-Inventory_Table[[#This Row],[Quantity In]]","v":-1},"SSU 01",1,{"$f":"_xlfn.CONCAT(Inventory_Table[[#This Row],[Form Factor]],Inventory_Table[[#This Row],[Current Location]])","v":"Wafer - 200mmSSU 01"},"2020-03-09","Test Program 598","Test Part Number","Test Lot # 598"]
["Wafer - 200mm","SSU 15",{"$f":"-Inventory_Table[[#This Row],[Quantity In]]","v":-1},"SSU 01",1,{"$f":"_xlfn.CONCAT(Inventory_Table[[#This Row],[Form Factor]],Inventory_Table[[#This Row],[Current Location]])","v":"Wafer - 200mmSSU 01"},"2020-03-09","Test Program 599","Test Part Number","Test Lot # 599"]
["Wafer - 300mm","SSU 16",{"$f":"-Inventory_Table[[#This Row],[Quantity In]]","v":-20},"FGI/Shipped to Client",20,{"$f":"_xlfn.CONCAT(Inventory_Table[[#This Row],[Form Factor]],Inventory_Table[[#This Row],[Current Location]])","v":"Wafer - 300mmFGI/Shipped to Client"},"2020-03-09","Test Program 600","Test Part Number","Test Lot # 600"]
["Wafer - 300mm","SSU 17",{"$f":"-Inventory_Table[[#This Row],[Quantity In]]","v":-5},"Bromont - BMT",5,{"$f":"_xlfn.CONCAT(Inventory_Table[[#This Row],[Form Factor]],Inventory_Table[[#This Row],[Current Location]])","v":"Wafer - 300mmBromont - BMT"},"2020-03-09","Test Program 601","Test Part Number","Test Lot # 601"]
["Wafer - 300mm","SSU 18",{"$f":"-Inventory_Table[[#This Row],[Quantity In]]","v":-5},"Bromont - BMT",5,{"$f":"_xlfn.CONCAT(Inventory_Table[[#This Row],[Form Factor]],Inventory_Table[[#This Row],[Current Location]])","v":"Wafer - 300mmBromont - BMT"},"2020-03-09","Test Program 602","Test Part Number","Test Lot # 602"]
["Wafer - 300mm","SSU 01",{"$f":"-Inventory_Table[[#This Row],[Quantity In]]","v":-6},"Bromont - BMT",6,{"$f":"_xlfn.CONCAT(Inventory_Table[[#This Row],[Form Factor]],Inventory_Table[[#This Row],[Current Location]])","v":"Wafer - 300mmBromont - BMT"},"2020-03-09","Test Program 603","Test Part Number","Test Lot # 603"]
["Wafer - 300mm","SSU 02",{"$f":"-Inventory_Table[[#This Row],[Quantity In]]","v":-6},"Bromont - BMT",6,{"$f":"_xlfn.CONCAT(Inventory_Table[[#This Row],[Form Factor]],Inventory_Table[[#This Row],[Current Location]])","v":"Wafer - 300mmBromont - BMT"},"2020-03-09","Test Program 604","Test Part Number","Test Lot # 604"]
["Wafer - 300mm","SSU 03",{"$f":"-Inventory_Table[[#This Row],[Quantity In]]","v":-13},"Bromont - BMT",13,{"$f":"_xlfn.CONCAT(Inventory_Table[[#This Row],[Form Factor]],Inventory_Table[[#This Row],[Current Location]])","v":"Wafer - 300mmBromont - BMT"},"2020-03-09","Test Program 605","Test Part Number","Test Lot # 605"]
["Wafer - 300mm","SSU 04",{"$f":"-Inventory_Table[[#This Row],[Quantity In]]","v":-5},"Bromont - BMT",5,{"$f":"_xlfn.CONCAT(Inventory_Table[[#This Row],[Form Factor]],Inventory_Table[[#This Row],[Current Location]])","v":"Wafer - 300mmBromont - BMT"},"2020-03-09","Test Program 606","Test Part Number","Test Lot # 606"]
["Wafer - 300mm","SSU 05",{"$f":"-Inventory_Table[[#This Row],[Quantity In]]","v":-5},"Bromont - BMT",5,{"$f":"_xlfn.CONCAT(Inventory_Table[[#This Row],[Form Factor]],Inventory_Table[[#This Row],[Current Location]])","v":"Wafer - 300mmBromont - BMT"},"2020-03-09","Test Program 607","Test Part Number","Test Lot # 607"]
["Wafer - 300mm","SSU 06",{"$f":"-Inventory_Table[[#This Row],[Quantity In]]","v":-5},"Bromont - BMT",5,{"$f":"_xlfn.CONCAT(Inventory_Table[[#This Row],[Form Factor]],Inventory_Table[[#This Row],[Current Location]])","v":"Wafer - 300mmBromont - BMT"},"2020-03-10","Test Program 608","Test Part Number","Test Lot # 608"]
["Wafer - 300mm","SSU 07",{"$f":"-Inventory_Table[[#This Row],[Quantity In]]","v":-5},"Bromont - BMT",5,{"$f":"_xlfn.CONCAT(Inventory_Table[[#This Row],[Form Factor]],Inventory_Table[[#This Row],[Current Location]])","v":"Wafer - 300mmBromont - BMT"},"2020-03-11","Test Program 609","Test Part Number","Test Lot # 609"]
["Wafer - 300mm","SSU 08",{"$f":"-Inventory_Table[[#This Row],[Quantity In]]","v":-5},"Bromont - BMT",5,{"$f":"_xlfn.CONCAT(Inventory_Table[[#This Row],[Form Factor]],Inventory_Table[[#This Row],[Current Location]])","v":"Wafer - 300mmBromont - BMT"},"2020-03-11","Test Program 610","Test Part Number","Test Lot # 610"]
["Wafer - 300mm","SSU 09",{"$f":"-Inventory_Table[[#This Row],[Quantity In]]","v":-5},"Bromont - BMT",5,{"$f":"_xlfn.CONCAT(Inventory_Table[[#This Row],[Form Factor]],Inventory_Table[[#This Row],[Current Location]])","v":"Wafer - 300mmBromont - BMT"},"2020-03-11","Test Program 611","Test Part Number","Test Lot # 611"]
["Wafer - 300mm","SSU 10",{"$f":"-Inventory_Table[[#This Row],[Quantity In]]","v":-5},"Bromont - BMT",5,{"$f":"_xlfn.CONCAT(Inventory_Table[[#This Row],[Form Factor]],Inventory_Table[[#This Row],[Current Location]])","v":"Wafer - 300mmBromont - BMT"},"2020-03-11","Test Program 612","Test Part Number","Test Lot # 612"]
["Wafer - 300mm","SSU 11",{"$f":"-Inventory_Table[[#This Row],[Quantity In]]","v":-5},"Bromont - BMT",5,{"$f":"_xlfn.CONCAT(Inventory_Table[[#This Row],[Form Factor]],Inventory_Table[[#This Row],[Current Location]])","v":"Wafer - 300mmBromont - BMT"},"2020-03-11","Test Program 613","Test Part Number","Test Lot # 613"]
["Wafer - 300mm","SSU 12",{"$f":"-Inventory_Table[[#This Row],[Quantity In]]","v":-5},"Bromont - BMT",5,{"$f":"_xlfn.CONCAT(Inventory_Table[[#This Row],[Form Factor]],Inventory_Table[[#This Row],[Current Location]])","v":"Wafer - 300mmBromont - BMT"},"2020-03-11","Test Program 614","Test Part Number","Test Lot # 614"]
["Wafer - Carcass","SSU 18",{"$f":"-Inventory_Table[[#This Row],[Quantity In]]","v":-3},"SSU 07",3,{"$f":"_xlfn.CONCAT(Inventory_Table[[#This Row],[Form Factor]],Inventory_Table[[#This Row],[Current Location]])","v":"Wafer - CarcassSSU 07"},"2020-03-11","Test Program 615","Test Part Number","Test Lot # 615"]
["Wafer - Carcass","SSU 01",{"$f":"-Inventory_Table[[#This Row],[Quantity In]]","v":-4},"SSU 07",4,{"$f":"_xlfn.CONCAT(Inventory_Table[[#This Row],[Form Factor]],Inventory_Table[[#This Row],[Current Location]])","v":"Wafer - CarcassSSU 07"},"2020-03-11","Test Program 616","Test Part Number","Test Lot # 616"]
["Wafer - Carcass","SSU 02",{"$f":"-Inventory_Table[[#This Row],[Quantity In]]","v":-2},"SSU 07",2,{"$f":"_xlfn.CONCAT(Inventory_Table[[#This Row],[Form Factor]],Inventory_Table[[#This Row],[Current Location]])","v":"Wafer - CarcassSSU 07"},"2020-03-11","Test Program 617","Test Part Number","Test Lot # 617"]
["Wafer - Carcass","SSU 03",{"$f":"-Inventory_Table[[#This Row],[Quantity In]]","v":-5},"SSU 07",5,{"$f":"_xlfn.CONCAT(Inventory_Table[[#This Row],[Form Factor]],Inventory_Table[[#This Row],[Current Location]])","v":"Wafer - CarcassSSU 07"},"2020-03-11","Test Program 618","Test Part Number","Test Lot # 618"]
["Wafer - Carcass","SSU 04",{"$f":"-Inventory_Table[[#This Row],[Quantity In]]","v":-5},"SSU 07",5,{"$f":"_xlfn.CONCAT(Inventory_Table[[#This Row],[Form Factor]],Inventory_Table[[#This Row],[Current Location]])","v":"Wafer - CarcassSSU 07"},"2020-03-11","Test Program 619","Test Part Number","Test Lot # 619"]
["Wafer - Carcass","SSU 05",{"$f":"-Inventory_Table[[#This Row],[Quantity In]]","v":-5},"SSU 07",5,{"$f":"_xlfn.CONCAT(Inventory_Table[[#This Row],[Form Factor]],Inventory_Table[[#This Row],[Current Location]])","v":"Wafer - CarcassSSU 07"},"2020-03-11","Test Program 620","Test Part Number","Test Lot # 620"]
["Wafer - Carcass","SSU 06",{"$f":"-Inventory_Table[[#This Row],[Quantity In]]","v":-5},"SSU 07",5,{"$f":"_xlfn.CONCAT(Inventory_Table[[#This Row],[Form Factor]],Inventory_Table[[#This Row],[Current Location]])","v":"Wafer - CarcassSSU 07"},"2020-03-11","Test Program 621","Test Part Number","Test Lot # 621"]
["Module","SSU 07",{"$f":"-Inventory_Table[[#This Row],[Quantity In]]","v":-15},"SSU 07A",15,{"$f":"_xlfn.CONCAT(Inventory_Table[[#This Row],[Form Factor]],Inventory_Table[[#This Row],[Current Location]])","v":"ModuleSSU 07A"},"2020-03-13","Test Program 622","Test Part Number","Test Lot # 622"]
["Module","SSU 08",{"$f":"-Inventory_Table[[#This Row],[Quantity In]]","v":-8},"SSU 07A",8,{"$f":"_xlfn.CONCAT(Inventory_Table[[#This Row],[Form Factor]],Inventory_Table[[#This Row],[Current Location]])","v":"ModuleSSU 07A"},"2020-03-13","Test Program 623","Test Part Number","Test Lot # 623"]
["Module","SSU 09",{"$f":"-Inventory_Table[[#This Row],[Quantity In]]","v":-15},"SSU 07A",15,{"$f":"_xlfn.CONCAT(Inventory_Table[[#This Row],[Form Factor]],Inventory_Table[[#This Row],[Current Location]])","v":"ModuleSSU 07A"},"2020-03-13","Test Program 624","Test Part Number","Test Lot # 624"]
["Module","SSU 10",{"$f":"-Inventory_Table[[#This Row],[Quantity In]]","v":-4},"SSU 07A",4,{"$f":"_xlfn.CONCAT(Inventory_Table[[#This Row],[Form Factor]],Inventory_Table[[#This Row],[Current Location]])","v":"ModuleSSU 07A"},"2020-03-13","Test Program 625","Test Part Number","Test Lot # 625"]
["Module","SSU 11",{"$f":"-Inventory_Table[[#This Row],[Quantity In]]","v":-1},"SSU 07A",1,{"$f":"_xlfn.CONCAT(Inventory_Table[[#This Row],[Form Factor]],Inventory_Table[[#This Row],[Current Location]])","v":"ModuleSSU 07A"},"2020-03-13","Test Program 626","Test Part Number","Test Lot # 626"]
["Module","SSU 12",{"$f":"-Inventory_Table[[#This Row],[Quantity In]]","v":-8},"SSU 07A",8,{"$f":"_xlfn.CONCAT(Inventory_Table[[#This Row],[Form Factor]],Inventory_Table[[#This Row],[Current Location]])","v":"ModuleSSU 07A"},"2020-03-13","Test Program 627","Test Part Number","Test Lot # 627"]
["Module","SSU 13",{"$f":"-Inventory_Table[[#This Row],[Quantity In]]","v":-3},"SSU 07A",3,{"$f":"_xlfn.CONCAT(Inventory_Table[[#This Row],[Form Factor]],Inventory_Table[[#This Row],[Current Location]])","v":"ModuleSSU 07A"},"2020-03-13","Test Program 628","Test Part Number","Test Lot # 628"]
["Module","SSU 14",{"$f":"-Inventory_Table[[#This Row],[Quantity In]]","v":-1},"SSU 07A",1,{"$f":"_xlfn.CONCAT(Inventory_Table[[#This Row],[Form Factor]],Inventory_Table[[#This Row],[Current Location]])","v":"ModuleSSU 07A"},"2020-03-13","Test Program 629","Test Part Number","Test Lot # 629"]
["Module","SSU 15",{"$f":"-Inventory_Table[[#This Row],[Quantity In]]","v":-17},"SSU 07A",17,{"$f":"_xlfn.CONCAT(Inventory_Table[[#This Row],[Form Factor]],Inventory_Table[[#This Row],[Current Location]])","v":"ModuleSSU 07A"},"2020-03-13","Test Program 630","Test Part Number","Test Lot # 630"]
["Module","SSU 16",{"$f":"-Inventory_Table[[#This Row],[Quantity In]]","v":-7},"SSU 07A",7,{"$f":"_xlfn.CONCAT(Inventory_Table[[#This Row],[Form Factor]],Inventory_Table[[#This Row],[Current Location]])","v":"ModuleSSU 07A"},"2020-03-13","Test Program 631","Test Part Number","Test Lot # 631"]
["Module","SSU 17",{"$f":"-Inventory_Table[[#This Row],[Quantity In]]","v":-1},"SSU 07A",1,{"$f":"_xlfn.CONCAT(Inventory_Table[[#This Row],[Form Factor]],Inventory_Table[[#This Row],[Current Location]])","v":"ModuleSSU 07A"},"2020-03-13","Test Program 632","Test Part Number","Test Lot # 632"]
["Module","SSU 17",{"$f":"-Inventory_Table[[#This Row],[Quantity In]]","v":-2},"SSU 07A",2,{"$f":"_xlfn.CONCAT(Inventory_Table[[#This Row],[Form Factor]],Inventory_Table[[#This Row],[Current Location]])","v":"ModuleSSU 07A"},"2020-03-13","Test Program 633","Test Part Number","Test Lot # 633"]
["Module","SSU 18",{"$f":"-Inventory_Table[[#This Row],[Quantity In]]","v":-2},"SSU 07A",2,{"$f":"_xlfn.CONCAT(Inventory_Table[[#This Row],[Form Factor]],Inventory_Table[[#This Row],[Current Location]])","v":"ModuleSSU 07A"},"2020-03-13","Test Program 634","Test Part Number","Test Lot # 634"]
["Module","SSU 01",{"$f":"-Inventory_Table[[#This Row],[Quantity In]]","v":-2},"SSU 07A",2,{"$f":"_xlfn.CONCAT(Inventory_Table[[#This Row],[Form Factor]],Inventory_Table[[#This Row],[Current Location]])","v":"ModuleSSU 07A"},"2020-03-13","Test Program 635","Test Part Number","Test Lot # 635"]
["Module","SSU 02",{"$f":"-Inventory_Table[[#This Row],[Quantity In]]","v":-4},"SSU 07A",4,{"$f":"_xlfn.CONCAT(Inventory_Table[[#This Row],[Form Factor]],Inventory_Table[[#This Row],[Current Location]])","v":"ModuleSSU 07A"},"2020-03-13","Test Program 636","Test Part Number","Test Lot # 636"]
["Wafer - 300mm","SSU 03",{"$f":"-Inventory_Table[[#This Row],[Quantity In]]","v":-1},"SSU 09",1,{"$f":"_xlfn.CONCAT(Inventory_Table[[#This Row],[Form Factor]],Inventory_Table[[#This Row],[Current Location]])","v":"Wafer - 300mmSSU 09"},"2020-03-13","Test Program 637","Test Part Number","Test Lot # 637"]
["Wafer - 300mm","SSU 04",{"$f":"-Inventory_Table[[#This Row],[Quantity In]]","v":-1},"SSU 09",1,{"$f":"_xlfn.CONCAT(Inventory_Table[[#This Row],[Form Factor]],Inventory_Table[[#This Row],[Current Location]])","v":"Wafer - 300mmSSU 09"},"2020-03-13","Test Program 638","Test Part Number","Test Lot # 638"]
["Wafer - 300mm","SSU 05",{"$f":"-Inventory_Table[[#This Row],[Quantity In]]","v":-1},"SSU 09",1,{"$f":"_xlfn.CONCAT(Inventory_Table[[#This Row],[Form Factor]],Inventory_Table[[#This Row],[Current Location]])","v":"Wafer - 300mmSSU 09"},"2020-03-13","Test Program 639","Test Part Number","Test Lot # 639"]
["Wafer - 300mm","SSU 06",{"$f":"-Inventory_Table[[#This Row],[Quantity In]]","v":-1},"SSU 09",1,{"$f":"_xlfn.CONCAT(Inventory_Table[[#This Row],[Form Factor]],Inventory_Table[[#This Row],[Current Location]])","v":"Wafer - 300mmSSU 09"},"2020-03-13","Test Program 640","Test Part Number","Test Lot # 640"]
["Wafer - 300mm","SSU 07",{"$f":"-Inventory_Table[[#This Row],[Quantity In]]","v":-1},"SSU 09",1,{"$f":"_xlfn.CONCAT(Inventory_Table[[#This Row],[Form Factor]],Inventory_Table[[#This Row],[Current Location]])","v":"Wafer - 300mmSSU 09"},"2020-03-13","Test Program 641","Test Part Number","Test Lot # 641"]
["Wafer - 300mm","SSU 08",{"$f":"-Inventory_Table[[#This Row],[Quantity In]]","v":-1},"SSU 09",1,{"$f":"_xlfn.CONCAT(Inventory_Table[[#This Row],[Form Factor]],Inventory_Table[[#This Row],[Current Location]])","v":"Wafer - 300mmSSU 09"},"2020-03-13","Test Program 642","Test Part Number","Test Lot # 642"]
["Wafer - 300mm","SSU 09",{"$f":"-Inventory_Table[[#This Row],[Quantity In]]","v":-1},"SSU 09",1,{"$f":"_xlfn.CONCAT(Inventory_Table[[#This Row],[Form Factor]],Inventory_Table[[#This Row],[Current Location]])","v":"Wafer - 300mmSSU 09"},"2020-03-13","Test Program 643","Test Part Number","Test Lot # 643"]
["Wafer - 300mm","SSU 10",{"$f":"-Inventory_Table[[#This Row],[Quantity In]]","v":-1},"SSU 09",1,{"$f":"_xlfn.CONCAT(Inventory_Table[[#This Row],[Form Factor]],Inventory_Table[[#This Row],[Current Location]])","v":"Wafer - 300mmSSU 09"},"2020-03-13","Test Program 644","Test Part Number","Test Lot # 644"]
["Wafer - 300mm","SSU 11",{"$f":"-Inventory_Table[[#This Row],[Quantity In]]","v":-1},"SSU 09",1,{"$f":"_xlfn.CONCAT(Inventory_Table[[#This Row],[Form Factor]],Inventory_Table[[#This Row],[Current Location]])","v":"Wafer - 300mmSSU 09"},"2020-03-13","Test Program 645","Test Part Number","Test Lot # 645"]
["Wafer - 300mm","SSU 12",{"$f":"-Inventory_Table[[#This Row],[Quantity In]]","v":-1},"SSU 09",1,{"$f":"_xlfn.CONCAT(Inventory_Table[[#This Row],[Form Factor]],Inventory_Table[[#This Row],[Current Location]])","v":"Wafer - 300mmSSU 09"},"2020-03-13","Test Program 646","Test Part Number","Test Lot # 646"]
["Wafer - 300mm","SSU 13",{"$f":"-Inventory_Table[[#This Row],[Quantity In]]","v":-1},"SSU 09",1,{"$f":"_xlfn.CONCAT(Inventory_Table[[#This Row],[Form Factor]],Inventory_Table[[#This Row],[Current Location]])","v":"Wafer - 300mmSSU 09"},"2020-03-13","Test Program 647","Test Part Number","Test Lot # 647"]
["Wafer - 300mm","SSU 14",{"$f":"-Inventory_Table[[#This Row],[Quantity In]]","v":-1},"SSU 09",1,{"$f":"_xlfn.CONCAT(Inventory_Table[[#This Row],[Form Factor]],Inventory_Table[[#This Row],[Current Location]])","v":"Wafer - 300mmSSU 09"},"2020-03-13","Test Program 648","Test Part Number","Test Lot # 648"]
["Wafer - 300mm","SSU 15",{"$f":"-Inventory_Table[[#This Row],[Quantity In]]","v":-1},"SSU 09",1,{"$f":"_xlfn.CONCAT(Inventory_Table[[#This Row],[Form Factor]],Inventory_Table[[#This Row],[Current Location]])","v":"Wafer - 300mmSSU 09"},"2020-03-13","Test Program 649","Test Part Number","Test Lot # 649"]
["Wafer - 300mm","SSU 16",{"$f":"-Inventory_Table[[#This Row],[Quantity In]]","v":-1},"SSU 09",1,{"$f":"_xlfn.CONCAT(Inventory_Table[[#This Row],[Form Factor]],Inventory_Table[[#This Row],[Current Location]])","v":"Wafer - 300mmSSU 09"},"2020-03-13","Test Program 650","Test Part Number","Test Lot # 650"]
["Wafer - 300mm","SSU 17",{"$f":"-Inventory_Table[[#This Row],[Quantity In]]","v":-1},"SSU 09",1,{"$f":"_xlfn.CONCAT(Inventory_Table[[#This Row],[Form Factor]],Inventory_Table[[#This Row],[Current Location]])","v":"Wafer - 300mmSSU 09"},"2020-03-13","Test Program 651","Test Part Number","Test Lot # 651"]
["Wafer - 300mm","SSU 18",{"$f":"-Inventory_Table[[#This Row],[Quantity In]]","v":-5},"Bromont - BMT",5,{"$f":"_xlfn.CONCAT(Inventory_Table[[#This Row],[Form Factor]],Inventory_Table[[#This Row],[Current Location]])","v":"Wafer - 300mmBromont - BMT"},"2020-03-16","Test Program 652","Test Part Number","Test Lot # 652"]
["Wafer - 300mm","SSU 01",{"$f":"-Inventory_Table[[#This Row],[Quantity In]]","v":-5},"Bromont - BMT",5,{"$f":"_xlfn.CONCAT(Inventory_Table[[#This Row],[Form Factor]],Inventory_Table[[#This Row],[Current Location]])","v":"Wafer - 300mmBromont - BMT"},"2020-03-16","Test Program 653","Test Part Number","Test Lot # 653"]
["Wafer - 300mm","SSU 02",{"$f":"-Inventory_Table[[#This Row],[Quantity In]]","v":-5},"Bromont - BMT",5,{"$f":"_xlfn.CONCAT(Inventory_Table[[#This Row],[Form Factor]],Inventory_Table[[#This Row],[Current Location]])","v":"Wafer - 300mmBromont - BMT"},"2020-03-16","Test Program 654","Test Part Number","Test Lot # 654"]
["Mask","SSU 03",{"$f":"-Inventory_Table[[#This Row],[Quantity In]]","v":-1},"SSU 12",1,{"$f":"_xlfn.CONCAT(Inventory_Table[[#This Row],[Form Factor]],Inventory_Table[[#This Row],[Current Location]])","v":"MaskSSU 12"},"2020-03-16","Test Program 655","Test Part Number","Test Lot # 655"]
["Wafer - 200mm","SSU 04",{"$f":"-Inventory_Table[[#This Row],[Quantity In]]","v":-25},"FGI/Shipped to Client",25,{"$f":"_xlfn.CONCAT(Inventory_Table[[#This Row],[Form Factor]],Inventory_Table[[#This Row],[Current Location]])","v":"Wafer - 200mmFGI/Shipped to Client"},"2020-03-16","Test Program 656","Test Part Number","Test Lot # 656"]
["Wafer - 300mm","SSU 05",{"$f":"-Inventory_Table[[#This Row],[Quantity In]]","v":-1},"SSU 09",1,{"$f":"_xlfn.CONCAT(Inventory_Table[[#This Row],[Form Factor]],Inventory_Table[[#This Row],[Current Location]])","v":"Wafer - 300mmSSU 09"},"2020-03-16","Test Program 657","Test Part Number","Test Lot # 657"]
["Wafer - 300mm","SSU 06",{"$f":"-Inventory_Table[[#This Row],[Quantity In]]","v":-1},"SSU 09",1,{"$f":"_xlfn.CONCAT(Inventory_Table[[#This Row],[Form Factor]],Inventory_Table[[#This Row],[Current Location]])","v":"Wafer - 300mmSSU 09"},"2020-03-16","Test Program 658","Test Part Number","Test Lot # 658"]
["Wafer - 300mm","SSU 07",{"$f":"-Inventory_Table[[#This Row],[Quantity In]]","v":-1},"SSU 09",1,{"$f":"_xlfn.CONCAT(Inventory_Table[[#This Row],[Form Factor]],Inventory_Table[[#This Row],[Current Location]])","v":"Wafer - 300mmSSU 09"},"2020-03-16","Test Program 659","Test Part Number","Test Lot # 659"]
["Wafer - 300mm","SSU 08",{"$f":"-Inventory_Table[[#This Row],[Quantity In]]","v":-1},"SSU 09",1,{"$f":"_xlfn.CONCAT(Inventory_Table[[#This Row],[Form Factor]],Inventory_Table[[#This Row],[Current Location]])","v":"Wafer - 300mmSSU 09"},"2020-03-16","Test Program 660","Test Part Number","Test Lot # 660"]
["Wafer - 300mm","SSU 09",{"$f":"-Inventory_Table[[#This Row],[Quantity In]]","v":-1},"SSU 09",1,{"$f":"_xlfn.CONCAT(Inventory_Table[[#This Row],[Form Factor]],Inventory_Table[[#This Row],[Current Location]])","v":"Wafer - 300mmSSU 09"},"2020-03-16","Test Program 661","Test Part Number","Test Lot # 661"]
["Wafer - 300mm","SSU 10",{"$f":"-Inventory_Table[[#This Row],[Quantity In]]","v":-1},"SSU 09",1,{"$f":"_xlfn.CONCAT(Inventory_Table[[#This Row],[Form Factor]],Inventory_Table[[#This Row],[Current Location]])","v":"Wafer - 300mmSSU 09"},"2020-03-16","Test Program 662","Test Part Number","Test Lot # 662"]
["Wafer - 300mm","SSU 11",{"$f":"-Inventory_Table[[#This Row],[Quantity In]]","v":-1},"SSU 09",1,{"$f":"_xlfn.CONCAT(Inventory_Table[[#This Row],[Form Factor]],Inventory_Table[[#This Row],[Current Location]])","v":"Wafer - 300mmSSU 09"},"2020-03-16","Test Program 663","Test Part Number","Test Lot # 663"]
["Wafer - 300mm","SSU 12",{"$f":"-Inventory_Table[[#This Row],[Quantity In]]","v":-1},"SSU 09",1,{"$f":"_xlfn.CONCAT(Inventory_Table[[#This Row],[Form Factor]],Inventory_Table[[#This Row],[Current Location]])","v":"Wafer - 300mmSSU 09"},"2020-03-16","Test Program 664","Test Part Number","Test Lot # 664"]
["Wafer - 300mm","SSU 13",{"$f":"-Inventory_Table[[#This Row],[Quantity In]]","v":-1},"SSU 09",1,{"$f":"_xlfn.CONCAT(Inventory_Table[[#This Row],[Form Factor]],Inventory_Table[[#This Row],[Current Location]])","v":"Wafer - 300mmSSU 09"},"2020-03-16","Test Program 665","Test Part Number","Test Lot # 665"]
["Wafer - 300mm","SSU 14",{"$f":"-Inventory_Table[[#This Row],[Quantity In]]","v":-1},"SSU 09",1,{"$f":"_xlfn.CONCAT(Inventory_Table[[#This Row],[Form Factor]],Inventory_Table[[#This Row],[Current Location]])","v":"Wafer - 300mmSSU 09"},"2020-03-16","Test Program 666","Test Part Number","Test Lot # 666"]
["Wafer - 300mm","SSU 15",{"$f":"-Inventory_Table[[#This Row],[Quantity In]]","v":-1},"SSU 09",1,{"$f":"_xlfn.CONCAT(Inventory_Table[[#This Row],[Form Factor]],Inventory_Table[[#This Row],[Current Location]])","v":"Wafer - 300mmSSU 09"},"2020-03-16","Test Program 667","Test Part Number","Test Lot # 667"]
["Wafer - 300mm","SSU 16",{"$f":"-Inventory_Table[[#This Row],[Quantity In]]","v":-1},"SSU 09",1,{"$f":"_xlfn.CONCAT(Inventory_Table[[#This Row],[Form Factor]],Inventory_Table[[#This Row],[Current Location]])","v":"Wafer - 300mmSSU 09"},"2020-03-16","Test Program 668","Test Part Number","Test Lot # 668"]
["Wafer - 300mm","SSU 17",{"$f":"-Inventory_Table[[#This Row],[Quantity In]]","v":-1},"SSU 09",1,{"$f":"_xlfn.CONCAT(Inventory_Table[[#This Row],[Form Factor]],Inventory_Table[[#This Row],[Current Location]])","v":"Wafer - 300mmSSU 09"},"2020-03-16","Test Program 669","Test Part Number","Test Lot # 669"]
["Wafer - 300mm","SSU 18",{"$f":"-Inventory_Table[[#This Row],[Quantity In]]","v":-1},"SSU 10",1,{"$f":"_xlfn.CONCAT(Inventory_Table[[#This Row],[Form Factor]],Inventory_Table[[#This Row],[Current Location]])","v":"Wafer - 300mmSSU 10"},"2020-03-16","Test Program 670","Test Part Number","Test Lot # 670"]
["Wafer - 300mm","SSU 01",{"$f":"-Inventory_Table[[#This Row],[Quantity In]]","v":-1},"SSU 10",1,{"$f":"_xlfn.CONCAT(Inventory_Table[[#This Row],[Form Factor]],Inventory_Table[[#This Row],[Current Location]])","v":"Wafer - 300mmSSU 10"},"2020-03-16","Test Program 671","Test Part Number","Test Lot # 671"]
["Wafer - 300mm","SSU 02",{"$f":"-Inventory_Table[[#This Row],[Quantity In]]","v":-1},"SSU 10",1,{"$f":"_xlfn.CONCAT(Inventory_Table[[#This Row],[Form Factor]],Inventory_Table[[#This Row],[Current Location]])","v":"Wafer - 300mmSSU 10"},"2020-03-16","Test Program 672","Test Part Number","Test Lot # 672"]
["Wafer - 300mm","SSU 03",{"$f":"-Inventory_Table[[#This Row],[Quantity In]]","v":-1},"SSU 10",1,{"$f":"_xlfn.CONCAT(Inventory_Table[[#This Row],[Form Factor]],Inventory_Table[[#This Row],[Current Location]])","v":"Wafer - 300mmSSU 10"},"2020-03-16","Test Program 673","Test Part Number","Test Lot # 673"]
["Wafer - 300mm","SSU 04",{"$f":"-Inventory_Table[[#This Row],[Quantity In]]","v":-1},"SSU 10",1,{"$f":"_xlfn.CONCAT(Inventory_Table[[#This Row],[Form Factor]],Inventory_Table[[#This Row],[Current Location]])","v":"Wafer - 300mmSSU 10"},"2020-03-16","Test Program 674","Test Part Number","Test Lot # 674"]
["Wafer - 300mm","SSU 05",{"$f":"-Inventory_Table[[#This Row],[Quantity In]]","v":-1},"SSU 10",1,{"$f":"_xlfn.CONCAT(Inventory_Table[[#This Row],[Form Factor]],Inventory_Table[[#This Row],[Current Location]])","v":"Wafer - 300mmSSU 10"},"2020-03-16","Test Program 675","Test Part Number","Test Lot # 675"]
["Wafer - 300mm","SSU 06",{"$f":"-Inventory_Table[[#This Row],[Quantity In]]","v":-1},"SSU 10",1,{"$f":"_xlfn.CONCAT(Inventory_Table[[#This Row],[Form Factor]],Inventory_Table[[#This Row],[Current Location]])","v":"Wafer - 300mmSSU 10"},"2020-03-16","Test Program 676","Test Part Number","Test Lot # 676"]
["Wafer - 300mm","SSU 07",{"$f":"-Inventory_Table[[#This Row],[Quantity In]]","v":-1},"SSU 10",1,{"$f":"_xlfn.CONCAT(Inventory_Table[[#This Row],[Form Factor]],Inventory_Table[[#This Row],[Current Location]])","v":"Wafer - 300mmSSU 10"},"2020-03-16","Test Program 677","Test Part Number","Test Lot # 677"]
["Wafer - 300mm","SSU 08",{"$f":"-Inventory_Table[[#This Row],[Quantity In]]","v":-1},"SSU 10",1,{"$f":"_xlfn.CONCAT(Inventory_Table[[#This Row],[Form Factor]],Inventory_Table[[#This Row],[Current Location]])","v":"Wafer - 300mmSSU 10"},"2020-03-16","Test Program 678","Test Part Number","Test Lot # 678"]
["Wafer - 300mm","SSU 09",{"$f":"-Inventory_Table[[#This Row],[Quantity In]]","v":-1},"SSU 10",1,{"$f":"_xlfn.CONCAT(Inventory_Table[[#This Row],[Form Factor]],Inventory_Table[[#This Row],[Current Location]])","v":"Wafer - 300mmSSU 10"},"2020-03-16","Test Program 679","Test Part Number","Test Lot # 679"]
["Wafer - 300mm","SSU 10",{"$f":"-Inventory_Table[[#This Row],[Quantity In]]","v":-1},"SSU 10",1,{"$f":"_xlfn.CONCAT(Inventory_Table[[#This Row],[Form Factor]],Inventory_Table[[#This Row],[Current Location]])","v":"Wafer - 300mmSSU 10"},"2020-03-16","Test Program 680","Test Part Number","Test Lot # 680"]
["Wafer - 300mm","SSU 11",{"$f":"-Inventory_Table[[#This Row],[Quantity In]]","v":-1},"SSU 10",1,{"$f":"_xlfn.CONCAT(Inventory_Table[[#This Row],[Form Factor]],Inventory_Table[[#This Row],[Current Location]])","v":"Wafer - 300mmSSU 10"},"2020-03-16","Test Program 681","Test Part Number","Test Lot # 681"]
["Wafer - 200mm","SSU 12",{"$f":"-Inventory_Table[[#This Row],[Quantity In]]","v":-5},"CMC",5,{"$f":"_xlfn.CONCAT(Inventory_Table[[#This Row],[Form Factor]],Inventory_Table[[#This Row],[Current Location]])","v":"Wafer - 200mmCMC"},"2020-03-16","Test Program 682","Test Part Number","Test Lot # 682"]
["Wafer - 200mm","SSU 13",{"$f":"-Inventory_Table[[#This Row],[Quantity In]]","v":-11},"CMC",11,{"$f":"_xlfn.CONCAT(Inventory_Table[[#This Row],[Form Factor]],Inventory_Table[[#This Row],[Current Location]])","v":"Wafer - 200mmCMC"},"2020-03-16","Test Program 683","Test Part Number","Test Lot # 683"]
["Wafer - 200mm","SSU 14",{"$f":"-Inventory_Table[[#This Row],[Quantity In]]","v":-21},"CMC",21,{"$f":"_xlfn.CONCAT(Inventory_Table[[#This Row],[Form Factor]],Inventory_Table[[#This Row],[Current Location]])","v":"Wafer - 200mmCMC"},"2020-03-16","Test Program 684","Test Part Number","Test Lot # 684"]
["Wafer - 200mm","SSU 15",{"$f":"-Inventory_Table[[#This Row],[Quantity In]]","v":-14},"CMC",14,{"$f":"_xlfn.CONCAT(Inventory_Table[[#This Row],[Form Factor]],Inventory_Table[[#This Row],[Current Location]])","v":"Wafer - 200mmCMC"},"2020-03-16","Test Program 685","Test Part Number","Test Lot # 685"]
["Wafer - 200mm","SSU 16",{"$f":"-Inventory_Table[[#This Row],[Quantity In]]","v":-14},"CMC",14,{"$f":"_xlfn.CONCAT(Inventory_Table[[#This Row],[Form Factor]],Inventory_Table[[#This Row],[Current Location]])","v":"Wafer - 200mmCMC"},"2020-03-16","Test Program 686","Test Part Number","Test Lot # 686"]
["Wafer - 200mm","SSU 17",{"$f":"-Inventory_Table[[#This Row],[Quantity In]]","v":-3},"CMC",3,{"$f":"_xlfn.CONCAT(Inventory_Table[[#This Row],[Form Factor]],Inventory_Table[[#This Row],[Current Location]])","v":"Wafer - 200mmCMC"},"2020-03-16","Test Program 687","Test Part Number","Test Lot # 687"]
["Wafer - 300mm","SSU 17",{"$f":"-Inventory_Table[[#This Row],[Quantity In]]","v":-5},"CMC",5,{"$f":"_xlfn.CONCAT(Inventory_Table[[#This Row],[Form Factor]],Inventory_Table[[#This Row],[Current Location]])","v":"Wafer - 300mmCMC"},"2020-03-16","Test Program 688","Test Part Number","Test Lot # 688"]
["Wafer - 300mm","SSU 18",{"$f":"-Inventory_Table[[#This Row],[Quantity In]]","v":-11},"CMC",11,{"$f":"_xlfn.CONCAT(Inventory_Table[[#This Row],[Form Factor]],Inventory_Table[[#This Row],[Current Location]])","v":"Wafer - 300mmCMC"},"2020-03-16","Test Program 689","Test Part Number","Test Lot # 689"]
["Wafer - 300mm","SSU 01",{"$f":"-Inventory_Table[[#This Row],[Quantity In]]","v":-6},"CMC",6,{"$f":"_xlfn.CONCAT(Inventory_Table[[#This Row],[Form Factor]],Inventory_Table[[#This Row],[Current Location]])","v":"Wafer - 300mmCMC"},"2020-03-16","Test Program 690","Test Part Number","Test Lot # 690"]
["Wafer - 300mm","SSU 02",{"$f":"-Inventory_Table[[#This Row],[Quantity In]]","v":-11},"CMC",11,{"$f":"_xlfn.CONCAT(Inventory_Table[[#This Row],[Form Factor]],Inventory_Table[[#This Row],[Current Location]])","v":"Wafer - 300mmCMC"},"2020-03-16","Test Program 691","Test Part Number","Test Lot # 691"]
["Wafer - 300mm","SSU 03",{"$f":"-Inventory_Table[[#This Row],[Quantity In]]","v":-9},"CMC",9,{"$f":"_xlfn.CONCAT(Inventory_Table[[#This Row],[Form Factor]],Inventory_Table[[#This Row],[Current Location]])","v":"Wafer - 300mmCMC"},"2020-03-16","Test Program 692","Test Part Number","Test Lot # 692"]
["Wafer - 300mm","SSU 04",{"$f":"-Inventory_Table[[#This Row],[Quantity In]]","v":-11},"CMC",11,{"$f":"_xlfn.CONCAT(Inventory_Table[[#This Row],[Form Factor]],Inventory_Table[[#This Row],[Current Location]])","v":"Wafer - 300mmCMC"},"2020-03-16","Test Program 693","Test Part Number","Test Lot # 693"]
["Wafer - 300mm","SSU 05",{"$f":"-Inventory_Table[[#This Row],[Quantity In]]","v":-11},"CMC",11,{"$f":"_xlfn.CONCAT(Inventory_Table[[#This Row],[Form Factor]],Inventory_Table[[#This Row],[Current Location]])","v":"Wafer - 300mmCMC"},"2020-03-16","Test Program 694","Test Part Number","Test Lot # 694"]
["Wafer - 300mm","SSU 06",{"$f":"-Inventory_Table[[#This Row],[Quantity In]]","v":-18},"CMC",18,{"$f":"_xlfn.CONCAT(Inventory_Table[[#This Row],[Form Factor]],Inventory_Table[[#This Row],[Current Location]])","v":"Wafer - 300mmCMC"},"2020-03-16","Test Program 695","Test Part Number","Test Lot # 695"]
["Wafer - 300mm","SSU 07",{"$f":"-Inventory_Table[[#This Row],[Quantity In]]","v":-18},"CMC",18,{"$f":"_xlfn.CONCAT(Inventory_Table[[#This Row],[Form Factor]],Inventory_Table[[#This Row],[Current Location]])","v":"Wafer - 300mmCMC"},"2020-03-16","Test Program 696","Test Part Number","Test Lot # 696"]
["Wafer - 300mm","SSU 08",{"$f":"-Inventory_Table[[#This Row],[Quantity In]]","v":-13},"Bromont - BMT",13,{"$f":"_xlfn.CONCAT(Inventory_Table[[#This Row],[Form Factor]],Inventory_Table[[#This Row],[Current Location]])","v":"Wafer - 300mmBromont - BMT"},"2020-03-17","Test Program 697","Test Part Number","Test Lot # 697"]
["Wafer - 300mm","SSU 09",{"$f":"-Inventory_Table[[#This Row],[Quantity In]]","v":-12},"Bromont - BMT",12,{"$f":"_xlfn.CONCAT(Inventory_Table[[#This Row],[Form Factor]],Inventory_Table[[#This Row],[Current Location]])","v":"Wafer - 300mmBromont - BMT"},"2020-03-17","Test Program 698","Test Part Number","Test Lot # 698"]
["Wafer - 200mm","SSU 10",{"$f":"-Inventory_Table[[#This Row],[Quantity In]]","v":-22},"CMC",22,{"$f":"_xlfn.CONCAT(Inventory_Table[[#This Row],[Form Factor]],Inventory_Table[[#This Row],[Current Location]])","v":"Wafer - 200mmCMC"},"2020-03-17","Test Program 699","Test Part Number","Test Lot # 699"]
["Wafer - 200mm","SSU 11",{"$f":"-Inventory_Table[[#This Row],[Quantity In]]","v":-24},"CMC",24,{"$f":"_xlfn.CONCAT(Inventory_Table[[#This Row],[Form Factor]],Inventory_Table[[#This Row],[Current Location]])","v":"Wafer - 200mmCMC"},"2020-03-17","Test Program 700","Test Part Number","Test Lot # 700"]
["Wafer - 200mm","SSU 12",{"$f":"-Inventory_Table[[#This Row],[Quantity In]]","v":-24},"CMC",24,{"$f":"_xlfn.CONCAT(Inventory_Table[[#This Row],[Form Factor]],Inventory_Table[[#This Row],[Current Location]])","v":"Wafer - 200mmCMC"},"2020-03-17","Test Program 701","Test Part Number","Test Lot # 701"]
["Wafer - 200mm","SSU 13",{"$f":"-Inventory_Table[[#This Row],[Quantity In]]","v":-25},"CMC",25,{"$f":"_xlfn.CONCAT(Inventory_Table[[#This Row],[Form Factor]],Inventory_Table[[#This Row],[Current Location]])","v":"Wafer - 200mmCMC"},"2020-03-17","Test Program 702","Test Part Number","Test Lot # 702"]
["Mask","SSU 14",{"$f":"-Inventory_Table[[#This Row],[Quantity In]]","v":-1},"SSU 12",1,{"$f":"_xlfn.CONCAT(Inventory_Table[[#This Row],[Form Factor]],Inventory_Table[[#This Row],[Current Location]])","v":"MaskSSU 12"},"2020-03-17","Test Program 703","Test Part Number","Test Lot # 703"]
["Module","SSU 03",{"$f":"-Inventory_Table[[#This Row],[Quantity In]]","v":-437},"Bromont - BMT",437,{"$f":"_xlfn.CONCAT(Inventory_Table[[#This Row],[Form Factor]],Inventory_Table[[#This Row],[Current Location]])","v":"ModuleBromont - BMT"},"2020-03-18","Test Program 710","Test Part Number","Test Lot # 710"]
["Module","SSU 06",{"$f":"-Inventory_Table[[#This Row],[Quantity In]]","v":-436},"Bromont - BMT",436,{"$f":"_xlfn.CONCAT(Inventory_Table[[#This Row],[Form Factor]],Inventory_Table[[#This Row],[Current Location]])","v":"ModuleBromont - BMT"},"2020-03-18","Test Program 713","Test Part Number","Test Lot # 713"]
["Module","SSU 08",{"$f":"-Inventory_Table[[#This Row],[Quantity In]]","v":-434},"Bromont - BMT",434,{"$f":"_xlfn.CONCAT(Inventory_Table[[#This Row],[Form Factor]],Inventory_Table[[#This Row],[Current Location]])","v":"ModuleBromont - BMT"},"2020-03-18","Test Program 715","Test Part Number","Test Lot # 715"]
["Module","SSU 09",{"$f":"-Inventory_Table[[#This Row],[Quantity In]]","v":-315},"Bromont - BMT",315,{"$f":"_xlfn.CONCAT(Inventory_Table[[#This Row],[Form Factor]],Inventory_Table[[#This Row],[Current Location]])","v":"ModuleBromont - BMT"},"2020-03-18","Test Program 716","Test Part Number","Test Lot # 716"]
["Wafer - Carcass","SSU 10",{"$f":"-Inventory_Table[[#This Row],[Quantity In]]","v":-5},"SSU 07",5,{"$f":"_xlfn.CONCAT(Inventory_Table[[#This Row],[Form Factor]],Inventory_Table[[#This Row],[Current Location]])","v":"Wafer - CarcassSSU 07"},"2020-03-18","Test Program 717","Test Part Number","Test Lot # 717"]
["Wafer - Carcass","SSU 11",{"$f":"-Inventory_Table[[#This Row],[Quantity In]]","v":-3},"SSU 07",3,{"$f":"_xlfn.CONCAT(Inventory_Table[[#This Row],[Form Factor]],Inventory_Table[[#This Row],[Current Location]])","v":"Wafer - CarcassSSU 07"},"2020-03-18","Test Program 718","Test Part Number","Test Lot # 718"]
["Wafer - Carcass","SSU 12",{"$f":"-Inventory_Table[[#This Row],[Quantity In]]","v":-5},"SSU 07",5,{"$f":"_xlfn.CONCAT(Inventory_Table[[#This Row],[Form Factor]],Inventory_Table[[#This Row],[Current Location]])","v":"Wafer - CarcassSSU 07"},"2020-03-18","Test Program 719","Test Part Number","Test Lot # 719"]
["Module","SSU 13",{"$f":"-Inventory_Table[[#This Row],[Quantity In]]","v":-438},"FGI/Shipped to Client",438,{"$f":"_xlfn.CONCAT(Inventory_Table[[#This Row],[Form Factor]],Inventory_Table[[#This Row],[Current Location]])","v":"ModuleFGI/Shipped to Client"},"2020-03-18","Test Program 720","Test Part Number","Test Lot # 720"]
["Module","SSU 14",{"$f":"-Inventory_Table[[#This Row],[Quantity In]]","v":-220},"FGI/Shipped to Client",220,{"$f":"_xlfn.CONCAT(Inventory_Table[[#This Row],[Form Factor]],Inventory_Table[[#This Row],[Current Location]])","v":"ModuleFGI/Shipped to Client"},"2020-03-18","Test Program 721","Test Part Number","Test Lot # 721"]
["Module","SSU 15",{"$f":"-Inventory_Table[[#This Row],[Quantity In]]","v":-439},"FGI/Shipped to Client",439,{"$f":"_xlfn.CONCAT(Inventory_Table[[#This Row],[Form Factor]],Inventory_Table[[#This Row],[Current Location]])","v":"ModuleFGI/Shipped to Client"},"2020-03-18","Test Program 722","Test Part Number","Test Lot # 722"]
["Module","SSU 16",{"$f":"-Inventory_Table[[#This Row],[Quantity In]]","v":-432},"FGI/Shipped to Client",432,{"$f":"_xlfn.CONCAT(Inventory_Table[[#This Row],[Form Factor]],Inventory_Table[[#This Row],[Current Location]])","v":"ModuleFGI/Shipped to Client"},"2020-03-18","Test Program 723","Test Part Number","Test Lot # 723"]
["Module","SSU 17",{"$f":"-Inventory_Table[[#This Row],[Quantity In]]","v":-431},"FGI/Shipped to Client",431,{"$f":"_xlfn.CONCAT(Inventory_Table[[#This Row],[Form Factor]],Inventory_Table[[#This Row],[Current Location]])","v":"ModuleFGI/Shipped to Client"},"2020-03-18","Test Program 724","Test Part Number","Test Lot # 724"]
["Module","SSU 18",{"$f":"-Inventory_Table[[#This Row],[Quantity In]]","v":-431},"FGI/Shipped to Client",431,{"$f":"_xlfn.CONCAT(Inventory_Table[[#This Row],[Form Factor]],Inventory_Table[[#This Row],[Current Location]])","v":"ModuleFGI/Shipped to Client"},"2020-03-18","Test Program 725","Test Part Number","Test Lot # 725"]
["Module","SSU 01",{"$f":"-Inventory_Table[[#This Row],[Quantity In]]","v":-397},"FGI/Shipped to Client",397,{"$f":"_xlfn.CONCAT(Inventory_Table[[#This Row],[Form Factor]],Inventory_Table[[#This Row],[Current Location]])","v":"ModuleFGI/Shipped to Client"},"2020-03-18","Test Program 726","Test Part Number","Test Lot # 726"]
["Module","SSU 02",{"$f":"-Inventory_Table[[#This Row],[Quantity In]]","v":-50},"FGI/Shipped to Client",50,{"$f":"_xlfn.CONCAT(Inventory_Table[[#This Row],[Form Factor]],Inventory_Table[[#This Row],[Current Location]])","v":"ModuleFGI/Shipped to Client"},"2020-03-18","Test Program 727","Test Part Number","Test Lot # 727"]
["Module","SSU 03",{"$f":"-Inventory_Table[[#This Row],[Quantity In]]","v":-286},"FGI/Shipped to Client",286,{"$f":"_xlfn.CONCAT(Inventory_Table[[#This Row],[Form Factor]],Inventory_Table[[#This Row],[Current Location]])","v":"ModuleFGI/Shipped to Client"},"2020-03-18","Test Program 728","Test Part Number","Test Lot # 728"]
["Module","SSU 04",{"$f":"-Inventory_Table[[#This Row],[Quantity In]]","v":-438},"FGI/Shipped to Client",438,{"$f":"_xlfn.CONCAT(Inventory_Table[[#This Row],[Form Factor]],Inventory_Table[[#This Row],[Current Location]])","v":"ModuleFGI/Shipped to Client"},"2020-03-18","Test Program 729","Test Part Number","Test Lot # 729"]
["Module","SSU 05",{"$f":"-Inventory_Table[[#This Row],[Quantity In]]","v":-22},"FGI/Shipped to Client",22,{"$f":"_xlfn.CONCAT(Inventory_Table[[#This Row],[Form Factor]],Inventory_Table[[#This Row],[Current Location]])","v":"ModuleFGI/Shipped to Client"},"2020-03-18","Test Program 730","Test Part Number","Test Lot # 730"]
["Module","SSU 06",{"$f":"-Inventory_Table[[#This Row],[Quantity In]]","v":-436},"FGI/Shipped to Client",436,{"$f":"_xlfn.CONCAT(Inventory_Table[[#This Row],[Form Factor]],Inventory_Table[[#This Row],[Current Location]])","v":"ModuleFGI/Shipped to Client"},"2020-03-18","Test Program 731","Test Part Number","Test Lot # 731"]
["Module","SSU 07",{"$f":"-Inventory_Table[[#This Row],[Quantity In]]","v":-34},"FGI/Shipped to Client",34,{"$f":"_xlfn.CONCAT(Inventory_Table[[#This Row],[Form Factor]],Inventory_Table[[#This Row],[Current Location]])","v":"ModuleFGI/Shipped to Client"},"2020-03-18","Test Program 732","Test Part Number","Test Lot # 732"]
["Module","SSU 08",{"$f":"-Inventory_Table[[#This Row],[Quantity In]]","v":-438},"FGI/Shipped to Client",438,{"$f":"_xlfn.CONCAT(Inventory_Table[[#This Row],[Form Factor]],Inventory_Table[[#This Row],[Current Location]])","v":"ModuleFGI/Shipped to Client"},"2020-03-18","Test Program 733","Test Part Number","Test Lot # 733"]
["Module","SSU 09",{"$f":"-Inventory_Table[[#This Row],[Quantity In]]","v":-435},"FGI/Shipped to Client",435,{"$f":"_xlfn.CONCAT(Inventory_Table[[#This Row],[Form Factor]],Inventory_Table[[#This Row],[Current Location]])","v":"ModuleFGI/Shipped to Client"},"2020-03-18","Test Program 734","Test Part Number","Test Lot # 734"]
["Wafer - 300mm","SSU 10",{"$f":"-Inventory_Table[[#This Row],[Quantity In]]","v":-1},"Bromont - BMT",1,{"$f":"_xlfn.CONCAT(Inventory_Table[[#This Row],[Form Factor]],Inventory_Table[[#This Row],[Current Location]])","v":"Wafer - 300mmBromont - BMT"},"2020-03-19","Test Program 735","Test Part Number","Test Lot # 735"]
["Wafer - 300mm","SSU 11",{"$f":"-Inventory_Table[[#This Row],[Quantity In]]","v":-1},"Bromont - BMT",1,{"$f":"_xlfn.CONCAT(Inventory_Table[[#This Row],[Form Factor]],Inventory_Table[[#This Row],[Current Location]])","v":"Wafer - 300mmBromont - BMT"},"2020-03-19","Test Program 736","Test Part Number","Test Lot # 736"]
["Wafer - 300mm","SSU 12",{"$f":"-Inventory_Table[[#This Row],[Quantity In]]","v":-1},"Bromont - BMT",1,{"$f":"_xlfn.CONCAT(Inventory_Table[[#This Row],[Form Factor]],Inventory_Table[[#This Row],[Current Location]])","v":"Wafer - 300mmBromont - BMT"},"2020-03-19","Test Program 737","Test Part Number","Test Lot # 737"]
["Wafer - 300mm","SSU 18",{"$f":"-Inventory_Table[[#This Row],[Quantity In]]","v":-1},"Bromont - BMT",1,{"$f":"_xlfn.CONCAT(Inventory_Table[[#This Row],[Form Factor]],Inventory_Table[[#This Row],[Current Location]])","v":"Wafer - 300mmBromont - BMT"},"2020-03-19","Test Program 738","Test Part Number","Test Lot # 738"]
["Wafer - 300mm","SSU 01",{"$f":"-Inventory_Table[[#This Row],[Quantity In]]","v":-1},"Bromont - BMT",1,{"$f":"_xlfn.CONCAT(Inventory_Table[[#This Row],[Form Factor]],Inventory_Table[[#This Row],[Current Location]])","v":"Wafer - 300mmBromont - BMT"},"2020-03-19","Test Program 739","Test Part Number","Test Lot # 739"]
["Wafer - 300mm","SSU 02",{"$f":"-Inventory_Table[[#This Row],[Quantity In]]","v":-1},"Bromont - BMT",1,{"$f":"_xlfn.CONCAT(Inventory_Table[[#This Row],[Form Factor]],Inventory_Table[[#This Row],[Current Location]])","v":"Wafer - 300mmBromont - BMT"},"2020-03-19","Test Program 740","Test Part Number","Test Lot # 740"]
["Wafer - 300mm","SSU 03",{"$f":"-Inventory_Table[[#This Row],[Quantity In]]","v":-1},"Bromont - BMT",1,{"$f":"_xlfn.CONCAT(Inventory_Table[[#This Row],[Form Factor]],Inventory_Table[[#This Row],[Current Location]])","v":"Wafer - 300mmBromont - BMT"},"2020-03-19","Test Program 741","Test Part Number","Test Lot # 741"]
["Wafer - 300mm","SSU 04",{"$f":"-Inventory_Table[[#This Row],[Quantity In]]","v":-1},"Bromont - BMT",1,{"$f":"_xlfn.CONCAT(Inventory_Table[[#This Row],[Form Factor]],Inventory_Table[[#This Row],[Current Location]])","v":"Wafer - 300mmBromont - BMT"},"2020-03-19","Test Program 742","Test Part Number","Test Lot # 742"]
["Wafer - 300mm","SSU 05",{"$f":"-Inventory_Table[[#This Row],[Quantity In]]","v":-1},"Bromont - BMT",1,{"$f":"_xlfn.CONCAT(Inventory_Table[[#This Row],[Form Factor]],Inventory_Table[[#This Row],[Current Location]])","v":"Wafer - 300mmBromont - BMT"},"2020-03-19","Test Program 743","Test Part Number","Test Lot # 743"]
["Wafer - 300mm","SSU 06",{"$f":"-Inventory_Table[[#This Row],[Quantity In]]","v":-1},"Bromont - BMT",1,{"$f":"_xlfn.CONCAT(Inventory_Table[[#This Row],[Form Factor]],Inventory_Table[[#This Row],[Current Location]])","v":"Wafer - 300mmBromont - BMT"},"2020-03-19","Test Program 744","Test Part Number","Test Lot # 744"]
["Wafer - 300mm","SSU 07",{"$f":"-Inventory_Table[[#This Row],[Quantity In]]","v":-1},"Bromont - BMT",1,{"$f":"_xlfn.CONCAT(Inventory_Table[[#This Row],[Form Factor]],Inventory_Table[[#This Row],[Current Location]])","v":"Wafer - 300mmBromont - BMT"},"2020-03-19","Test Program 745","Test Part Number","Test Lot # 745"]
["Wafer - 300mm","SSU 08",{"$f":"-Inventory_Table[[#This Row],[Quantity In]]","v":-1},"Bromont - BMT",1,{"$f":"_xlfn.CONCAT(Inventory_Table[[#This Row],[Form Factor]],Inventory_Table[[#This Row],[Current Location]])","v":"Wafer - 300mmBromont - BMT"},"2020-03-19","Test Program 746","Test Part Number","Test Lot # 746"]
["Wafer - 300mm","SSU 09",{"$f":"-Inventory_Table[[#This Row],[Quantity In]]","v":-1},"Bromont - BMT",1,{"$f":"_xlfn.CONCAT(Inventory_Table[[#This Row],[Form Factor]],Inventory_Table[[#This Row],[Current Location]])","v":"Wafer - 300mmBromont - BMT"},"2020-03-19","Test Program 747","Test Part Number","Test Lot # 747"]
["Mask","SSU 10",{"$f":"-Inventory_Table[[#This Row],[Quantity In]]","v":-1},"SSU 11",1,{"$f":"_xlfn.CONCAT(Inventory_Table[[#This Row],[Form Factor]],Inventory_Table[[#This Row],[Current Location]])","v":"MaskSSU 11"},"2020-03-19","Test Program 748","Test Part Number","Test Lot # 748"]
["Module","SSU 11",{"$f":"-Inventory_Table[[#This Row],[Quantity In]]","v":-439},"SSU 09",439,{"$f":"_xlfn.CONCAT(Inventory_Table[[#This Row],[Form Factor]],Inventory_Table[[#This Row],[Current Location]])","v":"ModuleSSU 09"},"2020-03-20","Test Program 749","Test Part Number","Test Lot # 749"]
["Module","SSU 12",{"$f":"-Inventory_Table[[#This Row],[Quantity In]]","v":-435},"SSU 09",435,{"$f":"_xlfn.CONCAT(Inventory_Table[[#This Row],[Form Factor]],Inventory_Table[[#This Row],[Current Location]])","v":"ModuleSSU 09"},"2020-03-20","Test Program 750","Test Part Number","Test Lot # 750"]
["Module","SSU 13",{"$f":"-Inventory_Table[[#This Row],[Quantity In]]","v":-20},"SSU 09",20,{"$f":"_xlfn.CONCAT(Inventory_Table[[#This Row],[Form Factor]],Inventory_Table[[#This Row],[Current Location]])","v":"ModuleSSU 09"},"2020-03-20","Test Program 751","Test Part Number","Test Lot # 751"]
["Module","SSU 14",{"$f":"-Inventory_Table[[#This Row],[Quantity In]]","v":-80},"SSU 09",80,{"$f":"_xlfn.CONCAT(Inventory_Table[[#This Row],[Form Factor]],Inventory_Table[[#This Row],[Current Location]])","v":"ModuleSSU 09"},"2020-03-20","Test Program 752","Test Part Number","Test Lot # 752"]
["Wafer - 300mm","SSU 15",{"$f":"-Inventory_Table[[#This Row],[Quantity In]]","v":-1},"SSU 08",1,{"$f":"_xlfn.CONCAT(Inventory_Table[[#This Row],[Form Factor]],Inventory_Table[[#This Row],[Current Location]])","v":"Wafer - 300mmSSU 08"},"2020-03-20","Test Program 753","Test Part Number","Test Lot # 753"]
["Wafer - 300mm","SSU 16",{"$f":"-Inventory_Table[[#This Row],[Quantity In]]","v":-1},"SSU 08",1,{"$f":"_xlfn.CONCAT(Inventory_Table[[#This Row],[Form Factor]],Inventory_Table[[#This Row],[Current Location]])","v":"Wafer - 300mmSSU 08"},"2020-03-20","Test Program 754","Test Part Number","Test Lot # 754"]
["Wafer - 300mm","SSU 17",{"$f":"-Inventory_Table[[#This Row],[Quantity In]]","v":-1},"SSU 08",1,{"$f":"_xlfn.CONCAT(Inventory_Table[[#This Row],[Form Factor]],Inventory_Table[[#This Row],[Current Location]])","v":"Wafer - 300mmSSU 08"},"2020-03-20","Test Program 755","Test Part Number","Test Lot # 755"]
["Wafer - 300mm","SSU 17",{"$f":"-Inventory_Table[[#This Row],[Quantity In]]","v":-1},"SSU 08",1,{"$f":"_xlfn.CONCAT(Inventory_Table[[#This Row],[Form Factor]],Inventory_Table[[#This Row],[Current Location]])","v":"Wafer - 300mmSSU 08"},"2020-03-20","Test Program 756","Test Part Number","Test Lot # 756"]
["Wafer - Carcass","SSU 16",{"$f":"-Inventory_Table[[#This Row],[Quantity In]]","v":-5},"SSU 07",5,{"$f":"_xlfn.CONCAT(Inventory_Table[[#This Row],[Form Factor]],Inventory_Table[[#This Row],[Current Location]])","v":"Wafer - CarcassSSU 07"},"2020-03-20","Test Program 791","Test Part Number","Test Lot # 791"]
["Wafer - Carcass","SSU 17",{"$f":"-Inventory_Table[[#This Row],[Quantity In]]","v":-5},"SSU 07",5,{"$f":"_xlfn.CONCAT(Inventory_Table[[#This Row],[Form Factor]],Inventory_Table[[#This Row],[Current Location]])","v":"Wafer - CarcassSSU 07"},"2020-03-20","Test Program 792","Test Part Number","Test Lot # 792"]
["Wafer - Carcass","SSU 18",{"$f":"-Inventory_Table[[#This Row],[Quantity In]]","v":-5},"SSU 07",5,{"$f":"_xlfn.CONCAT(Inventory_Table[[#This Row],[Form Factor]],Inventory_Table[[#This Row],[Current Location]])","v":"Wafer - CarcassSSU 07"},"2020-03-20","Test Program 793","Test Part Number","Test Lot # 793"]
["Wafer - Carcass","SSU 01",{"$f":"-Inventory_Table[[#This Row],[Quantity In]]","v":-6},"SSU 07",6,{"$f":"_xlfn.CONCAT(Inventory_Table[[#This Row],[Form Factor]],Inventory_Table[[#This Row],[Current Location]])","v":"Wafer - CarcassSSU 07"},"2020-03-20","Test Program 794","Test Part Number","Test Lot # 794"]
["Wafer - 200mm","SSU 18",{"$f":"-Inventory_Table[[#This Row],[Quantity In]]","v":-12},"FGI/Shipped to Client",12,{"$f":"_xlfn.CONCAT(Inventory_Table[[#This Row],[Form Factor]],Inventory_Table[[#This Row],[Current Location]])","v":"Wafer - 200mmFGI/Shipped to Client"},"2020-03-22","Test Program 757","Test Part Number","Test Lot # 757"]
["Wafer - 200mm","SSU 01",{"$f":"-Inventory_Table[[#This Row],[Quantity In]]","v":-13},"FGI/Shipped to Client",13,{"$f":"_xlfn.CONCAT(Inventory_Table[[#This Row],[Form Factor]],Inventory_Table[[#This Row],[Current Location]])","v":"Wafer - 200mmFGI/Shipped to Client"},"2020-03-22","Test Program 758","Test Part Number","Test Lot # 758"]
["Module","SSU 02",{"$f":"-Inventory_Table[[#This Row],[Quantity In]]","v":-5},"Bromont - BMT",5,{"$f":"_xlfn.CONCAT(Inventory_Table[[#This Row],[Form Factor]],Inventory_Table[[#This Row],[Current Location]])","v":"ModuleBromont - BMT"},"2020-03-23","Test Program 759","Test Part Number","Test Lot # 759"]
["Module","SSU 03",{"$f":"-Inventory_Table[[#This Row],[Quantity In]]","v":-435},"Bromont - BMT",435,{"$f":"_xlfn.CONCAT(Inventory_Table[[#This Row],[Form Factor]],Inventory_Table[[#This Row],[Current Location]])","v":"ModuleBromont - BMT"},"2020-03-23","Test Program 760","Test Part Number","Test Lot # 760"]
["Wafer - 300mm","SSU 04",{"$f":"-Inventory_Table[[#This Row],[Quantity In]]","v":-1},"Bromont - BMT",1,{"$f":"_xlfn.CONCAT(Inventory_Table[[#This Row],[Form Factor]],Inventory_Table[[#This Row],[Current Location]])","v":"Wafer - 300mmBromont - BMT"},"2020-03-23","Test Program 761","Test Part Number","Test Lot # 761"]
["Wafer - 300mm","SSU 05",{"$f":"-Inventory_Table[[#This Row],[Quantity In]]","v":-1},"Bromont - BMT",1,{"$f":"_xlfn.CONCAT(Inventory_Table[[#This Row],[Form Factor]],Inventory_Table[[#This Row],[Current Location]])","v":"Wafer - 300mmBromont - BMT"},"2020-03-23","Test Program 762","Test Part Number","Test Lot # 762"]
["Wafer - 300mm","SSU 06",{"$f":"-Inventory_Table[[#This Row],[Quantity In]]","v":-1},"Bromont - BMT",1,{"$f":"_xlfn.CONCAT(Inventory_Table[[#This Row],[Form Factor]],Inventory_Table[[#This Row],[Current Location]])","v":"Wafer - 300mmBromont - BMT"},"2020-03-23","Test Program 763","Test Part Number","Test Lot # 763"]
["Wafer - 300mm","SSU 07",{"$f":"-Inventory_Table[[#This Row],[Quantity In]]","v":-1},"Bromont - BMT",1,{"$f":"_xlfn.CONCAT(Inventory_Table[[#This Row],[Form Factor]],Inventory_Table[[#This Row],[Current Location]])","v":"Wafer - 300mmBromont - BMT"},"2020-03-23","Test Program 764","Test Part Number","Test Lot # 764"]
["Wafer - 300mm","SSU 08",{"$f":"-Inventory_Table[[#This Row],[Quantity In]]","v":-1},"Bromont - BMT",1,{"$f":"_xlfn.CONCAT(Inventory_Table[[#This Row],[Form Factor]],Inventory_Table[[#This Row],[Current Location]])","v":"Wafer - 300mmBromont - BMT"},"2020-03-23","Test Program 765","Test Part Number","Test Lot # 765"]
["Wafer - 300mm","SSU 09",{"$f":"-Inventory_Table[[#This Row],[Quantity In]]","v":-1},"Bromont - BMT",1,{"$f":"_xlfn.CONCAT(Inventory_Table[[#This Row],[Form Factor]],Inventory_Table[[#This Row],[Current Location]])","v":"Wafer - 300mmBromont - BMT"},"2020-03-23","Test Program 766","Test Part Number","Test Lot # 766"]
["Wafer - 300mm","SSU 10",{"$f":"-Inventory_Table[[#This Row],[Quantity In]]","v":-1},"Bromont - BMT",1,{"$f":"_xlfn.CONCAT(Inventory_Table[[#This Row],[Form Factor]],Inventory_Table[[#This Row],[Current Location]])","v":"Wafer - 300mmBromont - BMT"},"2020-03-23","Test Program 767","Test Part Number","Test Lot # 767"]
["Wafer - 300mm","SSU 11",{"$f":"-Inventory_Table[[#This Row],[Quantity In]]","v":-1},"Bromont - BMT",1,{"$f":"_xlfn.CONCAT(Inventory_Table[[#This Row],[Form Factor]],Inventory_Table[[#This Row],[Current Location]])","v":"Wafer - 300mmBromont - BMT"},"2020-03-23","Test Program 768","Test Part Number","Test Lot # 768"]
["Wafer - 300mm","SSU 12",{"$f":"-Inventory_Table[[#This Row],[Quantity In]]","v":-1},"Bromont - BMT",1,{"$f":"_xlfn.CONCAT(Inventory_Table[[#This Row],[Form Factor]],Inventory_Table[[#This Row],[Current Location]])","v":"Wafer - 300mmBromont - BMT"},"2020-03-23","Test Program 769","Test Part Number","Test Lot # 769"]
["Wafer - 300mm","SSU 13",{"$f":"-Inventory_Table[[#This Row],[Quantity In]]","v":-1},"Bromont - BMT",1,{"$f":"_xlfn.CONCAT(Inventory_Table[[#This Row],[Form Factor]],Inventory_Table[[#This Row],[Current Location]])","v":"Wafer - 300mmBromont - BMT"},"2020-03-23","Test Program 770","Test Part Number","Test Lot # 770"]
["Wafer - 300mm","SSU 14",{"$f":"-Inventory_Table[[#This Row],[Quantity In]]","v":-1},"Bromont - BMT",1,{"$f":"_xlfn.CONCAT(Inventory_Table[[#This Row],[Form Factor]],Inventory_Table[[#This Row],[Current Location]])","v":"Wafer - 300mmBromont - BMT"},"2020-03-23","Test Program 771","Test Part Number","Test Lot # 771"]
["Wafer - 300mm","SSU 15",{"$f":"-Inventory_Table[[#This Row],[Quantity In]]","v":-1},"Bromont - BMT",1,{"$f":"_xlfn.CONCAT(Inventory_Table[[#This Row],[Form Factor]],Inventory_Table[[#This Row],[Current Location]])","v":"Wafer - 300mmBromont - BMT"},"2020-03-23","Test Program 772","Test Part Number","Test Lot # 772"]
["Wafer - 300mm","SSU 16",{"$f":"-Inventory_Table[[#This Row],[Quantity In]]","v":-1},"Bromont - BMT",1,{"$f":"_xlfn.CONCAT(Inventory_Table[[#This Row],[Form Factor]],Inventory_Table[[#This Row],[Current Location]])","v":"Wafer - 300mmBromont - BMT"},"2020-03-23","Test Program 773","Test Part Number","Test Lot # 773"]
["Wafer - 300mm","SSU 17",{"$f":"-Inventory_Table[[#This Row],[Quantity In]]","v":-1},"Bromont - BMT",1,{"$f":"_xlfn.CONCAT(Inventory_Table[[#This Row],[Form Factor]],Inventory_Table[[#This Row],[Current Location]])","v":"Wafer - 300mmBromont - BMT"},"2020-03-23","Test Program 774","Test Part Number","Test Lot # 774"]
["Wafer - 300mm","SSU 18",{"$f":"-Inventory_Table[[#This Row],[Quantity In]]","v":-1},"Bromont - BMT",1,{"$f":"_xlfn.CONCAT(Inventory_Table[[#This Row],[Form Factor]],Inventory_Table[[#This Row],[Current Location]])","v":"Wafer - 300mmBromont - BMT"},"2020-03-23","Test Program 775","Test Part Number","Test Lot # 775"]
["Wafer - 300mm","SSU 01",{"$f":"-Inventory_Table[[#This Row],[Quantity In]]","v":-1},"Bromont - BMT",1,{"$f":"_xlfn.CONCAT(Inventory_Table[[#This Row],[Form Factor]],Inventory_Table[[#This Row],[Current Location]])","v":"Wafer - 300mmBromont - BMT"},"2020-03-23","Test Program 776","Test Part Number","Test Lot # 776"]
["Wafer - 300mm","SSU 02",{"$f":"-Inventory_Table[[#This Row],[Quantity In]]","v":-1},"Bromont - BMT",1,{"$f":"_xlfn.CONCAT(Inventory_Table[[#This Row],[Form Factor]],Inventory_Table[[#This Row],[Current Location]])","v":"Wafer - 300mmBromont - BMT"},"2020-03-23","Test Program 777","Test Part Number","Test Lot # 777"]
["Wafer - 300mm","SSU 03",{"$f":"-Inventory_Table[[#This Row],[Quantity In]]","v":-1},"Bromont - BMT",1,{"$f":"_xlfn.CONCAT(Inventory_Table[[#This Row],[Form Factor]],Inventory_Table[[#This Row],[Current Location]])","v":"Wafer - 300mmBromont - BMT"},"2020-03-23","Test Program 778","Test Part Number","Test Lot # 778"]
["Wafer - 300mm","SSU 04",{"$f":"-Inventory_Table[[#This Row],[Quantity In]]","v":-1},"Bromont - BMT",1,{"$f":"_xlfn.CONCAT(Inventory_Table[[#This Row],[Form Factor]],Inventory_Table[[#This Row],[Current Location]])","v":"Wafer - 300mmBromont - BMT"},"2020-03-23","Test Program 779","Test Part Number","Test Lot # 779"]
["Wafer - 300mm","SSU 05",{"$f":"-Inventory_Table[[#This Row],[Quantity In]]","v":-1},"Bromont - BMT",1,{"$f":"_xlfn.CONCAT(Inventory_Table[[#This Row],[Form Factor]],Inventory_Table[[#This Row],[Current Location]])","v":"Wafer - 300mmBromont - BMT"},"2020-03-23","Test Program 780","Test Part Number","Test Lot # 780"]
["Wafer - 300mm","SSU 06",{"$f":"-Inventory_Table[[#This Row],[Quantity In]]","v":-1},"Bromont - BMT",1,{"$f":"_xlfn.CONCAT(Inventory_Table[[#This Row],[Form Factor]],Inventory_Table[[#This Row],[Current Location]])","v":"Wafer - 300mmBromont - BMT"},"2020-03-23","Test Program 781","Test Part Number","Test Lot # 781"]
["Wafer - 300mm","SSU 07",{"$f":"-Inventory_Table[[#This Row],[Quantity In]]","v":-1},"Bromont - BMT",1,{"$f":"_xlfn.CONCAT(Inventory_Table[[#This Row],[Form Factor]],Inventory_Table[[#This Row],[Current Location]])","v":"Wafer - 300mmBromont - BMT"},"2020-03-23","Test Program 782","Test Part Number","Test Lot # 782"]
["Wafer - 300mm","SSU 08",{"$f":"-Inventory_Table[[#This Row],[Quantity In]]","v":-1},"Bromont - BMT",1,{"$f":"_xlfn.CONCAT(Inventory_Table[[#This Row],[Form Factor]],Inventory_Table[[#This Row],[Current Location]])","v":"Wafer - 300mmBromont - BMT"},"2020-03-23","Test Program 783","Test Part Number","Test Lot # 783"]
["Wafer - 300mm","SSU 09",{"$f":"-Inventory_Table[[#This Row],[Quantity In]]","v":-1},"Bromont - BMT",1,{"$f":"_xlfn.CONCAT(Inventory_Table[[#This Row],[Form Factor]],Inventory_Table[[#This Row],[Current Location]])","v":"Wafer - 300mmBromont - BMT"},"2020-03-23","Test Program 784","Test Part Number","Test Lot # 784"]
["Wafer - 300mm","SSU 10",{"$f":"-Inventory_Table[[#This Row],[Quantity In]]","v":-1},"Bromont - BMT",1,{"$f":"_xlfn.CONCAT(Inventory_Table[[#This Row],[Form Factor]],Inventory_Table[[#This Row],[Current Location]])","v":"Wafer - 300mmBromont - BMT"},"2020-03-23","Test Program 785","Test Part Number","Test Lot # 785"]
["Module","SSU 11",{"$f":"-Inventory_Table[[#This Row],[Quantity In]]","v":-434},"Bromont - BMT",434,{"$f":"_xlfn.CONCAT(Inventory_Table[[#This Row],[Form Factor]],Inventory_Table[[#This Row],[Current Location]])","v":"ModuleBromont - BMT"},"2020-03-24","Test Program 786","Test Part Number","Test Lot # 786"]
["Module","SSU 12",{"$f":"-Inventory_Table[[#This Row],[Quantity In]]","v":-262},"Bromont - BMT",262,{"$f":"_xlfn.CONCAT(Inventory_Table[[#This Row],[Form Factor]],Inventory_Table[[#This Row],[Current Location]])","v":"ModuleBromont - BMT"},"2020-03-24","Test Program 787","Test Part Number","Test Lot # 787"]
["Module","SSU 13",{"$f":"-Inventory_Table[[#This Row],[Quantity In]]","v":-42},"Bromont - BMT",42,{"$f":"_xlfn.CONCAT(Inventory_Table[[#This Row],[Form Factor]],Inventory_Table[[#This Row],[Current Location]])","v":"ModuleBromont - BMT"},"2020-03-24","Test Program 788","Test Part Number","Test Lot # 788"]
["Module","SSU 14",{"$f":"-Inventory_Table[[#This Row],[Quantity In]]","v":-433},"Bromont - BMT",433,{"$f":"_xlfn.CONCAT(Inventory_Table[[#This Row],[Form Factor]],Inventory_Table[[#This Row],[Current Location]])","v":"ModuleBromont - BMT"},"2020-03-24","Test Program 789","Test Part Number","Test Lot # 789"]
["Module","SSU 15",{"$f":"-Inventory_Table[[#This Row],[Quantity In]]","v":-434},"Bromont - BMT",434,{"$f":"_xlfn.CONCAT(Inventory_Table[[#This Row],[Form Factor]],Inventory_Table[[#This Row],[Current Location]])","v":"ModuleBromont - BMT"},"2020-03-24","Test Program 790","Test Part Number","Test Lot # 790"]
["Wafer - 200mm","SSU 02",{"$f":"-Inventory_Table[[#This Row],[Quantity In]]","v":-1},"SSU 07",1,{"$f":"_xlfn.CONCAT(Inventory_Table[[#This Row],[Form Factor]],Inventory_Table[[#This Row],[Current Location]])","v":"Wafer - 200mmSSU 07"},"2020-03-24","Test Program 795","Test Part Number","Test Lot # 795"]
["Wafer - 200mm","SSU 03",{"$f":"-Inventory_Table[[#This Row],[Quantity In]]","v":-1},"SSU 07",1,{"$f":"_xlfn.CONCAT(Inventory_Table[[#This Row],[Form Factor]],Inventory_Table[[#This Row],[Current Location]])","v":"Wafer - 200mmSSU 07"},"2020-03-24","Test Program 796","Test Part Number","Test Lot # 796"]
["Wafer - 200mm","SSU 04",{"$f":"-Inventory_Table[[#This Row],[Quantity In]]","v":-1},"SSU 07",1,{"$f":"_xlfn.CONCAT(Inventory_Table[[#This Row],[Form Factor]],Inventory_Table[[#This Row],[Current Location]])","v":"Wafer - 200mmSSU 07"},"2020-03-24","Test Program 797","Test Part Number","Test Lot # 797"]
["Wafer - 200mm","SSU 05",{"$f":"-Inventory_Table[[#This Row],[Quantity In]]","v":-1},"SSU 07",1,{"$f":"_xlfn.CONCAT(Inventory_Table[[#This Row],[Form Factor]],Inventory_Table[[#This Row],[Current Location]])","v":"Wafer - 200mmSSU 07"},"2020-03-24","Test Program 798","Test Part Number","Test Lot # 798"]
["Wafer - 200mm","SSU 06",{"$f":"-Inventory_Table[[#This Row],[Quantity In]]","v":-1},"SSU 07",1,{"$f":"_xlfn.CONCAT(Inventory_Table[[#This Row],[Form Factor]],Inventory_Table[[#This Row],[Current Location]])","v":"Wafer - 200mmSSU 07"},"2020-03-24","Test Program 799","Test Part Number","Test Lot # 799"]
["Wafer - 200mm","SSU 07",{"$f":"-Inventory_Table[[#This Row],[Quantity In]]","v":-1},"SSU 07",1,{"$f":"_xlfn.CONCAT(Inventory_Table[[#This Row],[Form Factor]],Inventory_Table[[#This Row],[Current Location]])","v":"Wafer - 200mmSSU 07"},"2020-03-24","Test Program 800","Test Part Number","Test Lot # 800"]
["Wafer - 200mm","SSU 08",{"$f":"-Inventory_Table[[#This Row],[Quantity In]]","v":-1},"SSU 07",1,{"$f":"_xlfn.CONCAT(Inventory_Table[[#This Row],[Form Factor]],Inventory_Table[[#This Row],[Current Location]])","v":"Wafer - 200mmSSU 07"},"2020-03-24","Test Program 801","Test Part Number","Test Lot # 801"]
["Wafer - 200mm","SSU 09",{"$f":"-Inventory_Table[[#This Row],[Quantity In]]","v":-1},"SSU 07",1,{"$f":"_xlfn.CONCAT(Inventory_Table[[#This Row],[Form Factor]],Inventory_Table[[#This Row],[Current Location]])","v":"Wafer - 200mmSSU 07"},"2020-03-24","Test Program 802","Test Part Number","Test Lot # 802"]
["Wafer - 200mm","SSU 10",{"$f":"-Inventory_Table[[#This Row],[Quantity In]]","v":-1},"SSU 07",1,{"$f":"_xlfn.CONCAT(Inventory_Table[[#This Row],[Form Factor]],Inventory_Table[[#This Row],[Current Location]])","v":"Wafer - 200mmSSU 07"},"2020-03-24","Test Program 803","Test Part Number","Test Lot # 803"]
["Wafer - 200mm","SSU 11",{"$f":"-Inventory_Table[[#This Row],[Quantity In]]","v":-1},"SSU 07",1,{"$f":"_xlfn.CONCAT(Inventory_Table[[#This Row],[Form Factor]],Inventory_Table[[#This Row],[Current Location]])","v":"Wafer - 200mmSSU 07"},"2020-03-24","Test Program 804","Test Part Number","Test Lot # 804"]
["Wafer - 200mm","SSU 12",{"$f":"-Inventory_Table[[#This Row],[Quantity In]]","v":-1},"SSU 07",1,{"$f":"_xlfn.CONCAT(Inventory_Table[[#This Row],[Form Factor]],Inventory_Table[[#This Row],[Current Location]])","v":"Wafer - 200mmSSU 07"},"2020-03-24","Test Program 805","Test Part Number","Test Lot # 805"]
["Wafer - 200mm","SSU 13",{"$f":"-Inventory_Table[[#This Row],[Quantity In]]","v":-1},"SSU 07",1,{"$f":"_xlfn.CONCAT(Inventory_Table[[#This Row],[Form Factor]],Inventory_Table[[#This Row],[Current Location]])","v":"Wafer - 200mmSSU 07"},"2020-03-24","Test Program 806","Test Part Number","Test Lot # 806"]
["Wafer - 200mm","SSU 14",{"$f":"-Inventory_Table[[#This Row],[Quantity In]]","v":-1},"SSU 07",1,{"$f":"_xlfn.CONCAT(Inventory_Table[[#This Row],[Form Factor]],Inventory_Table[[#This Row],[Current Location]])","v":"Wafer - 200mmSSU 07"},"2020-03-24","Test Program 807","Test Part Number","Test Lot # 807"]
["Wafer - 200mm","SSU 15",{"$f":"-Inventory_Table[[#This Row],[Quantity In]]","v":-1},"SSU 07",1,{"$f":"_xlfn.CONCAT(Inventory_Table[[#This Row],[Form Factor]],Inventory_Table[[#This Row],[Current Location]])","v":"Wafer - 200mmSSU 07"},"2020-03-24","Test Program 808","Test Part Number","Test Lot # 808"]
["Wafer - 200mm","SSU 16",{"$f":"-Inventory_Table[[#This Row],[Quantity In]]","v":-1},"SSU 07",1,{"$f":"_xlfn.CONCAT(Inventory_Table[[#This Row],[Form Factor]],Inventory_Table[[#This Row],[Current Location]])","v":"Wafer - 200mmSSU 07"},"2020-03-24","Test Program 809","Test Part Number","Test Lot # 809"]
["Wafer - 200mm","SSU 17",{"$f":"-Inventory_Table[[#This Row],[Quantity In]]","v":-1},"SSU 07",1,{"$f":"_xlfn.CONCAT(Inventory_Table[[#This Row],[Form Factor]],Inventory_Table[[#This Row],[Current Location]])","v":"Wafer - 200mmSSU 07"},"2020-03-24","Test Program 810","Test Part Number","Test Lot # 810"]
["Wafer - 200mm","SSU 17",{"$f":"-Inventory_Table[[#This Row],[Quantity In]]","v":-1},"SSU 07",1,{"$f":"_xlfn.CONCAT(Inventory_Table[[#This Row],[Form Factor]],Inventory_Table[[#This Row],[Current Location]])","v":"Wafer - 200mmSSU 07"},"2020-03-24","Test Program 811","Test Part Number","Test Lot # 811"]
["Wafer - 200mm","SSU 18",{"$f":"-Inventory_Table[[#This Row],[Quantity In]]","v":-1},"SSU 07",1,{"$f":"_xlfn.CONCAT(Inventory_Table[[#This Row],[Form Factor]],Inventory_Table[[#This Row],[Current Location]])","v":"Wafer - 200mmSSU 07"},"2020-03-24","Test Program 812","Test Part Number","Test Lot # 812"]
["Wafer - 200mm","SSU 01",{"$f":"-Inventory_Table[[#This Row],[Quantity In]]","v":-1},"SSU 07",1,{"$f":"_xlfn.CONCAT(Inventory_Table[[#This Row],[Form Factor]],Inventory_Table[[#This Row],[Current Location]])","v":"Wafer - 200mmSSU 07"},"2020-03-24","Test Program 813","Test Part Number","Test Lot # 813"]
["Wafer - 200mm","SSU 02",{"$f":"-Inventory_Table[[#This Row],[Quantity In]]","v":-1},"SSU 07",1,{"$f":"_xlfn.CONCAT(Inventory_Table[[#This Row],[Form Factor]],Inventory_Table[[#This Row],[Current Location]])","v":"Wafer - 200mmSSU 07"},"2020-03-24","Test Program 814","Test Part Number","Test Lot # 814"]
["Wafer - 200mm","SSU 03",{"$f":"-Inventory_Table[[#This Row],[Quantity In]]","v":-1},"SSU 07",1,{"$f":"_xlfn.CONCAT(Inventory_Table[[#This Row],[Form Factor]],Inventory_Table[[#This Row],[Current Location]])","v":"Wafer - 200mmSSU 07"},"2020-03-24","Test Program 815","Test Part Number","Test Lot # 815"]
["Wafer - 200mm","SSU 04",{"$f":"-Inventory_Table[[#This Row],[Quantity In]]","v":-1},"SSU 07",1,{"$f":"_xlfn.CONCAT(Inventory_Table[[#This Row],[Form Factor]],Inventory_Table[[#This Row],[Current Location]])","v":"Wafer - 200mmSSU 07"},"2020-03-24","Test Program 816","Test Part Number","Test Lot # 816"]
["Wafer - 200mm","SSU 05",{"$f":"-Inventory_Table[[#This Row],[Quantity In]]","v":-1},"SSU 07",1,{"$f":"_xlfn.CONCAT(Inventory_Table[[#This Row],[Form Factor]],Inventory_Table[[#This Row],[Current Location]])","v":"Wafer - 200mmSSU 07"},"2020-03-24","Test Program 817","Test Part Number","Test Lot # 817"]
["Wafer - 200mm","SSU 06",{"$f":"-Inventory_Table[[#This Row],[Quantity In]]","v":-1},"SSU 07",1,{"$f":"_xlfn.CONCAT(Inventory_Table[[#This Row],[Form Factor]],Inventory_Table[[#This Row],[Current Location]])","v":"Wafer - 200mmSSU 07"},"2020-03-24","Test Program 818","Test Part Number","Test Lot # 818"]
["Wafer - 300mm","SSU 07",{"$f":"-Inventory_Table[[#This Row],[Quantity In]]","v":-1},"SSU 07",1,{"$f":"_xlfn.CONCAT(Inventory_Table[[#This Row],[Form Factor]],Inventory_Table[[#This Row],[Current Location]])","v":"Wafer - 300mmSSU 07"},"2020-03-24","Test Program 819","Test Part Number","Test Lot # 819"]
["Wafer - 200mm","SSU 08",{"$f":"-Inventory_Table[[#This Row],[Quantity In]]","v":-1},"SSU 07",1,{"$f":"_xlfn.CONCAT(Inventory_Table[[#This Row],[Form Factor]],Inventory_Table[[#This Row],[Current Location]])","v":"Wafer - 200mmSSU 07"},"2020-03-24","Test Program 820","Test Part Number","Test Lot # 820"]
["Wafer - 200mm","SSU 09",{"$f":"-Inventory_Table[[#This Row],[Quantity In]]","v":-1},"SSU 07",1,{"$f":"_xlfn.CONCAT(Inventory_Table[[#This Row],[Form Factor]],Inventory_Table[[#This Row],[Current Location]])","v":"Wafer - 200mmSSU 07"},"2020-03-24","Test Program 821","Test Part Number","Test Lot # 821"]
["Wafer - 300mm","SSU 10",{"$f":"-Inventory_Table[[#This Row],[Quantity In]]","v":-1},"SSU 07",1,{"$f":"_xlfn.CONCAT(Inventory_Table[[#This Row],[Form Factor]],Inventory_Table[[#This Row],[Current Location]])","v":"Wafer - 300mmSSU 07"},"2020-03-24","Test Program 822","Test Part Number","Test Lot # 822"]
["Wafer - 300mm","SSU 11",{"$f":"-Inventory_Table[[#This Row],[Quantity In]]","v":-1},"SSU 07",1,{"$f":"_xlfn.CONCAT(Inventory_Table[[#This Row],[Form Factor]],Inventory_Table[[#This Row],[Current Location]])","v":"Wafer - 300mmSSU 07"},"2020-03-24","Test Program 823","Test Part Number","Test Lot # 823"]
["Wafer - 300mm","SSU 12",{"$f":"-Inventory_Table[[#This Row],[Quantity In]]","v":-1},"SSU 07",1,{"$f":"_xlfn.CONCAT(Inventory_Table[[#This Row],[Form Factor]],Inventory_Table[[#This Row],[Current Location]])","v":"Wafer - 300mmSSU 07"},"2020-03-24","Test Program 824","Test Part Number","Test Lot # 824"]
["Wafer - 300mm","SSU 13",{"$f":"-Inventory_Table[[#This Row],[Quantity In]]","v":-1},"SSU 07",1,{"$f":"_xlfn.CONCAT(Inventory_Table[[#This Row],[Form Factor]],Inventory_Table[[#This Row],[Current Location]])","v":"Wafer - 300mmSSU 07"},"2020-03-24","Test Program 825","Test Part Number","Test Lot # 825"]
["Wafer - 300mm","SSU 14",{"$f":"-Inventory_Table[[#This Row],[Quantity In]]","v":-1},"SSU 07",1,{"$f":"_xlfn.CONCAT(Inventory_Table[[#This Row],[Form Factor]],Inventory_Table[[#This Row],[Current Location]])","v":"Wafer - 300mmSSU 07"},"2020-03-24","Test Program 826","Test Part Number","Test Lot # 826"]
["Wafer - 300mm","SSU 15",{"$f":"-Inventory_Table[[#This Row],[Quantity In]]","v":-1},"SSU 07",1,{"$f":"_xlfn.CONCAT(Inventory_Table[[#This Row],[Form Factor]],Inventory_Table[[#This Row],[Current Location]])","v":"Wafer - 300mmSSU 07"},"2020-03-24","Test Program 827","Test Part Number","Test Lot # 827"]
["Wafer - 300mm","SSU 16",{"$f":"-Inventory_Table[[#This Row],[Quantity In]]","v":-1},"SSU 07",1,{"$f":"_xlfn.CONCAT(Inventory_Table[[#This Row],[Form Factor]],Inventory_Table[[#This Row],[Current Location]])","v":"Wafer - 300mmSSU 07"},"2020-03-24","Test Program 828","Test Part Number","Test Lot # 828"]
["Wafer - 300mm","SSU 17",{"$f":"-Inventory_Table[[#This Row],[Quantity In]]","v":-1},"SSU 07",1,{"$f":"_xlfn.CONCAT(Inventory_Table[[#This Row],[Form Factor]],Inventory_Table[[#This Row],[Current Location]])","v":"Wafer - 300mmSSU 07"},"2020-03-24","Test Program 829","Test Part Number","Test Lot # 829"]
["Wafer - 300mm","SSU 18",{"$f":"-Inventory_Table[[#This Row],[Quantity In]]","v":-1},"SSU 07",1,{"$f":"_xlfn.CONCAT(Inventory_Table[[#This Row],[Form Factor]],Inventory_Table[[#This Row],[Current Location]])","v":"Wafer - 300mmSSU 07"},"2020-03-24","Test Program 830","Test Part Number","Test Lot # 830"]
["Wafer - 300mm","SSU 01",{"$f":"-Inventory_Table[[#This Row],[Quantity In]]","v":-1},"SSU 07",1,{"$f":"_xlfn.CONCAT(Inventory_Table[[#This Row],[Form Factor]],Inventory_Table[[#This Row],[Current Location]])","v":"Wafer - 300mmSSU 07"},"2020-03-24","Test Program 831","Test Part Number","Test Lot # 831"]
["Wafer - 300mm","SSU 02",{"$f":"-Inventory_Table[[#This Row],[Quantity In]]","v":-1},"SSU 07",1,{"$f":"_xlfn.CONCAT(Inventory_Table[[#This Row],[Form Factor]],Inventory_Table[[#This Row],[Current Location]])","v":"Wafer - 300mmSSU 07"},"2020-03-24","Test Program 832","Test Part Number","Test Lot # 832"]
["Wafer - 300mm","SSU 03",{"$f":"-Inventory_Table[[#This Row],[Quantity In]]","v":-1},"SSU 07",1,{"$f":"_xlfn.CONCAT(Inventory_Table[[#This Row],[Form Factor]],Inventory_Table[[#This Row],[Current Location]])","v":"Wafer - 300mmSSU 07"},"2020-03-24","Test Program 833","Test Part Number","Test Lot # 833"]
["Wafer - 300mm","SSU 04",{"$f":"-Inventory_Table[[#This Row],[Quantity In]]","v":-1},"SSU 07",1,{"$f":"_xlfn.CONCAT(Inventory_Table[[#This Row],[Form Factor]],Inventory_Table[[#This Row],[Current Location]])","v":"Wafer - 300mmSSU 07"},"2020-03-24","Test Program 834","Test Part Number","Test Lot # 834"]
["Wafer - 300mm","SSU 05",{"$f":"-Inventory_Table[[#This Row],[Quantity In]]","v":-1},"SSU 07",1,{"$f":"_xlfn.CONCAT(Inventory_Table[[#This Row],[Form Factor]],Inventory_Table[[#This Row],[Current Location]])","v":"Wafer - 300mmSSU 07"},"2020-03-24","Test Program 835","Test Part Number","Test Lot # 835"]
["Wafer - 300mm","SSU 06",{"$f":"-Inventory_Table[[#This Row],[Quantity In]]","v":-1},"SSU 07",1,{"$f":"_xlfn.CONCAT(Inventory_Table[[#This Row],[Form Factor]],Inventory_Table[[#This Row],[Current Location]])","v":"Wafer - 300mmSSU 07"},"2020-03-24","Test Program 836","Test Part Number","Test Lot # 836"]
["Wafer - 300mm","SSU 07",{"$f":"-Inventory_Table[[#This Row],[Quantity In]]","v":-1},"SSU 07",1,{"$f":"_xlfn.CONCAT(Inventory_Table[[#This Row],[Form Factor]],Inventory_Table[[#This Row],[Current Location]])","v":"Wafer - 300mmSSU 07"},"2020-03-24","Test Program 837","Test Part Number","Test Lot # 837"]
["Wafer - 300mm","SSU 08",{"$f":"-Inventory_Table[[#This Row],[Quantity In]]","v":-1},"SSU 07",1,{"$f":"_xlfn.CONCAT(Inventory_Table[[#This Row],[Form Factor]],Inventory_Table[[#This Row],[Current Location]])","v":"Wafer - 300mmSSU 07"},"2020-03-24","Test Program 838","Test Part Number","Test Lot # 838"]
["Wafer - 300mm","SSU 09",{"$f":"-Inventory_Table[[#This Row],[Quantity In]]","v":-1},"SSU 07",1,{"$f":"_xlfn.CONCAT(Inventory_Table[[#This Row],[Form Factor]],Inventory_Table[[#This Row],[Current Location]])","v":"Wafer - 300mmSSU 07"},"2020-03-24","Test Program 839","Test Part Number","Test Lot # 839"]
["Wafer - 300mm","SSU 10",{"$f":"-Inventory_Table[[#This Row],[Quantity In]]","v":-1},"SSU 07",1,{"$f":"_xlfn.CONCAT(Inventory_Table[[#This Row],[Form Factor]],Inventory_Table[[#This Row],[Current Location]])","v":"Wafer - 300mmSSU 07"},"2020-03-24","Test Program 840","Test Part Number","Test Lot # 840"]
["Wafer - 300mm","SSU 11",{"$f":"-Inventory_Table[[#This Row],[Quantity In]]","v":-1},"SSU 07",1,{"$f":"_xlfn.CONCAT(Inventory_Table[[#This Row],[Form Factor]],Inventory_Table[[#This Row],[Current Location]])","v":"Wafer - 300mmSSU 07"},"2020-03-24","Test Program 841","Test Part Number","Test Lot # 841"]
["Wafer - 300mm","SSU 12",{"$f":"-Inventory_Table[[#This Row],[Quantity In]]","v":-1},"SSU 07",1,{"$f":"_xlfn.CONCAT(Inventory_Table[[#This Row],[Form Factor]],Inventory_Table[[#This Row],[Current Location]])","v":"Wafer - 300mmSSU 07"},"2020-03-24","Test Program 842","Test Part Number","Test Lot # 842"]
["Wafer - 300mm","SSU 13",{"$f":"-Inventory_Table[[#This Row],[Quantity In]]","v":-1},"SSU 07",1,{"$f":"_xlfn.CONCAT(Inventory_Table[[#This Row],[Form Factor]],Inventory_Table[[#This Row],[Current Location]])","v":"Wafer - 300mmSSU 07"},"2020-03-24","Test Program 843","Test Part Number","Test Lot # 843"]
["Wafer - 300mm","SSU 14",{"$f":"-Inventory_Table[[#This Row],[Quantity In]]","v":-1},"SSU 07",1,{"$f":"_xlfn.CONCAT(Inventory_Table[[#This Row],[Form Factor]],Inventory_Table[[#This Row],[Current Location]])","v":"Wafer - 300mmSSU 07"},"2020-03-24","Test Program 844","Test Part Number","Test Lot # 844"]
["Wafer - 300mm","SSU 04",{"$f":"-Inventory_Table[[#This Row],[Quantity In]]","v":-1},"SSU 07",1,{"$f":"_xlfn.CONCAT(Inventory_Table[[#This Row],[Form Factor]],Inventory_Table[[#This Row],[Current Location]])","v":"Wafer - 300mmSSU 07"},"2020-03-24","Test Program 852","Test Part Number","Test Lot # 852"]
["Wafer - 300mm","SSU 05",{"$f":"-Inventory_Table[[#This Row],[Quantity In]]","v":-1},"SSU 07",1,{"$f":"_xlfn.CONCAT(Inventory_Table[[#This Row],[Form Factor]],Inventory_Table[[#This Row],[Current Location]])","v":"Wafer - 300mmSSU 07"},"2020-03-24","Test Program 853","Test Part Number","Test Lot # 853"]
["Wafer - 300mm","SSU 06",{"$f":"-Inventory_Table[[#This Row],[Quantity In]]","v":-1},"SSU 07",1,{"$f":"_xlfn.CONCAT(Inventory_Table[[#This Row],[Form Factor]],Inventory_Table[[#This Row],[Current Location]])","v":"Wafer - 300mmSSU 07"},"2020-03-24","Test Program 854","Test Part Number","Test Lot # 854"]
["Wafer - 300mm","SSU 07",{"$f":"-Inventory_Table[[#This Row],[Quantity In]]","v":-1},"SSU 07",1,{"$f":"_xlfn.CONCAT(Inventory_Table[[#This Row],[Form Factor]],Inventory_Table[[#This Row],[Current Location]])","v":"Wafer - 300mmSSU 07"},"2020-03-24","Test Program 855","Test Part Number","Test Lot # 855"]
["Wafer - 300mm","SSU 08",{"$f":"-Inventory_Table[[#This Row],[Quantity In]]","v":-1},"SSU 07",1,{"$f":"_xlfn.CONCAT(Inventory_Table[[#This Row],[Form Factor]],Inventory_Table[[#This Row],[Current Location]])","v":"Wafer - 300mmSSU 07"},"2020-03-24","Test Program 856","Test Part Number","Test Lot # 856"]
["Wafer - 300mm","SSU 09",{"$f":"-Inventory_Table[[#This Row],[Quantity In]]","v":-1},"SSU 07",1,{"$f":"_xlfn.CONCAT(Inventory_Table[[#This Row],[Form Factor]],Inventory_Table[[#This Row],[Current Location]])","v":"Wafer - 300mmSSU 07"},"2020-03-24","Test Program 857","Test Part Number","Test Lot # 857"]
["Wafer - 300mm","SSU 10",{"$f":"-Inventory_Table[[#This Row],[Quantity In]]","v":-1},"SSU 07",1,{"$f":"_xlfn.CONCAT(Inventory_Table[[#This Row],[Form Factor]],Inventory_Table[[#This Row],[Current Location]])","v":"Wafer - 300mmSSU 07"},"2020-03-24","Test Program 858","Test Part Number","Test Lot # 858"]
["Wafer - 300mm","SSU 11",{"$f":"-Inventory_Table[[#This Row],[Quantity In]]","v":-1},"SSU 07",1,{"$f":"_xlfn.CONCAT(Inventory_Table[[#This Row],[Form Factor]],Inventory_Table[[#This Row],[Current Location]])","v":"Wafer - 300mmSSU 07"},"2020-03-24","Test Program 859","Test Part Number","Test Lot # 859"]
["Wafer - 300mm","SSU 12",{"$f":"-Inventory_Table[[#This Row],[Quantity In]]","v":-1},"SSU 07",1,{"$f":"_xlfn.CONCAT(Inventory_Table[[#This Row],[Form Factor]],Inventory_Table[[#This Row],[Current Location]])","v":"Wafer - 300mmSSU 07"},"2020-03-24","Test Program 860","Test Part Number","Test Lot # 860"]
["Wafer - 300mm","SSU 18",{"$f":"-Inventory_Table[[#This Row],[Quantity In]]","v":-1},"SSU 07",1,{"$f":"_xlfn.CONCAT(Inventory_Table[[#This Row],[Form Factor]],Inventory_Table[[#This Row],[Current Location]])","v":"Wafer - 300mmSSU 07"},"2020-03-24","Test Program 861","Test Part Number","Test Lot # 861"]
["Wafer - 300mm","SSU 01",{"$f":"-Inventory_Table[[#This Row],[Quantity In]]","v":-1},"SSU 07",1,{"$f":"_xlfn.CONCAT(Inventory_Table[[#This Row],[Form Factor]],Inventory_Table[[#This Row],[Current Location]])","v":"Wafer - 300mmSSU 07"},"2020-03-24","Test Program 862","Test Part Number","Test Lot # 862"]
["Wafer - 300mm","SSU 02",{"$f":"-Inventory_Table[[#This Row],[Quantity In]]","v":-1},"SSU 07",1,{"$f":"_xlfn.CONCAT(Inventory_Table[[#This Row],[Form Factor]],Inventory_Table[[#This Row],[Current Location]])","v":"Wafer - 300mmSSU 07"},"2020-03-24","Test Program 863","Test Part Number","Test Lot # 863"]
["Wafer - 300mm","SSU 03",{"$f":"-Inventory_Table[[#This Row],[Quantity In]]","v":-1},"SSU 07",1,{"$f":"_xlfn.CONCAT(Inventory_Table[[#This Row],[Form Factor]],Inventory_Table[[#This Row],[Current Location]])","v":"Wafer - 300mmSSU 07"},"2020-03-24","Test Program 864","Test Part Number","Test Lot # 864"]
["Wafer - 300mm","SSU 04",{"$f":"-Inventory_Table[[#This Row],[Quantity In]]","v":-1},"SSU 07",1,{"$f":"_xlfn.CONCAT(Inventory_Table[[#This Row],[Form Factor]],Inventory_Table[[#This Row],[Current Location]])","v":"Wafer - 300mmSSU 07"},"2020-03-24","Test Program 865","Test Part Number","Test Lot # 865"]
["Wafer - 300mm","SSU 05",{"$f":"-Inventory_Table[[#This Row],[Quantity In]]","v":-1},"SSU 07",1,{"$f":"_xlfn.CONCAT(Inventory_Table[[#This Row],[Form Factor]],Inventory_Table[[#This Row],[Current Location]])","v":"Wafer - 300mmSSU 07"},"2020-03-24","Test Program 866","Test Part Number","Test Lot # 866"]
["Wafer - 300mm","SSU 06",{"$f":"-Inventory_Table[[#This Row],[Quantity In]]","v":-1},"SSU 07",1,{"$f":"_xlfn.CONCAT(Inventory_Table[[#This Row],[Form Factor]],Inventory_Table[[#This Row],[Current Location]])","v":"Wafer - 300mmSSU 07"},"2020-03-24","Test Program 867","Test Part Number","Test Lot # 867"]
["Wafer - 300mm","SSU 07",{"$f":"-Inventory_Table[[#This Row],[Quantity In]]","v":-1},"SSU 07",1,{"$f":"_xlfn.CONCAT(Inventory_Table[[#This Row],[Form Factor]],Inventory_Table[[#This Row],[Current Location]])","v":"Wafer - 300mmSSU 07"},"2020-03-24","Test Program 868","Test Part Number","Test Lot # 868"]
["Wafer - 300mm","SSU 08",{"$f":"-Inventory_Table[[#This Row],[Quantity In]]","v":-1},"SSU 07",1,{"$f":"_xlfn.CONCAT(Inventory_Table[[#This Row],[Form Factor]],Inventory_Table[[#This Row],[Current Location]])","v":"Wafer - 300mmSSU 07"},"2020-03-24","Test Program 869","Test Part Number","Test Lot # 869"]
["Wafer - 300mm","SSU 09",{"$f":"-Inventory_Table[[#This Row],[Quantity In]]","v":-1},"SSU 07",1,{"$f":"_xlfn.CONCAT(Inventory_Table[[#This Row],[Form Factor]],Inventory_Table[[#This Row],[Current Location]])","v":"Wafer - 300mmSSU 07"},"2020-03-24","Test Program 870","Test Part Number","Test Lot # 870"]
["Wafer - 300mm","SSU 10",{"$f":"-Inventory_Table[[#This Row],[Quantity In]]","v":-1},"SSU 07",1,{"$f":"_xlfn.CONCAT(Inventory_Table[[#This Row],[Form Factor]],Inventory_Table[[#This Row],[Current Location]])","v":"Wafer - 300mmSSU 07"},"2020-03-24","Test Program 871","Test Part Number","Test Lot # 871"]
["Wafer - 300mm","SSU 11",{"$f":"-Inventory_Table[[#This Row],[Quantity In]]","v":-1},"SSU 07",1,{"$f":"_xlfn.CONCAT(Inventory_Table[[#This Row],[Form Factor]],Inventory_Table[[#This Row],[Current Location]])","v":"Wafer - 300mmSSU 07"},"2020-03-24","Test Program 872","Test Part Number","Test Lot # 872"]
["Wafer - 300mm","SSU 12",{"$f":"-Inventory_Table[[#This Row],[Quantity In]]","v":-1},"SSU 07",1,{"$f":"_xlfn.CONCAT(Inventory_Table[[#This Row],[Form Factor]],Inventory_Table[[#This Row],[Current Location]])","v":"Wafer - 300mmSSU 07"},"2020-03-24","Test Program 873","Test Part Number","Test Lot # 873"]
["Wafer - 300mm","SSU 15",{"$f":"-Inventory_Table[[#This Row],[Quantity In]]","v":-1},"Bromont - BMT",1,{"$f":"_xlfn.CONCAT(Inventory_Table[[#This Row],[Form Factor]],Inventory_Table[[#This Row],[Current Location]])","v":"Wafer - 300mmBromont - BMT"},"2020-03-25","Test Program 845","Test Part Number","Test Lot # 845"]
["Wafer - 300mm","SSU 16",{"$f":"-Inventory_Table[[#This Row],[Quantity In]]","v":-1},"Bromont - BMT",1,{"$f":"_xlfn.CONCAT(Inventory_Table[[#This Row],[Form Factor]],Inventory_Table[[#This Row],[Current Location]])","v":"Wafer - 300mmBromont - BMT"},"2020-03-25","Test Program 846","Test Part Number","Test Lot # 846"]
["Wafer - 300mm","SSU 17",{"$f":"-Inventory_Table[[#This Row],[Quantity In]]","v":-1},"Bromont - BMT",1,{"$f":"_xlfn.CONCAT(Inventory_Table[[#This Row],[Form Factor]],Inventory_Table[[#This Row],[Current Location]])","v":"Wafer - 300mmBromont - BMT"},"2020-03-25","Test Program 847","Test Part Number","Test Lot # 847"]
["Wafer - 300mm","SSU 18",{"$f":"-Inventory_Table[[#This Row],[Quantity In]]","v":-1},"Bromont - BMT",1,{"$f":"_xlfn.CONCAT(Inventory_Table[[#This Row],[Form Factor]],Inventory_Table[[#This Row],[Current Location]])","v":"Wafer - 300mmBromont - BMT"},"2020-03-25","Test Program 848","Test Part Number","Test Lot # 848"]
["Wafer - 300mm","SSU 01",{"$f":"-Inventory_Table[[#This Row],[Quantity In]]","v":-1},"Bromont - BMT",1,{"$f":"_xlfn.CONCAT(Inventory_Table[[#This Row],[Form Factor]],Inventory_Table[[#This Row],[Current Location]])","v":"Wafer - 300mmBromont - BMT"},"2020-03-25","Test Program 849","Test Part Number","Test Lot # 849"]
["Wafer - 300mm","SSU 02",{"$f":"-Inventory_Table[[#This Row],[Quantity In]]","v":-1},"Bromont - BMT",1,{"$f":"_xlfn.CONCAT(Inventory_Table[[#This Row],[Form Factor]],Inventory_Table[[#This Row],[Current Location]])","v":"Wafer - 300mmBromont - BMT"},"2020-03-25","Test Program 850","Test Part Number","Test Lot # 850"]
["Wafer - 300mm","SSU 03",{"$f":"-Inventory_Table[[#This Row],[Quantity In]]","v":-1},"Bromont - BMT",1,{"$f":"_xlfn.CONCAT(Inventory_Table[[#This Row],[Form Factor]],Inventory_Table[[#This Row],[Current Location]])","v":"Wafer - 300mmBromont - BMT"},"2020-03-25","Test Program 851","Test Part Number","Test Lot # 851"]
["Module","SSU 13",{"$f":"-Inventory_Table[[#This Row],[Quantity In]]","v":-433},"Bromont - BMT",433,{"$f":"_xlfn.CONCAT(Inventory_Table[[#This Row],[Form Factor]],Inventory_Table[[#This Row],[Current Location]])","v":"ModuleBromont - BMT"},"2020-03-26","Test Program 874","Test Part Number","Test Lot # 874"]
["Module","SSU 14",{"$f":"-Inventory_Table[[#This Row],[Quantity In]]","v":-435},"Bromont - BMT",435,{"$f":"_xlfn.CONCAT(Inventory_Table[[#This Row],[Form Factor]],Inventory_Table[[#This Row],[Current Location]])","v":"ModuleBromont - BMT"},"2020-03-26","Test Program 875","Test Part Number","Test Lot # 875"]
["Module","SSU 15",{"$f":"-Inventory_Table[[#This Row],[Quantity In]]","v":-219},"Bromont - BMT",219,{"$f":"_xlfn.CONCAT(Inventory_Table[[#This Row],[Form Factor]],Inventory_Table[[#This Row],[Current Location]])","v":"ModuleBromont - BMT"},"2020-03-26","Test Program 876","Test Part Number","Test Lot # 876"]
["Module","SSU 16",{"$f":"-Inventory_Table[[#This Row],[Quantity In]]","v":-436},"Bromont - BMT",436,{"$f":"_xlfn.CONCAT(Inventory_Table[[#This Row],[Form Factor]],Inventory_Table[[#This Row],[Current Location]])","v":"ModuleBromont - BMT"},"2020-03-26","Test Program 877","Test Part Number","Test Lot # 877"]
["Module","SSU 17",{"$f":"-Inventory_Table[[#This Row],[Quantity In]]","v":-434},"Bromont - BMT",434,{"$f":"_xlfn.CONCAT(Inventory_Table[[#This Row],[Form Factor]],Inventory_Table[[#This Row],[Current Location]])","v":"ModuleBromont - BMT"},"2020-03-26","Test Program 878","Test Part Number","Test Lot # 878"]
["Module","SSU 17",{"$f":"-Inventory_Table[[#This Row],[Quantity In]]","v":-30},"Bromont - BMT",30,{"$f":"_xlfn.CONCAT(Inventory_Table[[#This Row],[Form Factor]],Inventory_Table[[#This Row],[Current Location]])","v":"ModuleBromont - BMT"},"2020-03-26","Test Program 879","Test Part Number","Test Lot # 879"]
["Wafer - 300mm","SSU 18",{"$f":"-Inventory_Table[[#This Row],[Quantity In]]","v":-1},"SSU 09",1,{"$f":"_xlfn.CONCAT(Inventory_Table[[#This Row],[Form Factor]],Inventory_Table[[#This Row],[Current Location]])","v":"Wafer - 300mmSSU 09"},"2020-03-26","Test Program 880","Test Part Number","Test Lot # 880"]
["Wafer - 300mm","SSU 01",{"$f":"-Inventory_Table[[#This Row],[Quantity In]]","v":-1},"SSU 09",1,{"$f":"_xlfn.CONCAT(Inventory_Table[[#This Row],[Form Factor]],Inventory_Table[[#This Row],[Current Location]])","v":"Wafer - 300mmSSU 09"},"2020-03-26","Test Program 881","Test Part Number","Test Lot # 881"]
["Wafer - 300mm","SSU 02",{"$f":"-Inventory_Table[[#This Row],[Quantity In]]","v":-1},"SSU 09",1,{"$f":"_xlfn.CONCAT(Inventory_Table[[#This Row],[Form Factor]],Inventory_Table[[#This Row],[Current Location]])","v":"Wafer - 300mmSSU 09"},"2020-03-26","Test Program 882","Test Part Number","Test Lot # 882"]
["Wafer - 300mm","SSU 03",{"$f":"-Inventory_Table[[#This Row],[Quantity In]]","v":-1},"SSU 09",1,{"$f":"_xlfn.CONCAT(Inventory_Table[[#This Row],[Form Factor]],Inventory_Table[[#This Row],[Current Location]])","v":"Wafer - 300mmSSU 09"},"2020-03-26","Test Program 883","Test Part Number","Test Lot # 883"]
["Wafer - 300mm","SSU 04",{"$f":"-Inventory_Table[[#This Row],[Quantity In]]","v":-1},"SSU 09",1,{"$f":"_xlfn.CONCAT(Inventory_Table[[#This Row],[Form Factor]],Inventory_Table[[#This Row],[Current Location]])","v":"Wafer - 300mmSSU 09"},"2020-03-26","Test Program 884","Test Part Number","Test Lot # 884"]
["Wafer - 300mm","SSU 05",{"$f":"-Inventory_Table[[#This Row],[Quantity In]]","v":-1},"SSU 09",1,{"$f":"_xlfn.CONCAT(Inventory_Table[[#This Row],[Form Factor]],Inventory_Table[[#This Row],[Current Location]])","v":"Wafer - 300mmSSU 09"},"2020-03-26","Test Program 885","Test Part Number","Test Lot # 885"]
["Wafer - 300mm","SSU 06",{"$f":"-Inventory_Table[[#This Row],[Quantity In]]","v":-1},"SSU 09",1,{"$f":"_xlfn.CONCAT(Inventory_Table[[#This Row],[Form Factor]],Inventory_Table[[#This Row],[Current Location]])","v":"Wafer - 300mmSSU 09"},"2020-03-26","Test Program 886","Test Part Number","Test Lot # 886"]
["Wafer - 300mm","SSU 07",{"$f":"-Inventory_Table[[#This Row],[Quantity In]]","v":-1},"SSU 09",1,{"$f":"_xlfn.CONCAT(Inventory_Table[[#This Row],[Form Factor]],Inventory_Table[[#This Row],[Current Location]])","v":"Wafer - 300mmSSU 09"},"2020-03-26","Test Program 887","Test Part Number","Test Lot # 887"]
["Wafer - 300mm","SSU 08",{"$f":"-Inventory_Table[[#This Row],[Quantity In]]","v":-1},"SSU 09",1,{"$f":"_xlfn.CONCAT(Inventory_Table[[#This Row],[Form Factor]],Inventory_Table[[#This Row],[Current Location]])","v":"Wafer - 300mmSSU 09"},"2020-03-26","Test Program 888","Test Part Number","Test Lot # 888"]
["Wafer - 300mm","SSU 09",{"$f":"-Inventory_Table[[#This Row],[Quantity In]]","v":-1},"SSU 09",1,{"$f":"_xlfn.CONCAT(Inventory_Table[[#This Row],[Form Factor]],Inventory_Table[[#This Row],[Current Location]])","v":"Wafer - 300mmSSU 09"},"2020-03-26","Test Program 889","Test Part Number","Test Lot # 889"]
["Wafer - 300mm","SSU 10",{"$f":"-Inventory_Table[[#This Row],[Quantity In]]","v":-1},"SSU 09",1,{"$f":"_xlfn.CONCAT(Inventory_Table[[#This Row],[Form Factor]],Inventory_Table[[#This Row],[Current Location]])","v":"Wafer - 300mmSSU 09"},"2020-03-26","Test Program 890","Test Part Number","Test Lot # 890"]
["Wafer - 300mm","SSU 11",{"$f":"-Inventory_Table[[#This Row],[Quantity In]]","v":-1},"SSU 09",1,{"$f":"_xlfn.CONCAT(Inventory_Table[[#This Row],[Form Factor]],Inventory_Table[[#This Row],[Current Location]])","v":"Wafer - 300mmSSU 09"},"2020-03-26","Test Program 891","Test Part Number","Test Lot # 891"]
["Wafer - 300mm","SSU 12",{"$f":"-Inventory_Table[[#This Row],[Quantity In]]","v":-1},"SSU 09",1,{"$f":"_xlfn.CONCAT(Inventory_Table[[#This Row],[Form Factor]],Inventory_Table[[#This Row],[Current Location]])","v":"Wafer - 300mmSSU 09"},"2020-03-26","Test Program 892","Test Part Number","Test Lot # 892"]
["Wafer - 300mm","SSU 13",{"$f":"-Inventory_Table[[#This Row],[Quantity In]]","v":-1},"SSU 09",1,{"$f":"_xlfn.CONCAT(Inventory_Table[[#This Row],[Form Factor]],Inventory_Table[[#This Row],[Current Location]])","v":"Wafer - 300mmSSU 09"},"2020-03-26","Test Program 893","Test Part Number","Test Lot # 893"]
["Wafer - 300mm","SSU 14",{"$f":"-Inventory_Table[[#This Row],[Quantity In]]","v":-1},"SSU 09",1,{"$f":"_xlfn.CONCAT(Inventory_Table[[#This Row],[Form Factor]],Inventory_Table[[#This Row],[Current Location]])","v":"Wafer - 300mmSSU 09"},"2020-03-26","Test Program 894","Test Part Number","Test Lot # 894"]
["Wafer - 300mm","SSU 15",{"$f":"-Inventory_Table[[#This Row],[Quantity In]]","v":-1},"SSU 09",1,{"$f":"_xlfn.CONCAT(Inventory_Table[[#This Row],[Form Factor]],Inventory_Table[[#This Row],[Current Location]])","v":"Wafer - 300mmSSU 09"},"2020-03-26","Test Program 895","Test Part Number","Test Lot # 895"]
["Wafer - 300mm","SSU 16",{"$f":"-Inventory_Table[[#This Row],[Quantity In]]","v":-1},"SSU 09",1,{"$f":"_xlfn.CONCAT(Inventory_Table[[#This Row],[Form Factor]],Inventory_Table[[#This Row],[Current Location]])","v":"Wafer - 300mmSSU 09"},"2020-03-26","Test Program 896","Test Part Number","Test Lot # 896"]
["Wafer - 300mm","SSU 17",{"$f":"-Inventory_Table[[#This Row],[Quantity In]]","v":-1},"SSU 09",1,{"$f":"_xlfn.CONCAT(Inventory_Table[[#This Row],[Form Factor]],Inventory_Table[[#This Row],[Current Location]])","v":"Wafer - 300mmSSU 09"},"2020-03-26","Test Program 897","Test Part Number","Test Lot # 897"]
["Wafer - 300mm","SSU 18",{"$f":"-Inventory_Table[[#This Row],[Quantity In]]","v":-1},"SSU 09",1,{"$f":"_xlfn.CONCAT(Inventory_Table[[#This Row],[Form Factor]],Inventory_Table[[#This Row],[Current Location]])","v":"Wafer - 300mmSSU 09"},"2020-03-26","Test Program 898","Test Part Number","Test Lot # 898"]
["Wafer - 300mm","SSU 01",{"$f":"-Inventory_Table[[#This Row],[Quantity In]]","v":-1},"SSU 09",1,{"$f":"_xlfn.CONCAT(Inventory_Table[[#This Row],[Form Factor]],Inventory_Table[[#This Row],[Current Location]])","v":"Wafer - 300mmSSU 09"},"2020-03-26","Test Program 899","Test Part Number","Test Lot # 899"]
["Wafer - 300mm","SSU 02",{"$f":"-Inventory_Table[[#This Row],[Quantity In]]","v":-1},"SSU 09",1,{"$f":"_xlfn.CONCAT(Inventory_Table[[#This Row],[Form Factor]],Inventory_Table[[#This Row],[Current Location]])","v":"Wafer - 300mmSSU 09"},"2020-03-26","Test Program 900","Test Part Number","Test Lot # 900"]
["Wafer - 300mm","SSU 03",{"$f":"-Inventory_Table[[#This Row],[Quantity In]]","v":-1},"SSU 09",1,{"$f":"_xlfn.CONCAT(Inventory_Table[[#This Row],[Form Factor]],Inventory_Table[[#This Row],[Current Location]])","v":"Wafer - 300mmSSU 09"},"2020-03-26","Test Program 901","Test Part Number","Test Lot # 901"]
["Wafer - 300mm","SSU 04",{"$f":"-Inventory_Table[[#This Row],[Quantity In]]","v":-1},"SSU 09",1,{"$f":"_xlfn.CONCAT(Inventory_Table[[#This Row],[Form Factor]],Inventory_Table[[#This Row],[Current Location]])","v":"Wafer - 300mmSSU 09"},"2020-03-26","Test Program 902","Test Part Number","Test Lot # 902"]
["Wafer - 300mm","SSU 05",{"$f":"-Inventory_Table[[#This Row],[Quantity In]]","v":-1},"SSU 09",1,{"$f":"_xlfn.CONCAT(Inventory_Table[[#This Row],[Form Factor]],Inventory_Table[[#This Row],[Current Location]])","v":"Wafer - 300mmSSU 09"},"2020-03-26","Test Program 903","Test Part Number","Test Lot # 903"]
["Wafer - 300mm","SSU 06",{"$f":"-Inventory_Table[[#This Row],[Quantity In]]","v":-1},"SSU 10",1,{"$f":"_xlfn.CONCAT(Inventory_Table[[#This Row],[Form Factor]],Inventory_Table[[#This Row],[Current Location]])","v":"Wafer - 300mmSSU 10"},"2020-03-30","Test Program 904","Test Part Number","Test Lot # 904"]
["Wafer - 300mm","SSU 07",{"$f":"-Inventory_Table[[#This Row],[Quantity In]]","v":-1},"SSU 10",1,{"$f":"_xlfn.CONCAT(Inventory_Table[[#This Row],[Form Factor]],Inventory_Table[[#This Row],[Current Location]])","v":"Wafer - 300mmSSU 10"},"2020-03-30","Test Program 905","Test Part Number","Test Lot # 905"]
["Wafer - 300mm","SSU 08",{"$f":"-Inventory_Table[[#This Row],[Quantity In]]","v":-1},"SSU 10",1,{"$f":"_xlfn.CONCAT(Inventory_Table[[#This Row],[Form Factor]],Inventory_Table[[#This Row],[Current Location]])","v":"Wafer - 300mmSSU 10"},"2020-03-30","Test Program 906","Test Part Number","Test Lot # 906"]
["Wafer - 300mm","SSU 09",{"$f":"-Inventory_Table[[#This Row],[Quantity In]]","v":-1},"SSU 10",1,{"$f":"_xlfn.CONCAT(Inventory_Table[[#This Row],[Form Factor]],Inventory_Table[[#This Row],[Current Location]])","v":"Wafer - 300mmSSU 10"},"2020-03-30","Test Program 907","Test Part Number","Test Lot # 907"]
["Wafer - 300mm","SSU 10",{"$f":"-Inventory_Table[[#This Row],[Quantity In]]","v":-1},"SSU 10",1,{"$f":"_xlfn.CONCAT(Inventory_Table[[#This Row],[Form Factor]],Inventory_Table[[#This Row],[Current Location]])","v":"Wafer - 300mmSSU 10"},"2020-03-30","Test Program 908","Test Part Number","Test Lot # 908"]
["Wafer - 300mm","SSU 11",{"$f":"-Inventory_Table[[#This Row],[Quantity In]]","v":-1},"SSU 10",1,{"$f":"_xlfn.CONCAT(Inventory_Table[[#This Row],[Form Factor]],Inventory_Table[[#This Row],[Current Location]])","v":"Wafer - 300mmSSU 10"},"2020-03-30","Test Program 909","Test Part Number","Test Lot # 909"]
["Wafer - 300mm","SSU 12",{"$f":"-Inventory_Table[[#This Row],[Quantity In]]","v":-1},"SSU 10",1,{"$f":"_xlfn.CONCAT(Inventory_Table[[#This Row],[Form Factor]],Inventory_Table[[#This Row],[Current Location]])","v":"Wafer - 300mmSSU 10"},"2020-03-30","Test Program 910","Test Part Number","Test Lot # 910"]
["Wafer - 300mm","SSU 13",{"$f":"-Inventory_Table[[#This Row],[Quantity In]]","v":-1},"SSU 10",1,{"$f":"_xlfn.CONCAT(Inventory_Table[[#This Row],[Form Factor]],Inventory_Table[[#This Row],[Current Location]])","v":"Wafer - 300mmSSU 10"},"2020-03-30","Test Program 911","Test Part Number","Test Lot # 911"]
["Wafer - 300mm","SSU 14",{"$f":"-Inventory_Table[[#This Row],[Quantity In]]","v":-1},"SSU 10",1,{"$f":"_xlfn.CONCAT(Inventory_Table[[#This Row],[Form Factor]],Inventory_Table[[#This Row],[Current Location]])","v":"Wafer - 300mmSSU 10"},"2020-03-30","Test Program 912","Test Part Number","Test Lot # 912"]
["Wafer - 300mm","SSU 15",{"$f":"-Inventory_Table[[#This Row],[Quantity In]]","v":-1},"SSU 10",1,{"$f":"_xlfn.CONCAT(Inventory_Table[[#This Row],[Form Factor]],Inventory_Table[[#This Row],[Current Location]])","v":"Wafer - 300mmSSU 10"},"2020-03-30","Test Program 913","Test Part Number","Test Lot # 913"]
["Die","SSU 16",{"$f":"-Inventory_Table[[#This Row],[Quantity In]]","v":-1},"SSU 07",1,{"$f":"_xlfn.CONCAT(Inventory_Table[[#This Row],[Form Factor]],Inventory_Table[[#This Row],[Current Location]])","v":"DieSSU 07"},"2020-04-01","Test Program 914","Test Part Number","Test Lot # 914"]
["Die","SSU 17",{"$f":"-Inventory_Table[[#This Row],[Quantity In]]","v":-13},"SSU 07",13,{"$f":"_xlfn.CONCAT(Inventory_Table[[#This Row],[Form Factor]],Inventory_Table[[#This Row],[Current Location]])","v":"DieSSU 07"},"2020-04-01","Test Program 915","Test Part Number","Test Lot # 915"]
["Die","SSU 18",{"$f":"-Inventory_Table[[#This Row],[Quantity In]]","v":-2},"SSU 07",2,{"$f":"_xlfn.CONCAT(Inventory_Table[[#This Row],[Form Factor]],Inventory_Table[[#This Row],[Current Location]])","v":"DieSSU 07"},"2020-04-01","Test Program 916","Test Part Number","Test Lot # 916"]
["Die","SSU 01",{"$f":"-Inventory_Table[[#This Row],[Quantity In]]","v":-2},"SSU 07",2,{"$f":"_xlfn.CONCAT(Inventory_Table[[#This Row],[Form Factor]],Inventory_Table[[#This Row],[Current Location]])","v":"DieSSU 07"},"2020-04-01","Test Program 917","Test Part Number","Test Lot # 917"]
["Die","SSU 02",{"$f":"-Inventory_Table[[#This Row],[Quantity In]]","v":-6},"SSU 07",6,{"$f":"_xlfn.CONCAT(Inventory_Table[[#This Row],[Form Factor]],Inventory_Table[[#This Row],[Current Location]])","v":"DieSSU 07"},"2020-04-01","Test Program 918","Test Part Number","Test Lot # 918"]
["Die","SSU 03",{"$f":"-Inventory_Table[[#This Row],[Quantity In]]","v":-9},"SSU 07",9,{"$f":"_xlfn.CONCAT(Inventory_Table[[#This Row],[Form Factor]],Inventory_Table[[#This Row],[Current Location]])","v":"DieSSU 07"},"2020-04-01","Test Program 919","Test Part Number","Test Lot # 919"]
["Die","SSU 04",{"$f":"-Inventory_Table[[#This Row],[Quantity In]]","v":-2},"SSU 07",2,{"$f":"_xlfn.CONCAT(Inventory_Table[[#This Row],[Form Factor]],Inventory_Table[[#This Row],[Current Location]])","v":"DieSSU 07"},"2020-04-01","Test Program 920","Test Part Number","Test Lot # 920"]
["Die","SSU 05",{"$f":"-Inventory_Table[[#This Row],[Quantity In]]","v":-2},"SSU 07",2,{"$f":"_xlfn.CONCAT(Inventory_Table[[#This Row],[Form Factor]],Inventory_Table[[#This Row],[Current Location]])","v":"DieSSU 07"},"2020-04-01","Test Program 921","Test Part Number","Test Lot # 921"]
["Die","SSU 06",{"$f":"-Inventory_Table[[#This Row],[Quantity In]]","v":-1},"SSU 07",1,{"$f":"_xlfn.CONCAT(Inventory_Table[[#This Row],[Form Factor]],Inventory_Table[[#This Row],[Current Location]])","v":"DieSSU 07"},"2020-04-01","Test Program 922","Test Part Number","Test Lot # 922"]
["Die","SSU 07",{"$f":"-Inventory_Table[[#This Row],[Quantity In]]","v":-1},"SSU 07",1,{"$f":"_xlfn.CONCAT(Inventory_Table[[#This Row],[Form Factor]],Inventory_Table[[#This Row],[Current Location]])","v":"DieSSU 07"},"2020-04-01","Test Program 923","Test Part Number","Test Lot # 923"]
["Die","SSU 08",{"$f":"-Inventory_Table[[#This Row],[Quantity In]]","v":-8},"SSU 07",8,{"$f":"_xlfn.CONCAT(Inventory_Table[[#This Row],[Form Factor]],Inventory_Table[[#This Row],[Current Location]])","v":"DieSSU 07"},"2020-04-01","Test Program 924","Test Part Number","Test Lot # 924"]
["Die","SSU 09",{"$f":"-Inventory_Table[[#This Row],[Quantity In]]","v":-3},"SSU 07",3,{"$f":"_xlfn.CONCAT(Inventory_Table[[#This Row],[Form Factor]],Inventory_Table[[#This Row],[Current Location]])","v":"DieSSU 07"},"2020-04-01","Test Program 925","Test Part Number","Test Lot # 925"]
["Die","SSU 10",{"$f":"-Inventory_Table[[#This Row],[Quantity In]]","v":-3},"SSU 07",3,{"$f":"_xlfn.CONCAT(Inventory_Table[[#This Row],[Form Factor]],Inventory_Table[[#This Row],[Current Location]])","v":"DieSSU 07"},"2020-04-01","Test Program 926","Test Part Number","Test Lot # 926"]
["Die","SSU 11",{"$f":"-Inventory_Table[[#This Row],[Quantity In]]","v":-1},"SSU 07",1,{"$f":"_xlfn.CONCAT(Inventory_Table[[#This Row],[Form Factor]],Inventory_Table[[#This Row],[Current Location]])","v":"DieSSU 07"},"2020-04-01","Test Program 927","Test Part Number","Test Lot # 927"]
["Die","SSU 12",{"$f":"-Inventory_Table[[#This Row],[Quantity In]]","v":-1},"SSU 07",1,{"$f":"_xlfn.CONCAT(Inventory_Table[[#This Row],[Form Factor]],Inventory_Table[[#This Row],[Current Location]])","v":"DieSSU 07"},"2020-04-01","Test Program 928","Test Part Number","Test Lot # 928"]
["Die","SSU 13",{"$f":"-Inventory_Table[[#This Row],[Quantity In]]","v":-2},"SSU 07",2,{"$f":"_xlfn.CONCAT(Inventory_Table[[#This Row],[Form Factor]],Inventory_Table[[#This Row],[Current Location]])","v":"DieSSU 07"},"2020-04-01","Test Program 929","Test Part Number","Test Lot # 929"]
["Die","SSU 14",{"$f":"-Inventory_Table[[#This Row],[Quantity In]]","v":-1},"SSU 07",1,{"$f":"_xlfn.CONCAT(Inventory_Table[[#This Row],[Form Factor]],Inventory_Table[[#This Row],[Current Location]])","v":"DieSSU 07"},"2020-04-01","Test Program 930","Test Part Number","Test Lot # 930"]
["Module","SSU 15",{"$f":"-Inventory_Table[[#This Row],[Quantity In]]","v":-1},"SSU 07",1,{"$f":"_xlfn.CONCAT(Inventory_Table[[#This Row],[Form Factor]],Inventory_Table[[#This Row],[Current Location]])","v":"ModuleSSU 07"},"2020-04-01","Test Program 931","Test Part Number","Test Lot # 931"]
["Module","SSU 16",{"$f":"-Inventory_Table[[#This Row],[Quantity In]]","v":-2},"SSU 07",2,{"$f":"_xlfn.CONCAT(Inventory_Table[[#This Row],[Form Factor]],Inventory_Table[[#This Row],[Current Location]])","v":"ModuleSSU 07"},"2020-04-01","Test Program 932","Test Part Number","Test Lot # 932"]
["Module","SSU 17",{"$f":"-Inventory_Table[[#This Row],[Quantity In]]","v":-1},"SSU 07",1,{"$f":"_xlfn.CONCAT(Inventory_Table[[#This Row],[Form Factor]],Inventory_Table[[#This Row],[Current Location]])","v":"ModuleSSU 07"},"2020-04-01","Test Program 933","Test Part Number","Test Lot # 933"]
["Module","SSU 17",{"$f":"-Inventory_Table[[#This Row],[Quantity In]]","v":-1},"SSU 07",1,{"$f":"_xlfn.CONCAT(Inventory_Table[[#This Row],[Form Factor]],Inventory_Table[[#This Row],[Current Location]])","v":"ModuleSSU 07"},"2020-04-01","Test Program 934","Test Part Number","Test Lot # 934"]
["Module","SSU 18",{"$f":"-Inventory_Table[[#This Row],[Quantity In]]","v":-1},"SSU 07",1,{"$f":"_xlfn.CONCAT(Inventory_Table[[#This Row],[Form Factor]],Inventory_Table[[#This Row],[Current Location]])","v":"ModuleSSU 07"},"2020-04-01","Test Program 935","Test Part Number","Test Lot # 935"]
["Module","SSU 01",{"$f":"-Inventory_Table[[#This Row],[Quantity In]]","v":-1},"SSU 07",1,{"$f":"_xlfn.CONCAT(Inventory_Table[[#This Row],[Form Factor]],Inventory_Table[[#This Row],[Current Location]])","v":"ModuleSSU 07"},"2020-04-01","Test Program 936","Test Part Number","Test Lot # 936"]
["Wafer - Carcass","SSU 02",{"$f":"-Inventory_Table[[#This Row],[Quantity In]]","v":-5},"SSU 07",5,{"$f":"_xlfn.CONCAT(Inventory_Table[[#This Row],[Form Factor]],Inventory_Table[[#This Row],[Current Location]])","v":"Wafer - CarcassSSU 07"},"2020-04-01","Test Program 937","Test Part Number","Test Lot # 937"]
["Wafer - Carcass","SSU 03",{"$f":"-Inventory_Table[[#This Row],[Quantity In]]","v":-5},"SSU 07",5,{"$f":"_xlfn.CONCAT(Inventory_Table[[#This Row],[Form Factor]],Inventory_Table[[#This Row],[Current Location]])","v":"Wafer - CarcassSSU 07"},"2020-04-01","Test Program 938","Test Part Number","Test Lot # 938"]
["Wafer - Carcass","SSU 04",{"$f":"-Inventory_Table[[#This Row],[Quantity In]]","v":-5},"SSU 07",5,{"$f":"_xlfn.CONCAT(Inventory_Table[[#This Row],[Form Factor]],Inventory_Table[[#This Row],[Current Location]])","v":"Wafer - CarcassSSU 07"},"2020-04-01","Test Program 939","Test Part Number","Test Lot # 939"]
["Wafer - Carcass","SSU 05",{"$f":"-Inventory_Table[[#This Row],[Quantity In]]","v":-5},"SSU 07",5,{"$f":"_xlfn.CONCAT(Inventory_Table[[#This Row],[Form Factor]],Inventory_Table[[#This Row],[Current Location]])","v":"Wafer - CarcassSSU 07"},"2020-04-01","Test Program 940","Test Part Number","Test Lot # 940"]
["Wafer - Carcass","SSU 06",{"$f":"-Inventory_Table[[#This Row],[Quantity In]]","v":-5},"SSU 07",5,{"$f":"_xlfn.CONCAT(Inventory_Table[[#This Row],[Form Factor]],Inventory_Table[[#This Row],[Current Location]])","v":"Wafer - CarcassSSU 07"},"2020-04-01","Test Program 941","Test Part Number","Test Lot # 941"]
["Module","SSU 15",{"$f":"-Inventory_Table[[#This Row],[Quantity In]]","v":-434},"FGI/Shipped to Client",434,{"$f":"_xlfn.CONCAT(Inventory_Table[[#This Row],[Form Factor]],Inventory_Table[[#This Row],[Current Location]])","v":"ModuleFGI/Shipped to Client"},"2020-04-08","Test Program 704","Test Part Number","Test Lot # 704"]
["Module","SSU 16",{"$f":"-Inventory_Table[[#This Row],[Quantity In]]","v":-5},"FGI/Shipped to Client",5,{"$f":"_xlfn.CONCAT(Inventory_Table[[#This Row],[Form Factor]],Inventory_Table[[#This Row],[Current Location]])","v":"ModuleFGI/Shipped to Client"},"2020-04-08","Test Program 705","Test Part Number","Test Lot # 705"]
["Module","SSU 17",{"$f":"-Inventory_Table[[#This Row],[Quantity In]]","v":-436},"FGI/Shipped to Client",436,{"$f":"_xlfn.CONCAT(Inventory_Table[[#This Row],[Form Factor]],Inventory_Table[[#This Row],[Current Location]])","v":"ModuleFGI/Shipped to Client"},"2020-04-08","Test Program 706","Test Part Number","Test Lot # 706"]
["Module","SSU 18",{"$f":"-Inventory_Table[[#This Row],[Quantity In]]","v":-435},"FGI/Shipped to Client",435,{"$f":"_xlfn.CONCAT(Inventory_Table[[#This Row],[Form Factor]],Inventory_Table[[#This Row],[Current Location]])","v":"ModuleFGI/Shipped to Client"},"2020-04-08","Test Program 707","Test Part Number","Test Lot # 707"]
["Module","SSU 01",{"$f":"-Inventory_Table[[#This Row],[Quantity In]]","v":-52},"FGI/Shipped to Client",52,{"$f":"_xlfn.CONCAT(Inventory_Table[[#This Row],[Form Factor]],Inventory_Table[[#This Row],[Current Location]])","v":"ModuleFGI/Shipped to Client"},"2020-04-08","Test Program 708","Test Part Number","Test Lot # 708"]
["Module","SSU 02",{"$f":"-Inventory_Table[[#This Row],[Quantity In]]","v":-238},"FGI/Shipped to Client",238,{"$f":"_xlfn.CONCAT(Inventory_Table[[#This Row],[Form Factor]],Inventory_Table[[#This Row],[Current Location]])","v":"ModuleFGI/Shipped to Client"},"2020-04-08","Test Program 709","Test Part Number","Test Lot # 709"]
["Module","SSU 04",{"$f":"-Inventory_Table[[#This Row],[Quantity In]]","v":-436},"FGI/Shipped to Client",436,{"$f":"_xlfn.CONCAT(Inventory_Table[[#This Row],[Form Factor]],Inventory_Table[[#This Row],[Current Location]])","v":"ModuleFGI/Shipped to Client"},"2020-04-08","Test Program 711","Test Part Number","Test Lot # 711"]
["Module","SSU 05",{"$f":"-Inventory_Table[[#This Row],[Quantity In]]","v":-41},"FGI/Shipped to Client",41,{"$f":"_xlfn.CONCAT(Inventory_Table[[#This Row],[Form Factor]],Inventory_Table[[#This Row],[Current Location]])","v":"ModuleFGI/Shipped to Client"},"2020-04-08","Test Program 712","Test Part Number","Test Lot # 712"]
["Module","SSU 07",{"$f":"-Inventory_Table[[#This Row],[Quantity In]]","v":-167},"FGI/Shipped to Client",167,{"$f":"_xlfn.CONCAT(Inventory_Table[[#This Row],[Form Factor]],Inventory_Table[[#This Row],[Current Location]])","v":"ModuleFGI/Shipped to Client"},"2020-04-08","Test Program 714","Test Part Number","Test Lot # 714"]
[]
[]
["Current Location","Form Factor"]
["Williston 861","Mask"]

{"sheet":"Reference Tables","index":2,"n_rows":25,"n_cols":14,"rows_kept":25,"cut":false,"hidden":true,"merged":[]}
["Storage Locations",null,null,null,"Age","Age Group",null,null,null,null,null,"Product Type",null,"Wafer Size"]
["SSU 01",null,null,null,0,"<1",null,null,null,null,null,"Mask",null,"200mm"]
["SSU 02",null,null,null,1,"1-2",null,null,null,null,null,"Wafer",null,"300mm"]
["SSU 03",null,null,null,2,"2-3",null,null,null,null,null,"Die"]
["SSU 04",null,null,null,3,"3+",null,null,null,null,null,"Module"]
["SSU 05",null,null,null,4,"3+",null,null,null,null,null,"Wafer - Carcass"]
["SSU 06",null,null,null,5,"3+",null,null,null,null,null,"Misc"]
["SSU 07",null,null,null,6,"3+"]
["SSU 08",null,null,null,7,"3+"]
["SSU 09",null,null,null,8,"3+"]
["SSU 10",null,null,null,9,"3+"]
["SSU 11",null,null,null,10,"3+"]
["SSU 12",null,null,null,11,"3+"]
["SSU 13",null,null,null,12,"3+"]
["SSU 14",null,null,null,13,"3+"]
["SSU 15",null,null,null,14,"3+"]
["SSU 16",null,null,null,15,"3+"]
["Fab",null,null,null,16,"3+"]
["Post Fab",null,null,null,17,"3+"]
["PCDP",null,null,null,18,"3+"]
["FA ",null,null,null,19,"3+"]
["FGI",null,null,null,20,"3+"]
["Williston 861"]
["CMC"]
["Other"]